Workbook

Sheet Sheet1
C1: Y | AY1: ERRORS | BA1: WARNINGS | BR1: =CONCATENATE(LEFT(BS1, 3),BT1) -> AXGSAVERNAKE COMMUNITY HOSPITAL | BS1: AXG02 | BT1: SAVERNAKE COMMUNITY HOSPITAL | BU1: AXG02 | BV1: SAVERNAKE COMMUNITY HOSPITAL | BW1: AXG | BZ1: BERKELEY HOUSE | CA1: Berkeley House
D2: Safe Staffing (Rota Fill Rates and CHPPD) Collection | AX2: =IF(BG44=0,"","Select Site Name in Column E") ->  | AY2: SELECT SITE CODE | BR2: AXGWARMINSTER COMMUNITY HOSPITAL | BS2: AXG03 | BT2: WARMINSTER COMMUNITY HOSPITAL | BU2: AXG03 | BV2: WARMINSTER COMMUNITY HOSPITAL | BW2: AXG | BZ2: CHARLTON LANE HOSPITAL | CA2: Chestnut
AY3: Select Ward Name | BR3: AXGWILTSHIRE HEALTH & CARE (CHIPPENHAM COMMUNITY HOSPITAL) | BS3: AXG01 | BT3: WILTSHIRE HEALTH & CARE (CHIPPENHAM COMMUNITY HOSPITAL) | BU3: AXG01 | BV3: WILTSHIRE HEALTH & CARE (CHIPPENHAM COMMUNITY HOSPITAL) | BW3: AXG | BZ3: CHARLTON LANE HOSPITAL | CA3: Mulberry
AX4: =IF(BH44=0,"","Select Ward Name in Column F") ->  | AY4: Select speciality | BR4: NHMALDEBURGH COMMUNITY HOSPITAL | BS4: NHM02 | BT4: ALDEBURGH COMMUNITY HOSPITAL | BU4: NHM02 | BV4: ALDEBURGH COMMUNITY HOSPITAL | BW4: NHM | BZ4: CHARLTON LANE HOSPITAL | CA4: Willow
D5: Organisation: | E5: RWG | F5: West Hertfordshire Hospitals NHS Trust | AX5: =IF(E245=0,"","At least one specialty must be selected (Speciality 1) for each row") ->  | AY5: Total planned hours > 0 | AZ5: =IF(BM44=0,"","Check ward spelling and site-ward combination against ward list. If a new ward or site-ward combination, leave it in, and the ward list will be updated in time for the next collection.") ->  | BR5: NHMBLUEBIRD LODGE | BS5: NHM03 | BT5: BLUEBIRD LODGE | BU5: NHM03 | BV5: BLUEBIRD LODGE | BW5: NHM | BZ5: HONEYBOURNE | CA5: Honeybourne
AX6: =IF(F245=0,"","Total number of planned hours must be greater than 0") ->  | AY6: Total actual hours > 0 | AZ6: =IF(H245>0,"One or more wards has less than 1448 actual hours (approx. 2 full time staff)","") ->  | BR6: NHMFELIXSTOWE COMMUNITY HOSPITAL | BS6: NHM05 | BT6: FELIXSTOWE COMMUNITY HOSPITAL | BU6: NHM05 | BV6: FELIXSTOWE COMMUNITY HOSPITAL | BW6: NHM | BZ6: LAUREL HOUSE CHELT | CA6: Laurel House
F7: Please provide the URL to the page on your trust website where your staffing information is available | AX7: =IF(G245=0,"","Total number of actual hours must be greater than 0") ->  | AY7: duplicate ward/hospital and spec codes | AZ7: =IF(I245>0,"One or more wards has greater than 30000 actual hours (approx. 40 full time staff)","") ->  | BR7: NHMGLASTONBURY COURT | BS7: NHM26 | BT7: GLASTONBURY COURT | BU7: NHM26 | BV7: GLASTONBURY COURT | BW7: NHM | BZ7: OAK HOUSE | CA7: Oak House
F8: (Please can you ensure that the URL you attach to the spreadsheet is correct and links to the correct web page and include 'http://' in your URL) | AX8: =IF(E5="","",IF(BI246>0,"Duplicate Ward entry within site","")) ->  | AY8: Avoid gaps in between data rows | AZ8: =IF(AC245>0,"One or more wards has submitted actual hours but zero CHPPD patients.","") ->  | BR8: NHMNEWMARKET COMMUNITY HOSPITAL | BS8: NHM04 | BT8: NEWMARKET COMMUNITY HOSPITAL | BU8: NHM04 | BV8: NEWMARKET COMMUNITY HOSPITAL | BW8: NHM | BZ8: STONEBOW UNIT | CA8: Cantilupe
AX9: =IF(BK246>0,"Please do not leave gaps between rows of data.","") ->  | AY9: duplicate speciality codes | BR9: NLXCHIPPENHAM COMMUNITY HOSPITAL | BS9: NLX17 | BT9: CHIPPENHAM COMMUNITY HOSPITAL | BU9: NLX17 | BV9: CHIPPENHAM COMMUNITY HOSPITAL | BW9: NLX | BZ9: STONEBOW UNIT | CA9: Jenny Lind
A10: =IF(#REF!="",1,0) ->  | AX10: =IF(BL246>0,"Duplicate speciality codes entered","") ->  | BR10: NLXCOSSHAM HOSPITAL | BS10: NLX23 | BT10: COSSHAM HOSPITAL | BU10: NLX23 | BV10: COSSHAM HOSPITAL | BW10: NLX | BZ10: STONEBOW UNIT | CA10: Mortimer
F11: Only complete sites your organisation is accountable for | I11: Day | Q11: Night | Y11: Allied Health Professionals | AC11: Care Hours Per Patient Day (CHPPD) | AK11: Day | AO11: Night | AS11: Allied Health Professionals | AY11: Site code issue | BR11: NLXDEVIZES COMMUNITY HOSPITAL | BS11: NLX18 | BT11: DEVIZES COMMUNITY HOSPITAL | BU11: NLX18 | BV11: DEVIZES COMMUNITY HOSPITAL | BW11: NLX | BZ11: WOTTON LAWN HOSPITAL | CA11: Abbey
D12: Hospital Site Details | F12: Ward name | G12: Main 2 Specialties on each ward | I12: Registered Nurses/Midwives | K12: Non-registered Nurses/Midwives (Care Staff) | M12: Registered Nursing Associates | O12: Non-registered Nursing Associates | Q12: Registered Nurses/Midwives | S12: Non-registered Nurses/Midwives (Care Staff) | U12: Registered Nursing Associates | W12: Non-registered Nursing Associates | Y12: Registered allied health professionals | AA12: Non-registered allied health professionals | AC12: Cumulative count over the month of patients at 23:59 each day | AD12: Registered Nurses/Midwives | AE12: Non-registered Nurses/Midwives | AF12: Registered Nursing Associates | AG12: Non-registered Nursing Associates | AH12: Registered allied health professionals | AI12: Non-registered allied health professionals | AJ12: Overall | AK12: Average fill rate - Registered Nurses/Midwives (%) | AL12: Average fill rate - Non-registered Nurses/Midwives (care staff) (%) | AM12: Average fill rate - Registered Nursing Associates (%) | AN12: Average fill rate - Non-Registered Nursing Associates (%) | AO12: Average fill rate - Registered Nurses/Midwives (%) | AP12: Average fill rate - Non-registered Nurses/Midwives (care staff) (%) | AQ12: Average fill rate - Registered Nursing Associates (%) | AR12: Average fill rate - Non-Registered Nursing Associates (%) | AS12: Average fill rate - registered allied health professionals (AHP) (%) | AT12: Average fill rate - non-registered allied health professionals (AHP) (%) | AX12: =D456 ->  | AY12: Do not enter negative numbers | BF12: VALIDATIONS | BR12: NLXGREYSTONES | BS12: NLX12 | BT12: GREYSTONES | BU12: NLX12 | BV12: GREYSTONES | BW12: NLX | BZ12: WOTTON LAWN HOSPITAL | CA12: Dean
D13: Site code *The Site code is automatically populated when a Site name is selected | E13: Hospital Site name | G13: Specialty 1 | H13: Specialty 2 | I13: Total monthly planned staff hours | J13: Total monthly actual staff hours | K13: Total monthly planned staff hours | L13: Total monthly actual staff hours | M13: Total monthly planned staff hours | N13: Total monthly actual staff hours | O13: Total monthly planned staff hours | P13: Total monthly actual staff hours | Q13: Total monthly planned staff hours | R13: Total monthly actual staff hours | S13: Total monthly planned staff hours | T13: Total monthly actual staff hours | U13: Total monthly planned staff hours | V13: Total monthly actual staff hours | W13: Total monthly planned staff hours | X13: Total monthly actual staff hours | Y13: Total monthly planned staff hours | Z13: Total monthly actual staff hours | AA13: Total monthly planned staff hours | AB13: Total monthly actual staff hours | AV13: Specialties | AX13: =IF(J452>0, "Please do not enter negative numbers","") ->  | AY13: speciality codes not in list | BG13: SITE CODE | BH13: WARD NAME | BI13: Carriage Return | BR13: NLXHANHAM HEALTH | BS13: NLX27 | BT13: HANHAM HEALTH | BU13: NLX27 | BV13: HANHAM HEALTH | BW13: NLX | BZ13: WOTTON LAWN HOSPITAL | CA13: Greyfriars
A14: =IF(Q49=1,"No Site Selected",IF(R49=1,"No Ward Name","")) ->  | B14: 2 | D14: =IF(ISNA(VLOOKUP($E$5&E14,$BR:$BS,2,FALSE)),"",VLOOKUP($E$5&E14,$BR:$BS,2,FALSE)) -> RWG02 | E14: WATFORD GENERAL HOSPITAL | F14: AAU Level 1 | G14: 326 - ACUTE INTERNAL MEDICINE | I14: 4134.25 | J14: 3800.75 | K14: 2760 | L14: 3860.833333 | M14: 0 | N14: 0 | O14: 0 | P14: 0 | Q14: 4137.25 | R14: 3826.75 | S14: 2758.5 | T14: 4091 | U14: 0 | V14: 0 | W14: 0 | X14: 0 | AC14: 1436 | AD14: =(J14+R14)/AC14 -> 5.311629526 | AE14: =(L14+T14)/AC14 -> 5.537488394 | AF14: =(N14+V14)/AC14 -> 0 | AG14: =(P14+X14)/AC14 -> 0 | AH14: =Z14/AC14 -> 0 | AI14: =AB14/AC14 -> 0 | AJ14: =(J14+L14+N14+P14+R14+T14+V14+X14+Z14+AB14)/AC14 -> 10.84911792 | AK14: =J14/I14 -> 0.9193324061 | AL14: =L14/K14 -> 1.398852657 | AM14: =IFERROR(N14/M14,"-") -> - | AN14: =IFERROR(P14/O14,"-") -> - | AO14: =R14/Q14 -> 0.924950148 | AP14: =T14/S14 -> 1.483052384 | AQ14: =IFERROR(V14/U14,"-") -> - | AR14: =IFERROR(X14/W14,"-") -> - | AV14: 120 - ENT | AW14: 0 | BG14: =IF(Q49=1,"No Site Selected","") ->  | BH14: =IF(R49=1,"No Ward Name","") ->  | BM14: =IF(C49=1,"Incorrect Ward Name","") ->  | BR14: NLXTHORNBURY HOSPITAL | BS14: NLX22 | BT14: THORNBURY HOSPITAL | BU14: NLX22 | BV14: THORNBURY HOSPITAL | BW14: NLX | BY14: RWG | BZ14: UNIVERSITY HOSPITAL AINTREE | CA14: ACCU | CB14: WATFORD GENERAL HOSPITAL | CD14: Match: | CE14: 6283 | CF14: Countif: | CG14: 6312 | CH14: Concat Items: | CI14: $CA | CJ14: :$CA | CL14: Concat Final: | CM14: $CA6283:$CA6312
F15: AAU Blue & Yellow Level 3 (inc Isolation) | I15: 3083.583333 | J15: 2580.416667 | K15: 1725 | L15: 1901.75 | M15: 0 | N15: 0 | O15: 0 | P15: 0 | Q15: 3105 | R15: 2644.5 | S15: 1725 | T15: 2265.5 | U15: 0 | V15: 11.5 | W15: 0 | X15: 0 | AC15: 1007 | AD15: =(J15+R15)/AC15 -> 5.188596491 | AE15: =(L15+T15)/AC15 -> 4.138282026 | AF15: =(N15+V15)/AC15 -> 0.01142005958 | AG15: =(P15+X15)/AC15 -> 0 | AH15: =Z15/AC15 -> 0 | AI15: =AB15/AC15 -> 0 | AJ15: =(J15+L15+N15+P15+R15+T15+V15+X15+Z15+AB15)/AC15 -> 9.338298577 | AK15: =J15/I15 -> 0.8368240413 | AL15: =L15/K15 -> 1.102463768 | AM15: =IFERROR(N15/M15,"-") -> - | AN15: =IFERROR(P15/O15,"-") -> - | AO15: =R15/Q15 -> 0.8516908213 | AP15: =T15/S15 -> 1.313333333 | AQ15: =IFERROR(V15/U15,"-") -> - | AR15: =IFERROR(X15/W15,"-") -> -
A16: =IF(Q50=1,"No Site Selected",IF(R50=1,"No Ward Name","")) ->  | B16: 2 | D16: =IF(ISNA(VLOOKUP($E$5&E16,$BR:$BS,2,FALSE)),"",VLOOKUP($E$5&E16,$BR:$BS,2,FALSE)) -> RWG02 | E16: WATFORD GENERAL HOSPITAL | F16: AAU Red Suite (Granger) | G16: 430 - GERIATRIC MEDICINE | I16: 977.52 | J16: 892.25 | K16: 769.08 | L16: 878.8333333 | M16: 0 | N16: 57.5 | O16: 0 | P16: 0 | Q16: 1023.5 | R16: 874 | S16: 609.5 | T16: 954.5 | U16: 0 | V16: 46 | W16: 0 | X16: 0 | AC16: 498 | AD16: 3.546686747 | AE16: 3.681392236 | AF16: 0.2078313253 | AG16: 0 | AH16: 0 | AI16: 0 | AJ16: 7.435910308 | AK16: 0.9127690482 | AL16: 1.142707304 | AM16: - | AN16: - | AO16: 0.8539325843 | AP16: 1.566037736 | AQ16: - | AR16: - | AV16: 130 - OPHTHALMOLOGY | AW16: 0 | BG16: =IF(Q50=1,"No Site Selected","") ->  | BH16: =IF(R50=1,"No Ward Name","") ->  | BM16: =IF(C50=1,"Incorrect Ward Name","") ->  | BR16: =CONCATENATE(LEFT(BS16, 3),BT16) -> NLXTROWBRIDGE COMMUNITY HOSPITAL | BS16: NLX20 | BT16: TROWBRIDGE COMMUNITY HOSPITAL | BU16: NLX20 | BV16: TROWBRIDGE COMMUNITY HOSPITAL | BW16: NLX | BZ16: UNIVERSITY HOSPITAL AINTREE | CA16: AMU | CB16: WATFORD GENERAL HOSPITAL | CD16: Match: | CE16: 6283 | CF16: Countif: | CG16: 6312 | CH16: Concat Items: | CI16: $CA | CJ16: :$CA | CL16: Concat Final: | CM16: $CA6283:$CA6312
B17: 2 | D17: RWG02 | E17: WATFORD GENERAL HOSPITAL | F17: Acute Stroke Unit | G17: 328 - STROKE MEDICINE | I17: 2282.083333 | J17: 2003.25 | K17: 1345.25 | L17: 1451.75 | M17: 46 | N17: 0 | O17: 0 | P17: 0 | Q17: 2070 | R17: 1851.5 | S17: 1334 | T17: 1862.5 | U17: 46 | V17: 0 | W17: 0 | X17: 0 | AC17: 815 | AD17: 4.729754601 | AE17: 4.066564417 | AF17: 0 | AG17: 0 | AH17: 0 | AI17: 0 | AJ17: 8.796319018 | AK17: 0.8778163228 | AL17: 1.079167441 | AM17: 0 | AN17: - | AO17: 0.8944444444 | AP17: 1.396176912 | AQ17: 0 | AR17: - | AV17: 140 - ORAL SURGERY | AW17: 0 | BR17: NQ1ACE (THE CRESCENT, COLCHESTER) | BS17: NQ114 | BT17: ACE (THE CRESCENT, COLCHESTER) | BU17: NQ114 | BV17: ACE (THE CRESCENT, COLCHESTER) | BW17: NQ1 | BY17: Match: | BZ17: UNIVERSITY HOSPITAL AINTREE | CA17: Critical care | CB17: WATFORD GENERAL HOSPITAL | CD17: Match: | CE17: 6283 | CF17: Countif: | CG17: 6312 | CH17: Concat Items: | CI17: $CA | CJ17: :$CA | CL17: Concat Final: | CM17: $CA6283:$CA6312
B18: 2 | D18: RWG02 | E18: WATFORD GENERAL HOSPITAL | F18: Aldenham | G18: 340 - RESPIRATORY MEDICINE | I18: 1380 | J18: 1379 | K18: 1426 | L18: 1975.083333 | M18: 292 | N18: 0 | O18: 0 | P18: 0 | Q18: 1035 | R18: 1301.5 | S18: 1081 | T18: 1805.5 | U18: 299 | V18: 0 | W18: 0 | X18: 0 | AC18: 804 | AD18: 3.333955224 | AE18: 4.702218076 | AF18: 0 | AG18: 0 | AH18: 0 | AI18: 0 | AJ18: 8.0361733 | AK18: 0.9992753623 | AL18: 1.385051426 | AM18: 0 | AN18: - | AO18: 1.257487923 | AP18: 1.670212766 | AQ18: 0 | AR18: - | AV18: 141 - RESTORATIVE DENTISTRY | AW18: 0 | BR18: NQ1ACE CIC (CLACTON ON SEA) | BS18: NQ101 | BT18: ACE CIC (CLACTON ON SEA) | BU18: NQ101 | BV18: ACE CIC (CLACTON ON SEA) | BW18: NQ1 | BY18: 3129 | BZ18: UNIVERSITY HOSPITAL AINTREE | CA18: FAU | CB18: WATFORD GENERAL HOSPITAL | CD18: Match: | CE18: 6283 | CF18: Countif: | CG18: 6312 | CH18: Concat Items: | CI18: $CA | CJ18: :$CA | CL18: Concat Final: | CM18: $CA6283:$CA6312
B19: 2 | D19: RWG02 | E19: WATFORD GENERAL HOSPITAL | F19: Bluebell | G19: 430 - GERIATRIC MEDICINE | I19: 690 | J19: 690 | K19: 644 | L19: 615.25 | M19: 0 | N19: 11.5 | O19: 0 | P19: 0 | Q19: 690 | R19: 667 | S19: 724.5 | T19: 805 | U19: 0 | V19: 34.5 | W19: 0 | X19: 0 | AC19: 202 | AD19: 6.717821782 | AE19: 7.030940594 | AF19: 0.2277227723 | AG19: 0 | AH19: 0 | AI19: 0 | AJ19: 13.97648515 | AK19: 1 | AL19: 0.9553571429 | AM19: - | AN19: - | AO19: 0.9666666667 | AP19: 1.111111111 | AQ19: - | AR19: - | AV19: 142 - PAEDIATRIC DENTISTRY | AW19: 0 | BR19: NQ1CLACTON HOSPITAL | BS19: NQ108 | BT19: CLACTON HOSPITAL | BU19: NQ108 | BV19: CLACTON HOSPITAL | BW19: NQ1 | BY19: Countif: | BZ19: UNIVERSITY HOSPITAL AINTREE | CA19: MTW | CB19: WATFORD GENERAL HOSPITAL | CD19: Match: | CE19: 6283 | CF19: Countif: | CG19: 6312 | CH19: Concat Items: | CI19: $CA | CJ19: :$CA | CL19: Concat Final: | CM19: $CA6283:$CA6312
B20: 2 | D20: RWG02 | E20: WATFORD GENERAL HOSPITAL | F20: Cardiac Care | G20: 320 - CARDIOLOGY | I20: 2070 | J20: 1815.166667 | K20: 690 | L20: 678.5 | M20: 0 | N20: 0 | O20: 0 | P20: 0 | Q20: 1725 | R20: 1702 | S20: 345 | T20: 391 | U20: 0 | V20: 0 | W20: 0 | X20: 0 | AC20: 698 | AD20: 5.038920726 | AE20: 1.532234957 | AF20: 0 | AG20: 0 | AH20: 0 | AI20: 0 | AJ20: 6.571155683 | AK20: 0.8768921095 | AL20: 0.9833333333 | AM20: - | AN20: - | AO20: 0.9866666667 | AP20: 1.133333333 | AQ20: - | AR20: - | AV20: 143 - ORTHODONTICS | AW20: 0 | BR20: NQ1COLCHESTER GENERAL HOSPITAL | BS20: NQ107 | BT20: COLCHESTER GENERAL HOSPITAL | BU20: NQ107 | BV20: COLCHESTER GENERAL HOSPITAL | BW20: NQ1 | BY20: 3133 | BZ20: UNIVERSITY HOSPITAL AINTREE | CA20: Sefton Suite | CB20: WATFORD GENERAL HOSPITAL | CD20: Match: | CE20: 6283 | CF20: Countif: | CG20: 6312 | CH20: Concat Items: | CI20: $CA | CJ20: :$CA | CL20: Concat Final: | CM20: $CA6283:$CA6312
B21: 2 | D21: RWG02 | E21: WATFORD GENERAL HOSPITAL | F21: Cassio | G21: 301 - GASTROENTEROLOGY | I21: 686.5 | J21: 718.75 | K21: 681.4166667 | L21: 767.75 | M21: 345 | N21: 126.5 | O21: 0 | P21: 0 | Q21: 690 | R21: 690 | S21: 345 | T21: 742.75 | U21: 345 | V21: 46 | W21: 0 | X21: 0 | AC21: 598 | AD21: 2.355769231 | AE21: 2.525919732 | AF21: 0.2884615385 | AG21: 0 | AH21: 0 | AI21: 0 | AJ21: 5.170150502 | AK21: 1.046977422 | AL21: 1.126696833 | AM21: 0.3666666667 | AN21: - | AO21: 1 | AP21: 2.152898551 | AQ21: 0.1333333333 | AR21: - | AV21: 145 - ORAL & MAXILLO FACIAL SURGERY | AW21: 0 | BR21: NQ1CONNAUGHT MEWS SUITES 6-10 | BS21: NQ126 | BT21: CONNAUGHT MEWS SUITES 6-10 | BU21: NQ126 | BV21: CONNAUGHT MEWS SUITES 6-10 | BW21: NQ1 | BY21: Concat Items: | BZ21: UNIVERSITY HOSPITAL AINTREE | CA21: Ward 01 | CB21: WATFORD GENERAL HOSPITAL | CD21: Match: | CE21: 6283 | CF21: Countif: | CG21: 6312 | CH21: Concat Items: | CI21: $CA | CJ21: :$CA | CL21: Concat Final: | CM21: $CA6283:$CA6312
B22: 2 | D22: RWG02 | E22: WATFORD GENERAL HOSPITAL | F22: Croxley | G22: 430 - GERIATRIC MEDICINE | I22: 1035 | J22: 1092.5 | K22: 1725 | L22: 1517.833333 | M22: 0 | N22: 0 | O22: 0 | P22: 0 | Q22: 1035 | R22: 1059 | S22: 1381 | T22: 1483.5 | U22: 0 | V22: 0 | W22: 0 | X22: 0 | AC22: 831 | AD22: 2.589049338 | AE22: 3.611712796 | AF22: 0 | AG22: 0 | AH22: 0 | AI22: 0 | AJ22: 6.200762134 | AK22: 1.055555556 | AL22: 0.8799033816 | AM22: - | AN22: - | AO22: 1.023188406 | AP22: 1.074221579 | AQ22: - | AR22: - | AV22: 150 - NEUROSURGERY | AW22: 0 | BR22: NQ1CORNERSTONE | BS22: NQ123 | BT22: CORNERSTONE | BU22: NQ123 | BV22: CORNERSTONE | BW22: NQ1 | BY22: $BT | BZ22: UNIVERSITY HOSPITAL AINTREE | CA22: Ward 10 | CB22: WATFORD GENERAL HOSPITAL | CD22: Match: | CE22: 6283 | CF22: Countif: | CG22: 6312 | CH22: Concat Items: | CI22: $CA | CJ22: :$CA | CL22: Concat Final: | CM22: $CA6283:$CA6312
B23: 2 | D23: RWG02 | E23: WATFORD GENERAL HOSPITAL | F23: Heronsgate | G23: 302 - ENDOCRINOLOGY | I23: 987.5 | J23: 906.25 | K23: 746.25 | L23: 997.25 | M23: 0 | N23: 0 | O23: 0 | P23: 0 | Q23: 989 | R23: 943 | S23: 736 | T23: 1471.666667 | U23: 0 | V23: 0 | W23: 0 | X23: 0 | AC23: 582 | AD23: 3.177405498 | AE23: 4.242124857 | AF23: 0 | AG23: 0 | AH23: 0 | AI23: 0 | AJ23: 7.419530355 | AK23: 0.917721519 | AL23: 1.336348409 | AM23: - | AN23: - | AO23: 0.9534883721 | AP23: 1.999547101 | AQ23: - | AR23: - | AV23: 160 - PLASTIC SURGERY | AW23: 0 | BR23: NQ1FRYATT HOSPITAL | BS23: NQ106 | BT23: FRYATT HOSPITAL | BU23: NQ106 | BV23: FRYATT HOSPITAL | BW23: NQ1 | BY23: :$BT | BZ23: UNIVERSITY HOSPITAL AINTREE | CA23: Ward 11 | CB23: WATFORD GENERAL HOSPITAL | CD23: Match: | CE23: 6283 | CF23: Countif: | CG23: 6312 | CH23: Concat Items: | CI23: $CA | CJ23: :$CA | CL23: Concat Final: | CM23: $CA6283:$CA6312
B24: 2 | D24: RWG02 | E24: WATFORD GENERAL HOSPITAL | F24: Gade | G24: 302 - ENDOCRINOLOGY | I24: 678.5 | J24: 683.8333333 | K24: 1035 | L24: 1086.25 | M24: 0 | N24: 0 | O24: 0 | P24: 0 | Q24: 690 | R24: 690 | S24: 1035 | T24: 1127 | U24: 0 | V24: 0 | W24: 0 | X24: 0 | AC24: 491 | AD24: 2.798031229 | AE24: 4.507637475 | AF24: 0 | AG24: 0 | AH24: 0 | AI24: 0 | AJ24: 7.305668703 | AK24: 1.007860477 | AL24: 1.049516908 | AM24: - | AN24: - | AO24: 1 | AP24: 1.088888889 | AQ24: - | AR24: - | AV24: 160 - PLASTIC SURGERY | AW24: 0 | BR24: NQ1FRYATT HOSPITAL | BS24: NQ106 | BT24: FRYATT HOSPITAL | BU24: NQ106 | BV24: FRYATT HOSPITAL | BW24: NQ1 | BY24: :$BT | BZ24: UNIVERSITY HOSPITAL AINTREE | CA24: Ward 11 | CB24: WATFORD GENERAL HOSPITAL | CD24: Match: | CE24: 6283 | CF24: Countif: | CG24: 6312 | CH24: Concat Items: | CI24: $CA | CJ24: :$CA | CL24: Concat Final: | CM24: $CA6283:$CA6312
A25: =IF(Q58=1,"No Site Selected",IF(R58=1,"No Ward Name","")) ->  | B25: 2 | D25: =IF(ISNA(VLOOKUP($E$5&E25,$BR:$BS,2,FALSE)),"",VLOOKUP($E$5&E25,$BR:$BS,2,FALSE)) -> RWG02 | E25: WATFORD GENERAL HOSPITAL | F25: Oxhey | G25: 326 - ACUTE INTERNAL MEDICINE | I25: 673.75 | J25: 673.75 | K25: 1380 | L25: 1499 | M25: 0 | N25: 69 | O25: 0 | P25: 0 | Q25: 690 | R25: 690 | S25: 1380 | T25: 1700.5 | U25: 0 | V25: 34.5 | W25: 0 | X25: 0 | AC25: 347 | AD25: 3.930115274 | AE25: 9.220461095 | AF25: 0.2982708934 | AG25: 0 | AH25: 0 | AI25: 0 | AJ25: 13.44884726 | AK25: 1 | AL25: 1.086231884 | AM25: - | AN25: - | AO25: 1 | AP25: 1.232246377 | AQ25: - | AR25: - | AV25: 170 - CARDIOTHORACIC SURGERY | AW25: 0 | BG25: =IF(Q58=1,"No Site Selected","") ->  | BH25: =IF(R58=1,"No Ward Name","") ->  | BM25: =IF(C58=1,"Incorrect Ward Name","") ->  | BR25: NVCASHTEAD HOSPITAL | BS25: NVC01 | BT25: ASHTEAD HOSPITAL | BU25: NVC01 | BV25: ASHTEAD HOSPITAL | BW25: NVC | BZ25: UNIVERSITY HOSPITAL AINTREE | CA25: Ward 15 | CB25: WATFORD GENERAL HOSPITAL | CD25: Match: | CE25: 6283 | CF25: Countif: | CG25: 6312 | CH25: Concat Items: | CI25: $CA | CJ25: :$CA | CL25: Concat Final: | CM25: $CA6283:$CA6312
A26: =IF(Q59=1,"No Site Selected",IF(R59=1,"No Ward Name","")) ->  | B26: 2 | D26: RWG02 | E26: WATFORD GENERAL HOSPITAL | F26: Sarratt | G26: 430 - GERIATRIC MEDICINE | I26: 1725 | J26: 1671.666667 | K26: 1728.75 | L26: 1902.25 | M26: 0 | N26: 57.5 | O26: 0 | P26: 0 | Q26: 1380 | R26: 1449 | S26: 2058.5 | T26: 2426.5 | U26: 0 | V26: 23 | W26: 0 | X26: 0 | AC26: 1053 | AD26: 2.963596075 | AE26: 4.110873694 | AF26: 0.07644824311 | AG26: 0 | AH26: 0 | AI26: 0 | AJ26: 7.150918012 | AK26: 0.9690821256 | AL26: 1.100361533 | AM26: - | AN26: - | AO26: 1.05 | AP26: 1.17877095 | AQ26: - | AR26: - | AV26: 171 - PAEDIATRIC SURGERY | AW26: 0 | BG26: =IF(Q59=1,"No Site Selected","") ->  | BH26: =IF(R59=1,"No Ward Name","") ->  | BM26: =IF(C59=1,"Incorrect Ward Name","") ->  | BR26: NVCBLAKELANDS HOSPITAL | BS26: NVC31 | BT26: BLAKELANDS HOSPITAL | BU26: NVC31 | BV26: BLAKELANDS HOSPITAL | BW26: NVC | BY26: Concat Final: | BZ26: UNIVERSITY HOSPITAL AINTREE | CA26: Ward 16 | CB26: WATFORD GENERAL HOSPITAL | CD26: Match: | CE26: 6283 | CF26: Countif: | CG26: 6312 | CH26: Concat Items: | CI26: $CA | CJ26: :$CA | CL26: Concat Final: | CM26: $CA6283:$CA6312
A27: =IF(Q61=1,"No Site Selected",IF(R61=1,"No Ward Name","")) ->  | B27: 2 | D27: RWG02 | E27: WATFORD GENERAL HOSPITAL | F27: Tudor | G27: 430 - GERIATRIC MEDICINE | I27: 1035 | J27: 1328.5 | K27: 1679 | L27: 1282.25 | M27: 46 | N27: 34.5 | O27: 0 | P27: 0 | Q27: 1035 | R27: 1449 | S27: 1679 | T27: 1610 | U27: 46 | V27: 0 | W27: 0 | X27: 0 | AC27: 755 | AD27: 3.678807947 | AE27: 3.830794702 | AF27: 0.04569536424 | AG27: 0 | AH27: 0 | AI27: 0 | AJ27: 7.555298013 | AK27: 1.283574879 | AL27: 0.7636986301 | AM27: 0.75 | AN27: - | AO27: 1.4 | AP27: 0.9589041096 | AQ27: 0 | AR27: - | AV27: 190 - ANAESTHETICS | AW27: 0 | BG27: =IF(Q61=1,"No Site Selected","") ->  | BH27: =IF(R61=1,"No Ward Name","") ->  | BM27: =IF(C61=1,"Incorrect Ward Name","") ->  | BR27: NVCBOSTON WEST HOSPITAL | BS27: NVC27 | BT27: BOSTON WEST HOSPITAL | BU27: NVC27 | BV27: BOSTON WEST HOSPITAL | BW27: NVC | BZ27: UNIVERSITY HOSPITAL AINTREE | CA27: Ward 20 | CB27: WATFORD GENERAL HOSPITAL | CD27: Match: | CE27: 6283 | CF27: Countif: | CG27: 6312 | CH27: Concat Items: | CI27: $CA | CJ27: :$CA | CL27: Concat Final: | CM27: $CA6283:$CA6312
A28: =IF(Q62=1,"No Site Selected",IF(R62=1,"No Ward Name","")) ->  | B28: 2 | D28: RWG02 | E28: WATFORD GENERAL HOSPITAL | F28: Winyard | G28: 430 - GERIATRIC MEDICINE | I28: 874 | J28: 736 | K28: 1035 | L28: 741.75 | M28: 0 | N28: 11.5 | O28: 0 | P28: 0 | Q28: 862.5 | R28: 759 | S28: 1035 | T28: 1081 | U28: 0 | V28: 11.5 | W28: 0 | X28: 0 | AC28: 432 | AD28: 3.460648148 | AE28: 4.219328704 | AF28: 0.05324074074 | AG28: 0 | AH28: 0 | AI28: 0 | AJ28: 7.733217593 | AK28: 0.8421052632 | AL28: 0.7166666667 | AM28: - | AN28: - | AO28: 0.88 | AP28: 1.044444444 | AQ28: - | AR28: - | AV28: 192 - CRITICAL CARE MEDICINE | AW28: 0 | BG28: =IF(Q62=1,"No Site Selected","") ->  | BH28: =IF(R62=1,"No Ward Name","") ->  | BM28: =IF(C62=1,"Incorrect Ward Name","") ->  | BR28: NVCCLIFTON PARK HOSPITAL | BS28: NVC28 | BT28: CLIFTON PARK HOSPITAL | BU28: NVC28 | BV28: CLIFTON PARK HOSPITAL | BW28: NVC | BZ28: UNIVERSITY HOSPITAL AINTREE | CA28: Ward 21 | CB28: WATFORD GENERAL HOSPITAL | CD28: Match: | CE28: 6283 | CF28: Countif: | CG28: 6312 | CH28: Concat Items: | CI28: $CA | CJ28: :$CA | CL28: Concat Final: | CM28: $CA6283:$CA6312
B29: 2 | D29: RWG02 | E29: WATFORD GENERAL HOSPITAL | F29: Combined ITU | G29: 192 - CRITICAL CARE MEDICINE | I29: 3959.833333 | J29: 3757.833333 | K29: 419.5 | L29: 442.5 | M29: 0 | N29: 0 | O29: 0 | P29: 0 | Q29: 4211 | R29: 3797.5 | S29: 264.5 | T29: 276 | U29: 0 | V29: 0 | W29: 0 | X29: 0 | AC29: 385 | AD29: 19.62424242 | AE29: 1.866233766 | AF29: 0 | AG29: 0 | AH29: 0 | AI29: 0 | AJ29: 21.49047619 | AK29: 0.948987752 | AL29: 1.054827175 | AM29: - | AN29: - | AO29: 0.901804797 | AP29: 1.043478261 | AQ29: - | AR29: - | AV29: 300 - GENERAL MEDICINE | AW29: 0 | BR29: NVCCOBALT HOSPITAL | BS29: NVC29 | BT29: COBALT HOSPITAL | BU29: NVC29 | BV29: COBALT HOSPITAL | BW29: NVC | BZ29: UNIVERSITY HOSPITAL AINTREE | CA29: Ward 22 | CB29: WATFORD GENERAL HOSPITAL | CD29: Match: | CE29: 6283 | CF29: Countif: | CG29: 6312 | CH29: Concat Items: | CI29: $CA | CJ29: :$CA | CL29: Concat Final: | CM29: $CA6283:$CA6312
B30: 2 | D30: RWG02 | E30: WATFORD GENERAL HOSPITAL | F30: Cleves | G30: 100 - GENERAL SURGERY | I30: 678.5 | J30: 1027.5 | K30: 1334 | L30: 1016.75 | M30: 46 | N30: 0 | O30: 0 | P30: 0 | Q30: 1035 | R30: 1035 | S30: 688.75 | T30: 746.25 | U30: 0 | V30: 0 | W30: 0 | X30: 0 | AC30: 603 | AD30: 3.42039801 | AE30: 2.92371476 | AF30: 0 | AG30: 0 | AH30: 0 | AI30: 0 | AJ30: 6.344112769 | AK30: 1.514369934 | AL30: 0.7621814093 | AM30: 0 | AN30: - | AO30: 1 | AP30: 1.083484574 | AQ30: - | AR30: - | AV30: 301 - GASTROENTEROLOGY | AW30: 0 | BR30: NVCDUCHY HOSPITAL | BS30: NVC04 | BT30: DUCHY HOSPITAL | BU30: NVC04 | BV30: DUCHY HOSPITAL | BW30: NVC | BZ30: UNIVERSITY HOSPITAL AINTREE | CA30: Ward 23 | CB30: WATFORD GENERAL HOSPITAL | CD30: Match: | CE30: 6283 | CF30: Countif: | CG30: 6312 | CH30: Concat Items: | CI30: $CA | CJ30: :$CA | CL30: Concat Final: | CM30: $CA6283:$CA6312
B31: 2 | D31: RWG03 | E31: ST ALBANS CITY HOSPITAL | F31: De La Mare / Beckett | G31: 110 - TRAUMA & ORTHOPAEDICS | I31: 1538.25 | J31: 1487.25 | K31: 632.5 | L31: 679.8333333 | M31: 0 | N31: 57.5 | O31: 0 | P31: 0 | Q31: 1115.5 | R31: 1115.5 | S31: 621 | T31: 563.5 | U31: 0 | V31: 57.5 | W31: 0 | X31: 0 | AC31: 269 | AD31: 9.675650558 | AE31: 4.622057001 | AF31: 0.4275092937 | AG31: 0 | AH31: 0 | AI31: 0 | AJ31: 14.72521685 | AK31: 0.9668454412 | AL31: 1.07483531 | AM31: - | AN31: - | AO31: 1 | AP31: 0.9074074074 | AQ31: - | AR31: - | AV31: 302 - ENDOCRINOLOGY | AW31: 0 | BR31: NVCEUXTON HALL HOSPITAL | BS31: NVC05 | BT31: EUXTON HALL HOSPITAL | BU31: NVC05 | BV31: EUXTON HALL HOSPITAL | BW31: NVC | BZ31: UNIVERSITY HOSPITAL AINTREE | CA31: Ward 24 | CB31: ST ALBANS CITY HOSPITAL | CD31: Match: | CE31: 6282 | CF31: Countif: | CG31: 6282 | CH31: Concat Items: | CI31: $CA | CJ31: :$CA | CL31: Concat Final: | CM31: $CA6282:$CA6282
B32: 2 | D32: RWG02 | E32: WATFORD GENERAL HOSPITAL | F32: Elizabeth | G32: 502 - GYNAECOLOGY | I32: 1035 | J32: 1378.25 | K32: 1380 | L32: 1121.75 | M32: 0 | N32: 0 | O32: 0 | P32: 0 | Q32: 1035 | R32: 1196 | S32: 690 | T32: 1035 | U32: 0 | V32: 0 | W32: 0 | X32: 0 | AC32: 849 | AD32: 3.032096584 | AE32: 2.540341578 | AF32: 0 | AG32: 0 | AH32: 0 | AI32: 0 | AJ32: 5.572438163 | AK32: 1.331642512 | AL32: 0.8128623188 | AM32: - | AN32: - | AO32: 1.155555556 | AP32: 1.5 | AQ32: - | AR32: - | AV32: 303 - CLINICAL HAEMATOLOGY | AW32: 0 | BR32: NVCFITZWILLIAM HOSPITAL | BS32: NVC06 | BT32: FITZWILLIAM HOSPITAL | BU32: NVC06 | BV32: FITZWILLIAM HOSPITAL | BW32: NVC | BZ32: UNIVERSITY HOSPITAL AINTREE | CA32: Ward 25 | CB32: WATFORD GENERAL HOSPITAL | CD32: Match: | CE32: 6283 | CF32: Countif: | CG32: 6312 | CH32: Concat Items: | CI32: $CA | CJ32: :$CA | CL32: Concat Final: | CM32: $CA6283:$CA6312
B33: 2 | D33: RWG02 | E33: WATFORD GENERAL HOSPITAL | F33: Flaunden | G33: 100 - GENERAL SURGERY | I33: 1035 | J33: 1268 | K33: 1380 | L33: 1644.5 | M33: 345 | N33: 0 | O33: 0 | P33: 0 | Q33: 1380 | R33: 1299.5 | S33: 1035 | T33: 1414.5 | U33: 0 | V33: 0 | W33: 0 | X33: 0 | AC33: 568 | AD33: 4.520246479 | AE33: 5.38556338 | AF33: 0 | AG33: 0 | AH33: 0 | AI33: 0 | AJ33: 9.905809859 | AK33: 1.225120773 | AL33: 1.191666667 | AM33: 0 | AN33: - | AO33: 0.9416666667 | AP33: 1.366666667 | AQ33: - | AR33: - | AV33: 304 - CLINICAL PHYSIOLOGY | AW33: 0 | BR33: NVCFULWOOD HALL HOSPITAL | BS33: NVC07 | BT33: FULWOOD HALL HOSPITAL | BU33: NVC07 | BV33: FULWOOD HALL HOSPITAL | BW33: NVC | BZ33: UNIVERSITY HOSPITAL AINTREE | CA33: Ward 28 | CB33: WATFORD GENERAL HOSPITAL | CD33: Match: | CE33: 6283 | CF33: Countif: | CG33: 6312 | CH33: Concat Items: | CI33: $CA | CJ33: :$CA | CL33: Concat Final: | CM33: $CA6283:$CA6312
B34: 2 | D34: RWG02 | E34: WATFORD GENERAL HOSPITAL | F34: Langley | G34: 110 - TRAUMA & ORTHOPAEDICS | I34: 690 | J34: 702.25 | K34: 690 | L34: 911.25 | M34: 0 | N34: 0 | O34: 0 | P34: 0 | Q34: 678.5 | R34: 690 | S34: 345 | T34: 609.5 | U34: 0 | V34: 0 | W34: 0 | X34: 0 | AC34: 458 | AD34: 3.039847162 | AE34: 3.320414847 | AF34: 0 | AG34: 0 | AH34: 0 | AI34: 0 | AJ34: 6.360262009 | AK34: 1.017753623 | AL34: 1.320652174 | AM34: - | AN34: - | AO34: 1.016949153 | AP34: 1.766666667 | AQ34: - | AR34: - | AV34: 305 - CLINICAL PHARMACOLOGY | AW34: 0 | BR34: NVCHORTON NHS TREATMENT CENTRE | BS34: NVC25 | BT34: HORTON NHS TREATMENT CENTRE | BU34: NVC25 | BV34: HORTON NHS TREATMENT CENTRE | BW34: NVC | BZ34: UNIVERSITY HOSPITAL AINTREE | CA34: Ward 29/SAU | CB34: WATFORD GENERAL HOSPITAL | CD34: Match: | CE34: 6283 | CF34: Countif: | CG34: 6312 | CH34: Concat Items: | CI34: $CA | CJ34: :$CA | CL34: Concat Final: | CM34: $CA6283:$CA6312
B35: 2 | D35: RWG02 | E35: WATFORD GENERAL HOSPITAL | F35: Letchmore | G35: 100 - GENERAL SURGERY | I35: 1035 | J35: 1063.25 | K35: 1035 | L35: 1364 | M35: 0 | N35: 0 | O35: 0 | P35: 0 | Q35: 1035 | R35: 1138.5 | S35: 690 | T35: 1023.5 | U35: 0 | V35: 0 | W35: 0 | X35: 0 | AC35: 710 | AD35: 3.101056338 | AE35: 3.362676056 | AF35: 0 | AG35: 0 | AH35: 0 | AI35: 0 | AJ35: 6.463732394 | AK35: 1.027294686 | AL35: 1.317874396 | AM35: - | AN35: - | AO35: 1.1 | AP35: 1.483333333 | AQ35: - | AR35: - | AV35: 307 - DIABETIC MEDICINE | AW35: 0 | BR35: NVCMOUNT STUART HOSPITAL | BS35: NVC08 | BT35: MOUNT STUART HOSPITAL | BU35: NVC08 | BV35: MOUNT STUART HOSPITAL | BW35: NVC | BZ35: UNIVERSITY HOSPITAL AINTREE | CA35: Ward 3 | CB35: WATFORD GENERAL HOSPITAL | CD35: Match: | CE35: 6283 | CF35: Countif: | CG35: 6312 | CH35: Concat Items: | CI35: $CA | CJ35: :$CA | CL35: Concat Final: | CM35: $CA6283:$CA6312
B36: 2 | D36: RWG02 | E36: WATFORD GENERAL HOSPITAL | F36: Ridge | G36: 110 - TRAUMA & ORTHOPAEDICS | I36: 1391.5 | J36: 1326.5 | K36: 1385.75 | L36: 1682.083333 | M36: 0 | N36: 34.5 | O36: 0 | P36: 0 | Q36: 1380 | R36: 1334 | S36: 1035 | T36: 1506.5 | U36: 0 | V36: 0 | W36: 0 | X36: 0 | AC36: 787 | AD36: 3.380559085 | AE36: 4.051567133 | AF36: 0.04383735705 | AG36: 0 | AH36: 0 | AI36: 0 | AJ36: 7.475963575 | AK36: 0.9532878189 | AL36: 1.213843286 | AM36: - | AN36: - | AO36: 0.9666666667 | AP36: 1.455555556 | AQ36: - | AR36: - | AV36: 310 - AUDIOLOGICAL MEDICINE | AW36: 0 | BR36: NVCNEW HALL HOSPITAL | BS36: NVC09 | BT36: NEW HALL HOSPITAL | BU36: NVC09 | BV36: NEW HALL HOSPITAL | BW36: NVC | BZ36: UNIVERSITY HOSPITAL AINTREE | CA36: Ward 30 | CB36: WATFORD GENERAL HOSPITAL | CD36: Match: | CE36: 6283 | CF36: Countif: | CG36: 6312 | CH36: Concat Items: | CI36: $CA | CJ36: :$CA | CL36: Concat Final: | CM36: $CA6283:$CA6312
B37: 2 | D37: RWG02 | E37: WATFORD GENERAL HOSPITAL | F37: ABC | G37: 501 - OBSTETRICS | I37: 667 | J37: 0 | K37: 0 | L37: 0 | M37: 0 | N37: 0 | O37: 0 | P37: 0 | Q37: 667 | R37: 0 | S37: 0 | T37: 0 | U37: 0 | V37: 0 | W37: 0 | X37: 0 | AC37: 0 | AK37: 0 | AM37: - | AN37: - | AO37: 0 | AQ37: - | AR37: - | AV37: 313 - CLINICAL IMMUNOLOGY AND ALLERGY | AW37: 0 | BR37: NVCNORTH DOWNS HOSPITAL | BS37: NVC11 | BT37: NORTH DOWNS HOSPITAL | BU37: NVC11 | BV37: NORTH DOWNS HOSPITAL | BW37: NVC | BZ37: UNIVERSITY HOSPITAL AINTREE | CA37: Ward 32 | CB37: WATFORD GENERAL HOSPITAL | CD37: Match: | CE37: 6283 | CF37: Countif: | CG37: 6312 | CH37: Concat Items: | CI37: $CA | CJ37: :$CA | CL37: Concat Final: | CM37: $CA6283:$CA6312
B38: 2 | D38: RWG02 | E38: WATFORD GENERAL HOSPITAL | F38: Delivery Suite | G38: 501 - OBSTETRICS | I38: 2930.25 | J38: 2516.833333 | K38: 816.5 | L38: 724.5 | M38: 0 | N38: 0 | Q38: 2744.25 | R38: 2185 | S38: 931.5 | T38: 902 | U38: 0 | V38: 0 | W38: 0 | X38: 0 | AC38: 277 | AD38: 16.97412756 | AE38: 5.871841155 | AF38: 0 | AG38: 0 | AH38: 0 | AI38: 0 | AJ38: 22.84596871 | AK38: 0.8589141996 | AL38: 0.8873239437 | AM38: - | AN38: - | AO38: 0.7962102578 | AP38: 0.9683306495 | AQ38: - | AR38: - | AV38: 314 - REHABILITATION | AW38: 0 | BR38: NVCNOTTINGHAM WOODTHORPE HOSPITAL | BS38: NVC40 | BT38: NOTTINGHAM WOODTHORPE HOSPITAL | BU38: NVC40 | BV38: NOTTINGHAM WOODTHORPE HOSPITAL | BW38: NVC | BZ38: UNIVERSITY HOSPITAL AINTREE | CA38: Ward 33 | CB38: WATFORD GENERAL HOSPITAL | CD38: Match: | CE38: 6283 | CF38: Countif: | CG38: 6312 | CH38: Concat Items: | CI38: $CA | CJ38: :$CA | CL38: Concat Final: | CM38: $CA6283:$CA6312
B39: 2 | D39: RWG02 | E39: WATFORD GENERAL HOSPITAL | F39: Katherine | G39: 501 - OBSTETRICS | I39: 1386.666667 | J39: 1139.083333 | K39: 1382.5 | L39: 990.5 | M39: 0 | N39: 155.25 | O39: 0 | P39: 0 | Q39: 1035 | R39: 937.5 | S39: 1368.5 | T39: 1161.5 | U39: 0 | V39: 80.5 | W39: 0 | X39: 0 | AC39: 863 | AD39: 2.40623793 | AE39: 2.493626883 | AF39: 0.273174971 | AG39: 0 | AH39: 0 | AI39: 0 | AJ39: 5.173039784 | AK39: 0.8214543269 | AL39: 0.7164556962 | AM39: - | AN39: - | AO39: 0.9057971014 | AP39: 0.8487394958 | AQ39: - | AR39: - | AV39: 315 - PALLIATIVE MEDICINE | AW39: 0 | BR39: NVCOAKLANDS HOSPITAL | BS39: NVC12 | BT39: OAKLANDS HOSPITAL | BU39: NVC12 | BV39: OAKLANDS HOSPITAL | BW39: NVC | BZ39: UNIVERSITY HOSPITAL AINTREE | CA39: Ward 34 | CB39: WATFORD GENERAL HOSPITAL | CD39: Match: | CE39: 6283 | CF39: Countif: | CG39: 6312 | CH39: Concat Items: | CI39: $CA | CJ39: :$CA | CL39: Concat Final: | CM39: $CA6283:$CA6312
B40: 2 | D40: RWG02 | E40: WATFORD GENERAL HOSPITAL | F40: Victoria | G40: 501 - OBSTETRICS | I40: 688.75 | J40: 688.0833333 | K40: 345 | L40: 323.3333333 | M40: 0 | N40: 0 | O40: 0 | P40: 0 | Q40: 690 | R40: 713 | S40: 345 | T40: 310.5 | U40: 0 | V40: 0 | W40: 0 | X40: 0 | AC40: 258 | AD40: 5.430555556 | AE40: 2.456718346 | AF40: 0 | AG40: 0 | AH40: 0 | AI40: 0 | AJ40: 7.887273902 | AK40: 0.9990320629 | AL40: 0.9371980676 | AM40: - | AN40: - | AO40: 1.033333333 | AP40: 0.9 | AQ40: - | AR40: - | AV40: 318 - INTERMEDIATE CARE | AW40: 0 | BR40: NVCOAKS HOSPITAL | BS40: NVC13 | BT40: OAKS HOSPITAL | BU40: NVC13 | BV40: OAKS HOSPITAL | BW40: NVC | BZ40: UNIVERSITY HOSPITAL AINTREE | CA40: Ward 4 | CB40: WATFORD GENERAL HOSPITAL | CD40: Match: | CE40: 6283 | CF40: Countif: | CG40: 6312 | CH40: Concat Items: | CI40: $CA | CJ40: :$CA | CL40: Concat Final: | CM40: $CA6283:$CA6312
B41: 2 | D41: RWG02 | E41: WATFORD GENERAL HOSPITAL | F41: SCBU incl TC | G41: 501 - OBSTETRICS | I41: 1430 | J41: 1391.5 | K41: 448.5 | L41: 494.5 | M41: 0 | N41: 0 | O41: 0 | P41: 0 | Q41: 1564 | R41: 1564 | S41: 322 | T41: 322 | U41: 0 | V41: 0 | W41: 0 | X41: 0 | AC41: 346 | AD41: 8.541907514 | AE41: 2.35982659 | AF41: 0 | AG41: 0 | AH41: 0 | AI41: 0 | AJ41: 10.9017341 | AK41: 0.9730769231 | AL41: 1.102564103 | AM41: - | AN41: - | AO41: 1 | AP41: 1 | AQ41: - | AR41: - | AV41: 319 - RESPITE CARE | AW41: 0 | BR41: NVCPARK HILL HOSPITAL | BS41: NVC14 | BT41: PARK HILL HOSPITAL | BU41: NVC14 | BV41: PARK HILL HOSPITAL | BW41: NVC | BZ41: UNIVERSITY HOSPITAL AINTREE | CA41: Ward 6 | CB41: WATFORD GENERAL HOSPITAL | CD41: Match: | CE41: 6283 | CF41: Countif: | CG41: 6312 | CH41: Concat Items: | CI41: $CA | CJ41: :$CA | CL41: Concat Final: | CM41: $CA6283:$CA6312
B42: 2 | D42: RWG02 | E42: WATFORD GENERAL HOSPITAL | F42: Starfish | G42: 420 - PAEDIATRICS | I42: 1242 | J42: 1380.25 | K42: 276 | L42: 189.5 | M42: 0 | N42: 103.5 | O42: 0 | P42: 0 | Q42: 1046.5 | R42: 1058 | S42: 333.5 | T42: 299 | U42: 0 | V42: 184 | W42: 0 | X42: 0 | AC42: 346 | AD42: 7.046965318 | AE42: 1.411849711 | AF42: 0.8309248555 | AG42: 0 | AH42: 0 | AI42: 0 | AJ42: 9.289739884 | AK42: 1.111312399 | AL42: 0.6865942029 | AM42: - | AN42: - | AO42: 1.010989011 | AP42: 0.8965517241 | AQ42: - | AR42: - | AV42: 320 - CARDIOLOGY | AW42: 0 | BR42: NVCPINEHILL HOSPITAL | BS42: NVC15 | BT42: PINEHILL HOSPITAL | BU42: NVC15 | BV42: PINEHILL HOSPITAL | BW42: NVC | BZ42: UNIVERSITY HOSPITAL AINTREE | CA42: Ward 8 | CB42: WATFORD GENERAL HOSPITAL | CD42: Match: | CE42: 6283 | CF42: Countif: | CG42: 6312 | CH42: Concat Items: | CI42: $CA | CJ42: :$CA | CL42: Concat Final: | CM42: $CA6283:$CA6312
F44: Total | I44: =SUM(I14:I43) -> 42020.43667 | J44: 40098.66667 | K44: 30894.99667 | L44: 32741.33333 | M44: 1120 | N44: 718.75 | O44: 0 | P44: 0 | Q44: 40774 | R44: 38659.75 | S44: 26896.75 | T44: 33987.66667 | U44: 736 | V44: 529 | W44: 0 | X44: 0 | Y44: 0 | Z44: 0 | AA44: 0 | AB44: 0 | AC44: =SUM(AC14:AC42) -> 17268 | AD44: =(J44+R44)/AC44 -> 4.560946066 | AE44: =(L44+T44)/AC44 -> 3.864315497 | AF44: =(N44+V44)/AC44 -> 0.07225793375 | AG44: =(P44+X44)/AC44 -> 0 | AH44: =Z44/AC44 -> 0 | AI44: =AB44/AC44 -> 0 | AJ44: =(J44+L44+N44+P44+R44+T44+V44+X44+Z44+AB44)/AC44 -> 8.497519497 | AK44: =J44/I44 -> 0.9542658251 | AL44: =L44/K44 -> 1.059761672 | AM44: =IFERROR(N44/M44,"-") -> 0.6417410714 | AN44: =IFERROR(P44/O44,"-") -> - | AO44: =R44/Q44 -> 0.9481471035 | AP44: =T44/S44 -> 1.263634702 | AQ44: =IFERROR(V44/U44,"-") -> 0.71875 | AR44: =IFERROR(X44/W44,"-") -> - | AS44: - | AT44: - | BG44: =COUNTIF(BG14:BG43,"No Site Selected") -> 0 | BH44: =COUNTIF(BH14:BH43,"No Ward Name") -> 0 | BI44: 0 | BM44: =COUNTIF(BM14:BM43,"Incorrect Ward Name") -> 0 | BR44: =CONCATENATE(LEFT(BS44, 3),BT44) -> R1CPRINCESS ANNE HOSPITAL | BS44: R1C36 | BT44: PRINCESS ANNE HOSPITAL | BU44: R1C36 | BV44: PRINCESS ANNE HOSPITAL | BW44: R1C | BZ44: BARNSLEY HOSPITAL NHS FOUNDATION TRUST HQ | CA44: Birthing Centre
A46: =IF(Q78=1,"No Site Selected",IF(R78=1,"No Ward Name","")) ->  | B46: 0 | D46: =IF(ISNA(VLOOKUP($E$5&E46,$BR:$BS,2,FALSE)),"",VLOOKUP($E$5&E46,$BR:$BS,2,FALSE)) ->  | F46: ITU minus SP shifts | I46: 3959.833333 | J46: 3734.833333 | K46: 419.5 | L46: 442.5 | M46: 0 | N46: 0 | Q46: 4211 | R46: 3797.5 | S46: 264.5 | T46: 276 | U46: 0 | V46: 0 | AC46: 385 | AD46: 19.56450216 | AE46: 1.866233766 | AF46: 0 | AG46: 0 | AH46: 0 | AI46: 0 | AJ46: 21.43073593 | AK46: 0.9431794267 | AL46: 1.054827175 | AM46: - | AN46: - | AO46: 0.901804797 | AP46: 1.043478261 | AQ46: - | AR46: - | AV46: 323 - SPINAL INJURIES | AW46: 0 | BG46: =IF(Q78=1,"No Site Selected","") ->  | BH46: =IF(R78=1,"No Ward Name","") ->  | BM46: =IF(C78=1,"Incorrect Ward Name","") ->  | BR46: =CONCATENATE(LEFT(BS46, 3),BT46) -> NVCRIVERS HOSPITAL | BS46: NVC19 | BT46: RIVERS HOSPITAL | BU46: NVC19 | BV46: RIVERS HOSPITAL | BW46: NVC | BZ46: AIREDALE GENERAL HOSPITAL | CA46: Labour Suite | CB46: 0 | CD46: Match: | CF46: Countif: | CH46: Concat Items: | CI46: $CA | CJ46: :$CA | CL46: Concat Final:
C88: 0 | D88: 0 | E88: 0 | H88: 0 | I88: 0 | J88: 0 | K88: 0 | L88: 0 | M88: 0 | N88: 0 | O88: 0 | P88: 0 | Q88: 0 | R88: 0 | AC88: 0 | AK88: 0 | AL88: 0 | AM88: 0 | AN88: 0 | AO88: 0 | AP88: 0 | AQ88: 0 | AR88: 0 | AS88: 0 | AT88: 0 | AU88: 0 | AY88: =IF(#REF!="",0, IF(#REF!="-",0,IF(#REF!>100%,1,0))) ->  | BA88: =IF(#REF!="",0, IF(#REF!="-",0,IF(#REF!>100%,1,0))) ->  | BB88: =IF(#REF!="",0, IF(#REF!="-",0,IF(#REF!>100%,1,0))) ->  | BC88: =IF(#REF!="",0, IF(#REF!="-",0,IF(#REF!>100%,1,0))) ->  | BG88: =CONCATENATE(#REF!,#REF!,#REF!) ->  | BH88: =IF(BG88="","",(IF(COUNTIF($BG$46:$BG$244,BG88)>1,1,0))=1) ->  | BI88: 0 | BJ88: FALSE | BK88: 0 | BL88: =IF(#REF!="",0,IF(#REF!=#REF!,1,0)) ->  | BR88: =CONCATENATE(LEFT(BS88, 3),BT88) -> R1DLUDLOW HOSP OPD1 | BS88: R1DJ2 | BT88: LUDLOW HOSP OPD1 | BU88: R1DJ2 | BV88: LUDLOW HOSP OPD1 | BW88: R1D | BZ88: St Bartholomew's Hospital | CA88: 4B SBH
C89: 0 | D89: 0 | E89: 0 | H89: 0 | I89: 0 | J89: 0 | K89: 0 | L89: 0 | M89: 0 | N89: 0 | O89: 0 | P89: 0 | Q89: 0 | R89: 0 | AC89: 0 | AK89: 0 | AL89: 0 | AM89: 0 | AN89: 0 | AO89: 0 | AP89: 0 | AQ89: 0 | AR89: 0 | AS89: 0 | AT89: 0 | AU89: 0 | AY89: =IF(#REF!="",0, IF(#REF!="-",0,IF(#REF!>100%,1,0))) ->  | BA89: =IF(#REF!="",0, IF(#REF!="-",0,IF(#REF!>100%,1,0))) ->  | BB89: =IF(#REF!="",0, IF(#REF!="-",0,IF(#REF!>100%,1,0))) ->  | BC89: =IF(#REF!="",0, IF(#REF!="-",0,IF(#REF!>100%,1,0))) ->  | BG89: =CONCATENATE(#REF!,#REF!,#REF!) ->  | BI89: 0 | BJ89: FALSE | BK89: 0 | BL89: =IF(#REF!="",0,IF(#REF!=#REF!,1,0)) ->  | BR89: R1DLUDLOW HOSPITAL | BS89: R1D21 | BT89: LUDLOW HOSPITAL | BU89: R1D21 | BV89: LUDLOW HOSPITAL | BW89: R1D | BZ89: St Bartholomew's Hospital | CA89: 4C SBH
C90: 0 | D90: 0 | E90: 0 | H90: 0 | I90: 0 | J90: 0 | K90: 0 | L90: 0 | M90: 0 | N90: 0 | O90: 0 | P90: 0 | Q90: 0 | R90: 0 | AC90: 0 | AK90: 0 | AL90: 0 | AM90: 0 | AN90: 0 | AO90: 0 | AP90: 0 | AQ90: 0 | AR90: 0 | AS90: 0 | AT90: 0 | AU90: 0 | AY90: =IF(#REF!="",0, IF(#REF!="-",0,IF(#REF!>100%,1,0))) ->  | BA90: =IF(#REF!="",0, IF(#REF!="-",0,IF(#REF!>100%,1,0))) ->  | BB90: =IF(#REF!="",0, IF(#REF!="-",0,IF(#REF!>100%,1,0))) ->  | BC90: =IF(#REF!="",0, IF(#REF!="-",0,IF(#REF!>100%,1,0))) ->  | BG90: =CONCATENATE(#REF!,#REF!,#REF!) ->  | BI90: 0 | BJ90: FALSE | BK90: 0 | BL90: =IF(#REF!="",0,IF(#REF!=#REF!,1,0)) ->  | BR90: R1DMARKET DRAYTON COTTAGE HOSPITAL | BS90: R1D07 | BT90: MARKET DRAYTON COTTAGE HOSPITAL | BU90: R1D07 | BV90: MARKET DRAYTON COTTAGE HOSPITAL | BW90: R1D | BZ90: St Bartholomew's Hospital | CA90: 4D & 4E SBH
C91: 0 | D91: 0 | E91: 0 | H91: 0 | I91: 0 | J91: 0 | K91: 0 | L91: 0 | M91: 0 | N91: 0 | O91: 0 | P91: 0 | Q91: 0 | R91: 0 | AC91: 0 | AK91: 0 | AL91: 0 | AM91: 0 | AN91: 0 | AO91: 0 | AP91: 0 | AQ91: 0 | AR91: 0 | AS91: 0 | AT91: 0 | AU91: 0 | AY91: =IF(#REF!="",0, IF(#REF!="-",0,IF(#REF!>100%,1,0))) ->  | BA91: =IF(#REF!="",0, IF(#REF!="-",0,IF(#REF!>100%,1,0))) ->  | BB91: =IF(#REF!="",0, IF(#REF!="-",0,IF(#REF!>100%,1,0))) ->  | BC91: =IF(#REF!="",0, IF(#REF!="-",0,IF(#REF!>100%,1,0))) ->  | BG91: =CONCATENATE(#REF!,#REF!,#REF!) ->  | BI91: 0 | BJ91: FALSE | BK91: 0 | BL91: =IF(#REF!="",0,IF(#REF!=#REF!,1,0)) ->  | BR91: R1DNEWPORT (GP) | BS91: R1D63 | BT91: NEWPORT (GP) | BU91: R1D63 | BV91: NEWPORT (GP) | BW91: R1D | BZ91: St Bartholomew's Hospital | CA91: 5A SBH
C92: 0 | D92: 0 | E92: 0 | H92: 0 | I92: 0 | J92: 0 | K92: 0 | L92: 0 | M92: 0 | N92: 0 | O92: 0 | P92: 0 | Q92: 0 | R92: 0 | AC92: 0 | AK92: 0 | AL92: 0 | AM92: 0 | AN92: 0 | AO92: 0 | AP92: 0 | AQ92: 0 | AR92: 0 | AS92: 0 | AT92: 0 | AU92: 0 | AY92: =IF(#REF!="",0, IF(#REF!="-",0,IF(#REF!>100%,1,0))) ->  | BA92: =IF(#REF!="",0, IF(#REF!="-",0,IF(#REF!>100%,1,0))) ->  | BB92: =IF(#REF!="",0, IF(#REF!="-",0,IF(#REF!>100%,1,0))) ->  | BC92: =IF(#REF!="",0, IF(#REF!="-",0,IF(#REF!>100%,1,0))) ->  | BG92: =CONCATENATE(#REF!,#REF!,#REF!) ->  | BI92: 0 | BJ92: FALSE | BK92: 0 | BL92: =IF(#REF!="",0,IF(#REF!=#REF!,1,0)) ->  | BR92: R1DNEWPORT HOSPITAL | BS92: R1DAF | BT92: NEWPORT HOSPITAL | BU92: R1DAF | BV92: NEWPORT HOSPITAL | BW92: R1D | BZ92: St Bartholomew's Hospital | CA92: 5B SBH
C93: 0 | D93: 0 | E93: 0 | H93: 0 | I93: 0 | J93: 0 | K93: 0 | L93: 0 | M93: 0 | N93: 0 | O93: 0 | P93: 0 | Q93: 0 | R93: 0 | AC93: 0 | AK93: 0 | AL93: 0 | AM93: 0 | AN93: 0 | AO93: 0 | AP93: 0 | AQ93: 0 | AR93: 0 | AS93: 0 | AT93: 0 | AU93: 0 | AY93: =IF(#REF!="",0, IF(#REF!="-",0,IF(#REF!>100%,1,0))) ->  | BA93: =IF(#REF!="",0, IF(#REF!="-",0,IF(#REF!>100%,1,0))) ->  | BB93: =IF(#REF!="",0, IF(#REF!="-",0,IF(#REF!>100%,1,0))) ->  | BC93: =IF(#REF!="",0, IF(#REF!="-",0,IF(#REF!>100%,1,0))) ->  | BG93: =CONCATENATE(#REF!,#REF!,#REF!) ->  | BI93: 0 | BJ93: FALSE | BK93: 0 | BL93: =IF(#REF!="",0,IF(#REF!=#REF!,1,0)) ->  | BR93: R1DOCCUPATIONAL HEALTH DEPARTMENT - FENTON | BS93: R1DEK | BT93: OCCUPATIONAL HEALTH DEPARTMENT - FENTON | BU93: R1DEK | BV93: OCCUPATIONAL HEALTH DEPARTMENT - FENTON | BW93: R1D | BZ93: St Bartholomew's Hospital | CA93: 5C SBH
C94: 0 | D94: 0 | E94: 0 | H94: 0 | I94: 0 | J94: 0 | K94: 0 | L94: 0 | M94: 0 | N94: 0 | O94: 0 | P94: 0 | Q94: 0 | R94: 0 | AC94: 0 | AK94: 0 | AL94: 0 | AM94: 0 | AN94: 0 | AO94: 0 | AP94: 0 | AQ94: 0 | AR94: 0 | AS94: 0 | AT94: 0 | AU94: 0 | AY94: =IF(#REF!="",0, IF(#REF!="-",0,IF(#REF!>100%,1,0))) ->  | BA94: =IF(#REF!="",0, IF(#REF!="-",0,IF(#REF!>100%,1,0))) ->  | BB94: =IF(#REF!="",0, IF(#REF!="-",0,IF(#REF!>100%,1,0))) ->  | BC94: =IF(#REF!="",0, IF(#REF!="-",0,IF(#REF!>100%,1,0))) ->  | BG94: =CONCATENATE(#REF!,#REF!,#REF!) ->  | BI94: 0 | BJ94: FALSE | BK94: 0 | BL94: =IF(#REF!="",0,IF(#REF!=#REF!,1,0)) ->  | BR94: R1DOCCUPATIONAL HEALTH FENTON | BS94: R1DG7 | BT94: OCCUPATIONAL HEALTH FENTON | BU94: R1DG7 | BV94: OCCUPATIONAL HEALTH FENTON | BW94: R1D | BZ94: St Bartholomew's Hospital | CA94: 5D SBH
C95: 0 | D95: 0 | E95: 0 | H95: 0 | I95: 0 | J95: 0 | K95: 0 | L95: 0 | M95: 0 | N95: 0 | O95: 0 | P95: 0 | Q95: 0 | R95: 0 | AC95: 0 | AK95: 0 | AL95: 0 | AM95: 0 | AN95: 0 | AO95: 0 | AP95: 0 | AQ95: 0 | AR95: 0 | AS95: 0 | AT95: 0 | AU95: 0 | AY95: =IF(#REF!="",0, IF(#REF!="-",0,IF(#REF!>100%,1,0))) ->  | BA95: =IF(#REF!="",0, IF(#REF!="-",0,IF(#REF!>100%,1,0))) ->  | BB95: =IF(#REF!="",0, IF(#REF!="-",0,IF(#REF!>100%,1,0))) ->  | BC95: =IF(#REF!="",0, IF(#REF!="-",0,IF(#REF!>100%,1,0))) ->  | BG95: =CONCATENATE(#REF!,#REF!,#REF!) ->  | BI95: 0 | BJ95: FALSE | BK95: 0 | BL95: =IF(#REF!="",0,IF(#REF!=#REF!,1,0)) ->  | BR95: R1DOCCUPATIONAL HEALTH GAINS PARK | BS95: R1DD9 | BT95: OCCUPATIONAL HEALTH GAINS PARK | BU95: R1DD9 | BV95: OCCUPATIONAL HEALTH GAINS PARK | BW95: R1D | BZ95: St Bartholomew's Hospital | CA95: 6A SBH
C96: 0 | D96: 0 | E96: 0 | H96: 0 | I96: 0 | J96: 0 | K96: 0 | L96: 0 | M96: 0 | N96: 0 | O96: 0 | P96: 0 | Q96: 0 | R96: 0 | AC96: 0 | AK96: 0 | AL96: 0 | AM96: 0 | AN96: 0 | AO96: 0 | AP96: 0 | AQ96: 0 | AR96: 0 | AS96: 0 | AT96: 0 | AU96: 0 | AY96: =IF(#REF!="",0, IF(#REF!="-",0,IF(#REF!>100%,1,0))) ->  | BA96: =IF(#REF!="",0, IF(#REF!="-",0,IF(#REF!>100%,1,0))) ->  | BB96: =IF(#REF!="",0, IF(#REF!="-",0,IF(#REF!>100%,1,0))) ->  | BC96: =IF(#REF!="",0, IF(#REF!="-",0,IF(#REF!>100%,1,0))) ->  | BG96: =CONCATENATE(#REF!,#REF!,#REF!) ->  | BI96: 0 | BJ96: FALSE | BK96: 0 | BL96: =IF(#REF!="",0,IF(#REF!=#REF!,1,0)) ->  | BR96: R1DOLDFIELD RESIDENTIAL HOME | BS96: R1D92 | BT96: OLDFIELD RESIDENTIAL HOME | BU96: R1D92 | BV96: OLDFIELD RESIDENTIAL HOME | BW96: R1D | BZ96: St Bartholomew's Hospital | CA96: 6D SBH
C97: 0 | D97: 0 | E97: 0 | H97: 0 | I97: 0 | J97: 0 | K97: 0 | L97: 0 | M97: 0 | N97: 0 | O97: 0 | P97: 0 | Q97: 0 | R97: 0 | AC97: 0 | AK97: 0 | AL97: 0 | AM97: 0 | AN97: 0 | AO97: 0 | AP97: 0 | AQ97: 0 | AR97: 0 | AS97: 0 | AT97: 0 | AU97: 0 | AY97: =IF(#REF!="",0, IF(#REF!="-",0,IF(#REF!>100%,1,0))) ->  | BA97: =IF(#REF!="",0, IF(#REF!="-",0,IF(#REF!>100%,1,0))) ->  | BB97: =IF(#REF!="",0, IF(#REF!="-",0,IF(#REF!>100%,1,0))) ->  | BC97: =IF(#REF!="",0, IF(#REF!="-",0,IF(#REF!>100%,1,0))) ->  | BG97: =CONCATENATE(#REF!,#REF!,#REF!) ->  | BI97: 0 | BJ97: FALSE | BK97: 0 | BL97: =IF(#REF!="",0,IF(#REF!=#REF!,1,0)) ->  | BR97: R1DOSWESTRY SOCIAL & HEALTH CARE | BS97: R1DDC | BT97: OSWESTRY SOCIAL & HEALTH CARE | BU97: R1DDC | BV97: OSWESTRY SOCIAL & HEALTH CARE | BW97: R1D | BZ97: The Royal London Hospital | CA97: 10E RLH
C98: 0 | D98: 0 | E98: 0 | H98: 0 | I98: 0 | J98: 0 | K98: 0 | L98: 0 | M98: 0 | N98: 0 | O98: 0 | P98: 0 | Q98: 0 | R98: 0 | AC98: 0 | AK98: 0 | AL98: 0 | AM98: 0 | AN98: 0 | AO98: 0 | AP98: 0 | AQ98: 0 | AR98: 0 | AS98: 0 | AT98: 0 | AU98: 0 | AY98: =IF(#REF!="",0, IF(#REF!="-",0,IF(#REF!>100%,1,0))) ->  | BA98: =IF(#REF!="",0, IF(#REF!="-",0,IF(#REF!>100%,1,0))) ->  | BB98: =IF(#REF!="",0, IF(#REF!="-",0,IF(#REF!>100%,1,0))) ->  | BC98: =IF(#REF!="",0, IF(#REF!="-",0,IF(#REF!>100%,1,0))) ->  | BG98: =CONCATENATE(#REF!,#REF!,#REF!) ->  | BI98: 0 | BJ98: FALSE | BK98: 0 | BL98: =IF(#REF!="",0,IF(#REF!=#REF!,1,0)) ->  | BR98: R1DPLAS NEWYDD | BS98: R1DA6 | BT98: PLAS NEWYDD | BU98: R1DA6 | BV98: PLAS NEWYDD | BW98: R1D | BZ98: The Royal London Hospital | CA98: 10F RLH
C99: 0 | D99: 0 | E99: 0 | H99: 0 | I99: 0 | J99: 0 | K99: 0 | L99: 0 | M99: 0 | N99: 0 | O99: 0 | P99: 0 | Q99: 0 | R99: 0 | AC99: 0 | AK99: 0 | AL99: 0 | AM99: 0 | AN99: 0 | AO99: 0 | AP99: 0 | AQ99: 0 | AR99: 0 | AS99: 0 | AT99: 0 | AU99: 0 | AY99: =IF(#REF!="",0, IF(#REF!="-",0,IF(#REF!>100%,1,0))) ->  | BA99: =IF(#REF!="",0, IF(#REF!="-",0,IF(#REF!>100%,1,0))) ->  | BB99: =IF(#REF!="",0, IF(#REF!="-",0,IF(#REF!>100%,1,0))) ->  | BC99: =IF(#REF!="",0, IF(#REF!="-",0,IF(#REF!>100%,1,0))) ->  | BG99: =CONCATENATE(#REF!,#REF!,#REF!) ->  | BI99: 0 | BJ99: FALSE | BK99: 0 | BL99: =IF(#REF!="",0,IF(#REF!=#REF!,1,0)) ->  | BR99: R1DPRINCESS ROYAL HOSPITAL | BS99: R1D03 | BT99: PRINCESS ROYAL HOSPITAL | BU99: R1D03 | BV99: PRINCESS ROYAL HOSPITAL | BW99: R1D | BZ99: The Royal London Hospital | CA99: 11C RLH
C100: 0 | D100: 0 | E100: 0 | H100: 0 | I100: 0 | J100: 0 | K100: 0 | L100: 0 | M100: 0 | N100: 0 | O100: 0 | P100: 0 | Q100: 0 | R100: 0 | AC100: 0 | AK100: 0 | AL100: 0 | AM100: 0 | AN100: 0 | AO100: 0 | AP100: 0 | AQ100: 0 | AR100: 0 | AS100: 0 | AT100: 0 | AU100: 0 | AY100: =IF(#REF!="",0, IF(#REF!="-",0,IF(#REF!>100%,1,0))) ->  | BA100: =IF(#REF!="",0, IF(#REF!="-",0,IF(#REF!>100%,1,0))) ->  | BB100: =IF(#REF!="",0, IF(#REF!="-",0,IF(#REF!>100%,1,0))) ->  | BC100: =IF(#REF!="",0, IF(#REF!="-",0,IF(#REF!>100%,1,0))) ->  | BG100: =CONCATENATE(#REF!,#REF!,#REF!) ->  | BI100: 0 | BJ100: FALSE | BK100: 0 | BL100: =IF(#REF!="",0,IF(#REF!=#REF!,1,0)) ->  | BR100: R1DROBERT JONES & AGNES HUNT ORTHOPAEDIC HOSPITAL | BS100: R1DAC | BT100: ROBERT JONES & AGNES HUNT ORTHOPAEDIC HOSPITAL | BU100: R1DAC | BV100: ROBERT JONES & AGNES HUNT ORTHOPAEDIC HOSPITAL | BW100: R1D | BZ100: The Royal London Hospital | CA100: 11E & 11F AAU
C101: 0 | D101: 0 | E101: 0 | H101: 0 | I101: 0 | J101: 0 | K101: 0 | L101: 0 | M101: 0 | N101: 0 | O101: 0 | P101: 0 | Q101: 0 | R101: 0 | AC101: 0 | AK101: 0 | AL101: 0 | AM101: 0 | AN101: 0 | AO101: 0 | AP101: 0 | AQ101: 0 | AR101: 0 | AS101: 0 | AT101: 0 | AU101: 0 | AY101: =IF(#REF!="",0, IF(#REF!="-",0,IF(#REF!>100%,1,0))) ->  | BA101: =IF(#REF!="",0, IF(#REF!="-",0,IF(#REF!>100%,1,0))) ->  | BB101: =IF(#REF!="",0, IF(#REF!="-",0,IF(#REF!>100%,1,0))) ->  | BC101: =IF(#REF!="",0, IF(#REF!="-",0,IF(#REF!>100%,1,0))) ->  | BG101: =CONCATENATE(#REF!,#REF!,#REF!) ->  | BI101: 0 | BJ101: FALSE | BK101: 0 | BL101: =IF(#REF!="",0,IF(#REF!=#REF!,1,0)) ->  | BR101: R1DROYAL SHREWSBURY HOSPITAL | BS101: R1D16 | BT101: ROYAL SHREWSBURY HOSPITAL | BU101: R1D16 | BV101: ROYAL SHREWSBURY HOSPITAL | BW101: R1D | BZ101: The Royal London Hospital | CA101: 12C RLH
C102: 0 | D102: 0 | E102: 0 | H102: 0 | I102: 0 | J102: 0 | K102: 0 | L102: 0 | M102: 0 | N102: 0 | O102: 0 | P102: 0 | Q102: 0 | R102: 0 | AC102: 0 | AK102: 0 | AL102: 0 | AM102: 0 | AN102: 0 | AO102: 0 | AP102: 0 | AQ102: 0 | AR102: 0 | AS102: 0 | AT102: 0 | AU102: 0 | AY102: =IF(#REF!="",0, IF(#REF!="-",0,IF(#REF!>100%,1,0))) ->  | BA102: =IF(#REF!="",0, IF(#REF!="-",0,IF(#REF!>100%,1,0))) ->  | BB102: =IF(#REF!="",0, IF(#REF!="-",0,IF(#REF!>100%,1,0))) ->  | BC102: =IF(#REF!="",0, IF(#REF!="-",0,IF(#REF!>100%,1,0))) ->  | BG102: =CONCATENATE(#REF!,#REF!,#REF!) ->  | BI102: 0 | BJ102: FALSE | BK102: 0 | BL102: =IF(#REF!="",0,IF(#REF!=#REF!,1,0)) ->  | BR102: R1DSEVERN FIELDS HEALTH VILLAGE | BS102: R1DFC | BT102: SEVERN FIELDS HEALTH VILLAGE | BU102: R1DFC | BV102: SEVERN FIELDS HEALTH VILLAGE | BW102: R1D | BZ102: The Royal London Hospital | CA102: 12D RLH
C103: 0 | D103: 0 | E103: 0 | H103: 0 | I103: 0 | J103: 0 | K103: 0 | L103: 0 | M103: 0 | N103: 0 | O103: 0 | P103: 0 | Q103: 0 | R103: 0 | AC103: 0 | AK103: 0 | AL103: 0 | AM103: 0 | AN103: 0 | AO103: 0 | AP103: 0 | AQ103: 0 | AR103: 0 | AS103: 0 | AT103: 0 | AU103: 0 | AY103: =IF(#REF!="",0, IF(#REF!="-",0,IF(#REF!>100%,1,0))) ->  | BA103: =IF(#REF!="",0, IF(#REF!="-",0,IF(#REF!>100%,1,0))) ->  | BB103: =IF(#REF!="",0, IF(#REF!="-",0,IF(#REF!>100%,1,0))) ->  | BC103: =IF(#REF!="",0, IF(#REF!="-",0,IF(#REF!>100%,1,0))) ->  | BG103: =CONCATENATE(#REF!,#REF!,#REF!) ->  | BI103: 0 | BJ103: FALSE | BK103: 0 | BL103: =IF(#REF!="",0,IF(#REF!=#REF!,1,0)) ->  | BR103: R1DSHELTON HOSPITAL | BS103: R1D01 | BT103: SHELTON HOSPITAL | BU103: R1D01 | BV103: SHELTON HOSPITAL | BW103: R1D | BZ103: The Royal London Hospital | CA103: 12E RLH
C104: 0 | D104: 0 | E104: 0 | H104: 0 | I104: 0 | J104: 0 | K104: 0 | L104: 0 | M104: 0 | N104: 0 | O104: 0 | P104: 0 | Q104: 0 | R104: 0 | AC104: 0 | AK104: 0 | AL104: 0 | AM104: 0 | AN104: 0 | AO104: 0 | AP104: 0 | AQ104: 0 | AR104: 0 | AS104: 0 | AT104: 0 | AU104: 0 | AY104: =IF(#REF!="",0, IF(#REF!="-",0,IF(#REF!>100%,1,0))) ->  | BA104: =IF(#REF!="",0, IF(#REF!="-",0,IF(#REF!>100%,1,0))) ->  | BB104: =IF(#REF!="",0, IF(#REF!="-",0,IF(#REF!>100%,1,0))) ->  | BC104: =IF(#REF!="",0, IF(#REF!="-",0,IF(#REF!>100%,1,0))) ->  | BG104: =CONCATENATE(#REF!,#REF!,#REF!) ->  | BI104: 0 | BJ104: FALSE | BK104: 0 | BL104: =IF(#REF!="",0,IF(#REF!=#REF!,1,0)) ->  | BR104: R1DSHERBOURNE | BS104: R1D90 | BT104: SHERBOURNE | BU104: R1D90 | BV104: SHERBOURNE | BW104: R1D | BZ104: The Royal London Hospital | CA104: 12F RLH
C105: 0 | D105: 0 | E105: 0 | H105: 0 | I105: 0 | J105: 0 | K105: 0 | L105: 0 | M105: 0 | N105: 0 | O105: 0 | P105: 0 | Q105: 0 | R105: 0 | AC105: 0 | AK105: 0 | AL105: 0 | AM105: 0 | AN105: 0 | AO105: 0 | AP105: 0 | AQ105: 0 | AR105: 0 | AS105: 0 | AT105: 0 | AU105: 0 | AY105: =IF(#REF!="",0, IF(#REF!="-",0,IF(#REF!>100%,1,0))) ->  | BA105: =IF(#REF!="",0, IF(#REF!="-",0,IF(#REF!>100%,1,0))) ->  | BB105: =IF(#REF!="",0, IF(#REF!="-",0,IF(#REF!>100%,1,0))) ->  | BC105: =IF(#REF!="",0, IF(#REF!="-",0,IF(#REF!>100%,1,0))) ->  | BG105: =CONCATENATE(#REF!,#REF!,#REF!) ->  | BI105: 0 | BJ105: FALSE | BK105: 0 | BL105: =IF(#REF!="",0,IF(#REF!=#REF!,1,0)) ->  | BR105: R1DSINGLE POINT OF ACCESS | BS105: R1DJ5 | BT105: SINGLE POINT OF ACCESS | BU105: R1DJ5 | BV105: SINGLE POINT OF ACCESS | BW105: R1D | BZ105: The Royal London Hospital | CA105: 13C RLH
C106: 0 | D106: 0 | E106: 0 | H106: 0 | I106: 0 | J106: 0 | K106: 0 | L106: 0 | M106: 0 | N106: 0 | O106: 0 | P106: 0 | Q106: 0 | R106: 0 | AC106: 0 | AK106: 0 | AL106: 0 | AM106: 0 | AN106: 0 | AO106: 0 | AP106: 0 | AQ106: 0 | AR106: 0 | AS106: 0 | AT106: 0 | AU106: 0 | AY106: =IF(#REF!="",0, IF(#REF!="-",0,IF(#REF!>100%,1,0))) ->  | BA106: =IF(#REF!="",0, IF(#REF!="-",0,IF(#REF!>100%,1,0))) ->  | BB106: =IF(#REF!="",0, IF(#REF!="-",0,IF(#REF!>100%,1,0))) ->  | BC106: =IF(#REF!="",0, IF(#REF!="-",0,IF(#REF!>100%,1,0))) ->  | BG106: =CONCATENATE(#REF!,#REF!,#REF!) ->  | BI106: 0 | BJ106: FALSE | BK106: 0 | BL106: =IF(#REF!="",0,IF(#REF!=#REF!,1,0)) ->  | BR106: R1DTELFORD AND WREKIN PCT COMMISSIONERS | BS106: R1DEJ | BT106: TELFORD AND WREKIN PCT COMMISSIONERS | BU106: R1DEJ | BV106: TELFORD AND WREKIN PCT COMMISSIONERS | BW106: R1D | BZ106: The Royal London Hospital | CA106: 13D RLH
C107: 0 | D107: 0 | E107: 0 | H107: 0 | I107: 0 | J107: 0 | K107: 0 | L107: 0 | M107: 0 | N107: 0 | O107: 0 | P107: 0 | Q107: 0 | R107: 0 | AC107: 0 | AK107: 0 | AL107: 0 | AM107: 0 | AN107: 0 | AO107: 0 | AP107: 0 | AQ107: 0 | AR107: 0 | AS107: 0 | AT107: 0 | AU107: 0 | AY107: =IF(#REF!="",0, IF(#REF!="-",0,IF(#REF!>100%,1,0))) ->  | BA107: =IF(#REF!="",0, IF(#REF!="-",0,IF(#REF!>100%,1,0))) ->  | BB107: =IF(#REF!="",0, IF(#REF!="-",0,IF(#REF!>100%,1,0))) ->  | BC107: =IF(#REF!="",0, IF(#REF!="-",0,IF(#REF!>100%,1,0))) ->  | BG107: =CONCATENATE(#REF!,#REF!,#REF!) ->  | BI107: 0 | BJ107: FALSE | BK107: 0 | BL107: =IF(#REF!="",0,IF(#REF!=#REF!,1,0)) ->  | BR107: R1DTERRENCE HIGGINS TRUST WELLINGTON | BS107: R1DFL | BT107: TERRENCE HIGGINS TRUST WELLINGTON | BU107: R1DFL | BV107: TERRENCE HIGGINS TRUST WELLINGTON | BW107: R1D | BZ107: The Royal London Hospital | CA107: 13E RLH
C108: 0 | D108: 0 | E108: 0 | H108: 0 | I108: 0 | J108: 0 | K108: 0 | L108: 0 | M108: 0 | N108: 0 | O108: 0 | P108: 0 | Q108: 0 | R108: 0 | AC108: 0 | AK108: 0 | AL108: 0 | AM108: 0 | AN108: 0 | AO108: 0 | AP108: 0 | AQ108: 0 | AR108: 0 | AS108: 0 | AT108: 0 | AU108: 0 | AY108: =IF(#REF!="",0, IF(#REF!="-",0,IF(#REF!>100%,1,0))) ->  | BA108: =IF(#REF!="",0, IF(#REF!="-",0,IF(#REF!>100%,1,0))) ->  | BB108: =IF(#REF!="",0, IF(#REF!="-",0,IF(#REF!>100%,1,0))) ->  | BC108: =IF(#REF!="",0, IF(#REF!="-",0,IF(#REF!>100%,1,0))) ->  | BG108: =CONCATENATE(#REF!,#REF!,#REF!) ->  | BI108: 0 | BJ108: FALSE | BK108: 0 | BL108: =IF(#REF!="",0,IF(#REF!=#REF!,1,0)) ->  | BR108: R1DTHE HEATHERS | BS108: R1D80 | BT108: THE HEATHERS | BU108: R1D80 | BV108: THE HEATHERS | BW108: R1D | BZ108: The Royal London Hospital | CA108: 13F RLH
C109: 0 | D109: 0 | E109: 0 | H109: 0 | I109: 0 | J109: 0 | K109: 0 | L109: 0 | M109: 0 | N109: 0 | O109: 0 | P109: 0 | Q109: 0 | R109: 0 | AC109: 0 | AK109: 0 | AL109: 0 | AM109: 0 | AN109: 0 | AO109: 0 | AP109: 0 | AQ109: 0 | AR109: 0 | AS109: 0 | AT109: 0 | AU109: 0 | AY109: =IF(#REF!="",0, IF(#REF!="-",0,IF(#REF!>100%,1,0))) ->  | BA109: =IF(#REF!="",0, IF(#REF!="-",0,IF(#REF!>100%,1,0))) ->  | BB109: =IF(#REF!="",0, IF(#REF!="-",0,IF(#REF!>100%,1,0))) ->  | BC109: =IF(#REF!="",0, IF(#REF!="-",0,IF(#REF!>100%,1,0))) ->  | BG109: =CONCATENATE(#REF!,#REF!,#REF!) ->  | BI109: 0 | BJ109: FALSE | BK109: 0 | BL109: =IF(#REF!="",0,IF(#REF!=#REF!,1,0)) ->  | BR109: R1DTHE LAUREL'S | BS109: R1DC1 | BT109: THE LAUREL'S | BU109: R1DC1 | BV109: THE LAUREL'S | BW109: R1D | BZ109: The Royal London Hospital | CA109: 14E RLH
C110: 0 | D110: 0 | E110: 0 | H110: 0 | I110: 0 | J110: 0 | K110: 0 | L110: 0 | M110: 0 | N110: 0 | O110: 0 | P110: 0 | Q110: 0 | R110: 0 | AC110: 0 | AK110: 0 | AL110: 0 | AM110: 0 | AN110: 0 | AO110: 0 | AP110: 0 | AQ110: 0 | AR110: 0 | AS110: 0 | AT110: 0 | AU110: 0 | AY110: =IF(#REF!="",0, IF(#REF!="-",0,IF(#REF!>100%,1,0))) ->  | BA110: =IF(#REF!="",0, IF(#REF!="-",0,IF(#REF!>100%,1,0))) ->  | BB110: =IF(#REF!="",0, IF(#REF!="-",0,IF(#REF!>100%,1,0))) ->  | BC110: =IF(#REF!="",0, IF(#REF!="-",0,IF(#REF!>100%,1,0))) ->  | BG110: =CONCATENATE(#REF!,#REF!,#REF!) ->  | BI110: 0 | BJ110: FALSE | BK110: 0 | BL110: =IF(#REF!="",0,IF(#REF!=#REF!,1,0)) ->  | BR110: R1DTHE MEWS | BS110: R1DDD | BT110: THE MEWS | BU110: R1DDD | BV110: THE MEWS | BW110: R1D | BZ110: The Royal London Hospital | CA110: 14F RLH
C111: 0 | D111: 0 | E111: 0 | H111: 0 | I111: 0 | J111: 0 | K111: 0 | L111: 0 | M111: 0 | N111: 0 | O111: 0 | P111: 0 | Q111: 0 | R111: 0 | AC111: 0 | AK111: 0 | AL111: 0 | AM111: 0 | AN111: 0 | AO111: 0 | AP111: 0 | AQ111: 0 | AR111: 0 | AS111: 0 | AT111: 0 | AU111: 0 | AY111: =IF(#REF!="",0, IF(#REF!="-",0,IF(#REF!>100%,1,0))) ->  | BA111: =IF(#REF!="",0, IF(#REF!="-",0,IF(#REF!>100%,1,0))) ->  | BB111: =IF(#REF!="",0, IF(#REF!="-",0,IF(#REF!>100%,1,0))) ->  | BC111: =IF(#REF!="",0, IF(#REF!="-",0,IF(#REF!>100%,1,0))) ->  | BG111: =CONCATENATE(#REF!,#REF!,#REF!) ->  | BI111: 0 | BJ111: FALSE | BK111: 0 | BL111: =IF(#REF!="",0,IF(#REF!=#REF!,1,0)) ->  | BR111: R1DTHE MOUNT | BS111: R1D02 | BT111: THE MOUNT | BU111: R1D02 | BV111: THE MOUNT | BW111: R1D | BZ111: The Royal London Hospital | CA111: 3D RLH
C112: 0 | D112: 0 | E112: 0 | H112: 0 | I112: 0 | J112: 0 | K112: 0 | L112: 0 | M112: 0 | N112: 0 | O112: 0 | P112: 0 | Q112: 0 | R112: 0 | AC112: 0 | AK112: 0 | AL112: 0 | AM112: 0 | AN112: 0 | AO112: 0 | AP112: 0 | AQ112: 0 | AR112: 0 | AS112: 0 | AT112: 0 | AU112: 0 | AY112: =IF(#REF!="",0, IF(#REF!="-",0,IF(#REF!>100%,1,0))) ->  | BA112: =IF(#REF!="",0, IF(#REF!="-",0,IF(#REF!>100%,1,0))) ->  | BB112: =IF(#REF!="",0, IF(#REF!="-",0,IF(#REF!>100%,1,0))) ->  | BC112: =IF(#REF!="",0, IF(#REF!="-",0,IF(#REF!>100%,1,0))) ->  | BG112: =CONCATENATE(#REF!,#REF!,#REF!) ->  | BI112: 0 | BJ112: FALSE | BK112: 0 | BL112: =IF(#REF!="",0,IF(#REF!=#REF!,1,0)) ->  | BR112: R1DTHE OLD BARN | BS112: R1D93 | BT112: THE OLD BARN | BU112: R1D93 | BV112: THE OLD BARN | BW112: R1D | BZ112: The Royal London Hospital | CA112: 3E RLH
C113: 0 | D113: 0 | E113: 0 | H113: 0 | I113: 0 | J113: 0 | K113: 0 | L113: 0 | M113: 0 | N113: 0 | O113: 0 | P113: 0 | Q113: 0 | R113: 0 | AC113: 0 | AK113: 0 | AL113: 0 | AM113: 0 | AN113: 0 | AO113: 0 | AP113: 0 | AQ113: 0 | AR113: 0 | AS113: 0 | AT113: 0 | AU113: 0 | AY113: =IF(#REF!="",0, IF(#REF!="-",0,IF(#REF!>100%,1,0))) ->  | BA113: =IF(#REF!="",0, IF(#REF!="-",0,IF(#REF!>100%,1,0))) ->  | BB113: =IF(#REF!="",0, IF(#REF!="-",0,IF(#REF!>100%,1,0))) ->  | BC113: =IF(#REF!="",0, IF(#REF!="-",0,IF(#REF!>100%,1,0))) ->  | BG113: =CONCATENATE(#REF!,#REF!,#REF!) ->  | BI113: 0 | BJ113: FALSE | BK113: 0 | BL113: =IF(#REF!="",0,IF(#REF!=#REF!,1,0)) ->  | BR113: R1DVISION HOMES (1A) | BS113: R1D84 | BT113: VISION HOMES (1A) | BU113: R1D84 | BV113: VISION HOMES (1A) | BW113: R1D | BZ113: The Royal London Hospital | CA113: 3F RLH
C114: 0 | D114: 0 | E114: 0 | H114: 0 | I114: 0 | J114: 0 | K114: 0 | L114: 0 | M114: 0 | N114: 0 | O114: 0 | P114: 0 | Q114: 0 | R114: 0 | AC114: 0 | AK114: 0 | AL114: 0 | AM114: 0 | AN114: 0 | AO114: 0 | AP114: 0 | AQ114: 0 | AR114: 0 | AS114: 0 | AT114: 0 | AU114: 0 | AY114: =IF(#REF!="",0, IF(#REF!="-",0,IF(#REF!>100%,1,0))) ->  | BA114: =IF(#REF!="",0, IF(#REF!="-",0,IF(#REF!>100%,1,0))) ->  | BB114: =IF(#REF!="",0, IF(#REF!="-",0,IF(#REF!>100%,1,0))) ->  | BC114: =IF(#REF!="",0, IF(#REF!="-",0,IF(#REF!>100%,1,0))) ->  | BG114: =CONCATENATE(#REF!,#REF!,#REF!) ->  | BI114: 0 | BJ114: FALSE | BK114: 0 | BL114: =IF(#REF!="",0,IF(#REF!=#REF!,1,0)) ->  | BR114: R1DWEST BANK | BS114: R1D11 | BT114: WEST BANK | BU114: R1D11 | BV114: WEST BANK | BW114: R1D | BZ114: The Royal London Hospital | CA114: 4E RLH
C115: 0 | D115: 0 | E115: 0 | H115: 0 | I115: 0 | J115: 0 | K115: 0 | L115: 0 | M115: 0 | N115: 0 | O115: 0 | P115: 0 | Q115: 0 | R115: 0 | AC115: 0 | AK115: 0 | AL115: 0 | AM115: 0 | AN115: 0 | AO115: 0 | AP115: 0 | AQ115: 0 | AR115: 0 | AS115: 0 | AT115: 0 | AU115: 0 | AY115: =IF(#REF!="",0, IF(#REF!="-",0,IF(#REF!>100%,1,0))) ->  | BA115: =IF(#REF!="",0, IF(#REF!="-",0,IF(#REF!>100%,1,0))) ->  | BB115: =IF(#REF!="",0, IF(#REF!="-",0,IF(#REF!>100%,1,0))) ->  | BC115: =IF(#REF!="",0, IF(#REF!="-",0,IF(#REF!>100%,1,0))) ->  | BG115: =CONCATENATE(#REF!,#REF!,#REF!) ->  | BI115: 0 | BJ115: FALSE | BK115: 0 | BL115: =IF(#REF!="",0,IF(#REF!=#REF!,1,0)) ->  | BR115: R1DWHITCHURCH COMMUNITY HOSPITAL | BS115: R1DG5 | BT115: WHITCHURCH COMMUNITY HOSPITAL | BU115: R1DG5 | BV115: WHITCHURCH COMMUNITY HOSPITAL | BW115: R1D | BZ115: The Royal London Hospital | CA115: 6C RLH
C116: 0 | D116: 0 | E116: 0 | H116: 0 | I116: 0 | J116: 0 | K116: 0 | L116: 0 | M116: 0 | N116: 0 | O116: 0 | P116: 0 | Q116: 0 | R116: 0 | AC116: 0 | AK116: 0 | AL116: 0 | AM116: 0 | AN116: 0 | AO116: 0 | AP116: 0 | AQ116: 0 | AR116: 0 | AS116: 0 | AT116: 0 | AU116: 0 | AY116: =IF(#REF!="",0, IF(#REF!="-",0,IF(#REF!>100%,1,0))) ->  | BA116: =IF(#REF!="",0, IF(#REF!="-",0,IF(#REF!>100%,1,0))) ->  | BB116: =IF(#REF!="",0, IF(#REF!="-",0,IF(#REF!>100%,1,0))) ->  | BC116: =IF(#REF!="",0, IF(#REF!="-",0,IF(#REF!>100%,1,0))) ->  | BG116: =CONCATENATE(#REF!,#REF!,#REF!) ->  | BI116: 0 | BJ116: FALSE | BK116: 0 | BL116: =IF(#REF!="",0,IF(#REF!=#REF!,1,0)) ->  | BR116: R1DWHITCHURCH HOSP OPD1 | BS116: R1DJ4 | BT116: WHITCHURCH HOSP OPD1 | BU116: R1DJ4 | BV116: WHITCHURCH HOSP OPD1 | BW116: R1D | BZ116: The Royal London Hospital | CA116: 6E & 6F RLH
C117: 0 | D117: 0 | E117: 0 | H117: 0 | I117: 0 | J117: 0 | K117: 0 | L117: 0 | M117: 0 | N117: 0 | O117: 0 | P117: 0 | Q117: 0 | R117: 0 | AC117: 0 | AK117: 0 | AL117: 0 | AM117: 0 | AN117: 0 | AO117: 0 | AP117: 0 | AQ117: 0 | AR117: 0 | AS117: 0 | AT117: 0 | AU117: 0 | AY117: =IF(#REF!="",0, IF(#REF!="-",0,IF(#REF!>100%,1,0))) ->  | BA117: =IF(#REF!="",0, IF(#REF!="-",0,IF(#REF!>100%,1,0))) ->  | BB117: =IF(#REF!="",0, IF(#REF!="-",0,IF(#REF!>100%,1,0))) ->  | BC117: =IF(#REF!="",0, IF(#REF!="-",0,IF(#REF!>100%,1,0))) ->  | BG117: =CONCATENATE(#REF!,#REF!,#REF!) ->  | BI117: 0 | BJ117: FALSE | BK117: 0 | BL117: =IF(#REF!="",0,IF(#REF!=#REF!,1,0)) ->  | BR117: R1DWHITCHURCH HOSPITAL | BS117: R1D34 | BT117: WHITCHURCH HOSPITAL | BU117: R1D34 | BV117: WHITCHURCH HOSPITAL | BW117: R1D | BZ117: The Royal London Hospital | CA117: 7C RLH
C118: 0 | D118: 0 | E118: 0 | H118: 0 | I118: 0 | J118: 0 | K118: 0 | L118: 0 | M118: 0 | N118: 0 | O118: 0 | P118: 0 | Q118: 0 | R118: 0 | AC118: 0 | AK118: 0 | AL118: 0 | AM118: 0 | AN118: 0 | AO118: 0 | AP118: 0 | AQ118: 0 | AR118: 0 | AS118: 0 | AT118: 0 | AU118: 0 | AY118: =IF(#REF!="",0, IF(#REF!="-",0,IF(#REF!>100%,1,0))) ->  | BA118: =IF(#REF!="",0, IF(#REF!="-",0,IF(#REF!>100%,1,0))) ->  | BB118: =IF(#REF!="",0, IF(#REF!="-",0,IF(#REF!>100%,1,0))) ->  | BC118: =IF(#REF!="",0, IF(#REF!="-",0,IF(#REF!>100%,1,0))) ->  | BG118: =CONCATENATE(#REF!,#REF!,#REF!) ->  | BI118: 0 | BJ118: FALSE | BK118: 0 | BL118: =IF(#REF!="",0,IF(#REF!=#REF!,1,0)) ->  | BR118: R1DWREXHAM MAELOR HOSPITAL | BS118: R1DD4 | BT118: WREXHAM MAELOR HOSPITAL | BU118: R1DD4 | BV118: WREXHAM MAELOR HOSPITAL | BW118: R1D | BZ118: The Royal London Hospital | CA118: 7D RLH
C119: 0 | D119: 0 | E119: 0 | H119: 0 | I119: 0 | J119: 0 | K119: 0 | L119: 0 | M119: 0 | N119: 0 | O119: 0 | P119: 0 | Q119: 0 | R119: 0 | AC119: 0 | AK119: 0 | AL119: 0 | AM119: 0 | AN119: 0 | AO119: 0 | AP119: 0 | AQ119: 0 | AR119: 0 | AS119: 0 | AT119: 0 | AU119: 0 | AY119: =IF(#REF!="",0, IF(#REF!="-",0,IF(#REF!>100%,1,0))) ->  | BA119: =IF(#REF!="",0, IF(#REF!="-",0,IF(#REF!>100%,1,0))) ->  | BB119: =IF(#REF!="",0, IF(#REF!="-",0,IF(#REF!>100%,1,0))) ->  | BC119: =IF(#REF!="",0, IF(#REF!="-",0,IF(#REF!>100%,1,0))) ->  | BG119: =CONCATENATE(#REF!,#REF!,#REF!) ->  | BI119: 0 | BJ119: FALSE | BK119: 0 | BL119: =IF(#REF!="",0,IF(#REF!=#REF!,1,0)) ->  | BR119: R1EAIRS - CHEADLE HOSPITAL | BS119: R1EL7 | BT119: AIRS - CHEADLE HOSPITAL | BU119: R1EL7 | BV119: AIRS - CHEADLE HOSPITAL | BW119: R1E | BZ119: The Royal London Hospital | CA119: 7E NORTH RLH
C120: 0 | D120: 0 | E120: 0 | H120: 0 | I120: 0 | J120: 0 | K120: 0 | L120: 0 | M120: 0 | N120: 0 | O120: 0 | P120: 0 | Q120: 0 | R120: 0 | AC120: 0 | AK120: 0 | AL120: 0 | AM120: 0 | AN120: 0 | AO120: 0 | AP120: 0 | AQ120: 0 | AR120: 0 | AS120: 0 | AT120: 0 | AU120: 0 | AY120: =IF(#REF!="",0, IF(#REF!="-",0,IF(#REF!>100%,1,0))) ->  | BA120: =IF(#REF!="",0, IF(#REF!="-",0,IF(#REF!>100%,1,0))) ->  | BB120: =IF(#REF!="",0, IF(#REF!="-",0,IF(#REF!>100%,1,0))) ->  | BC120: =IF(#REF!="",0, IF(#REF!="-",0,IF(#REF!>100%,1,0))) ->  | BG120: =CONCATENATE(#REF!,#REF!,#REF!) ->  | BH120: =IF(BG120="","",(IF(COUNTIF($BG$46:$BG$244,BG120)>1,1,0))=1) ->  | BI120: 0 | BJ120: FALSE | BK120: 0 | BL120: =IF(#REF!="",0,IF(#REF!=#REF!,1,0)) ->  | BR120: R1EAIRS - HAYWOOD HOSPTIAL | BS120: R1EK8 | BT120: AIRS - HAYWOOD HOSPTIAL | BU120: R1EK8 | BV120: AIRS - HAYWOOD HOSPTIAL | BW120: R1E | BZ120: The Royal London Hospital | CA120: 7E RLH
C121: 0 | D121: 0 | E121: 0 | H121: 0 | I121: 0 | J121: 0 | K121: 0 | L121: 0 | M121: 0 | N121: 0 | O121: 0 | P121: 0 | Q121: 0 | R121: 0 | AC121: 0 | AK121: 0 | AL121: 0 | AM121: 0 | AN121: 0 | AO121: 0 | AP121: 0 | AQ121: 0 | AR121: 0 | AS121: 0 | AT121: 0 | AU121: 0 | AY121: =IF(#REF!="",0, IF(#REF!="-",0,IF(#REF!>100%,1,0))) ->  | BA121: =IF(#REF!="",0, IF(#REF!="-",0,IF(#REF!>100%,1,0))) ->  | BB121: =IF(#REF!="",0, IF(#REF!="-",0,IF(#REF!>100%,1,0))) ->  | BC121: =IF(#REF!="",0, IF(#REF!="-",0,IF(#REF!>100%,1,0))) ->  | BG121: =CONCATENATE(#REF!,#REF!,#REF!) ->  | BI121: 0 | BJ121: FALSE | BK121: 0 | BL121: =IF(#REF!="",0,IF(#REF!=#REF!,1,0)) ->  | BR121: R1EAIRS - LEEK MOORLANDS HOSPITAL | BS121: R1EL8 | BT121: AIRS - LEEK MOORLANDS HOSPITAL | BU121: R1EL8 | BV121: AIRS - LEEK MOORLANDS HOSPITAL | BW121: R1E | BZ121: The Royal London Hospital | CA121: 7F RLH
C122: 0 | D122: 0 | E122: 0 | H122: 0 | I122: 0 | J122: 0 | K122: 0 | L122: 0 | M122: 0 | N122: 0 | O122: 0 | P122: 0 | Q122: 0 | R122: 0 | AC122: 0 | AK122: 0 | AL122: 0 | AM122: 0 | AN122: 0 | AO122: 0 | AP122: 0 | AQ122: 0 | AR122: 0 | AS122: 0 | AT122: 0 | AU122: 0 | AY122: =IF(#REF!="",0, IF(#REF!="-",0,IF(#REF!>100%,1,0))) ->  | BA122: =IF(#REF!="",0, IF(#REF!="-",0,IF(#REF!>100%,1,0))) ->  | BB122: =IF(#REF!="",0, IF(#REF!="-",0,IF(#REF!>100%,1,0))) ->  | BC122: =IF(#REF!="",0, IF(#REF!="-",0,IF(#REF!>100%,1,0))) ->  | BG122: =CONCATENATE(#REF!,#REF!,#REF!) ->  | BI122: 0 | BJ122: FALSE | BK122: 0 | BL122: =IF(#REF!="",0,IF(#REF!=#REF!,1,0)) ->  | BR122: R1EAIRS - LONGTON COTTAGE HOSPTIAL | BS122: R1EK7 | BT122: AIRS - LONGTON COTTAGE HOSPTIAL | BU122: R1EK7 | BV122: AIRS - LONGTON COTTAGE HOSPTIAL | BW122: R1E | BZ122: The Royal London Hospital | CA122: 8C RLH
C123: 0 | D123: 0 | E123: 0 | H123: 0 | I123: 0 | J123: 0 | K123: 0 | L123: 0 | M123: 0 | N123: 0 | O123: 0 | P123: 0 | Q123: 0 | R123: 0 | AC123: 0 | AK123: 0 | AL123: 0 | AM123: 0 | AN123: 0 | AO123: 0 | AP123: 0 | AQ123: 0 | AR123: 0 | AS123: 0 | AT123: 0 | AU123: 0 | AY123: =IF(#REF!="",0, IF(#REF!="-",0,IF(#REF!>100%,1,0))) ->  | BA123: =IF(#REF!="",0, IF(#REF!="-",0,IF(#REF!>100%,1,0))) ->  | BB123: =IF(#REF!="",0, IF(#REF!="-",0,IF(#REF!>100%,1,0))) ->  | BC123: =IF(#REF!="",0, IF(#REF!="-",0,IF(#REF!>100%,1,0))) ->  | BG123: =CONCATENATE(#REF!,#REF!,#REF!) ->  | BI123: 0 | BJ123: FALSE | BK123: 0 | BL123: =IF(#REF!="",0,IF(#REF!=#REF!,1,0)) ->  | BR123: R1EAIRS -BRADWELL HOSPITAL | BS123: R1EL6 | BT123: AIRS -BRADWELL HOSPITAL | BU123: R1EL6 | BV123: AIRS -BRADWELL HOSPITAL | BW123: R1E | BZ123: The Royal London Hospital | CA123: 8D RLH
C124: 0 | D124: 0 | E124: 0 | H124: 0 | I124: 0 | J124: 0 | K124: 0 | L124: 0 | M124: 0 | N124: 0 | O124: 0 | P124: 0 | Q124: 0 | R124: 0 | AC124: 0 | AK124: 0 | AL124: 0 | AM124: 0 | AN124: 0 | AO124: 0 | AP124: 0 | AQ124: 0 | AR124: 0 | AS124: 0 | AT124: 0 | AU124: 0 | AY124: =IF(#REF!="",0, IF(#REF!="-",0,IF(#REF!>100%,1,0))) ->  | BA124: =IF(#REF!="",0, IF(#REF!="-",0,IF(#REF!>100%,1,0))) ->  | BB124: =IF(#REF!="",0, IF(#REF!="-",0,IF(#REF!>100%,1,0))) ->  | BC124: =IF(#REF!="",0, IF(#REF!="-",0,IF(#REF!>100%,1,0))) ->  | BG124: =CONCATENATE(#REF!,#REF!,#REF!) ->  | BI124: 0 | BJ124: FALSE | BK124: 0 | BL124: =IF(#REF!="",0,IF(#REF!=#REF!,1,0)) ->  | BR124: R1EAQUEDUCT | BS124: R1EM1 | BT124: AQUEDUCT | BU124: R1EM1 | BV124: AQUEDUCT | BW124: R1E | BZ124: The Royal London Hospital | CA124: 8F RLH
C125: 0 | D125: 0 | E125: 0 | H125: 0 | I125: 0 | J125: 0 | K125: 0 | L125: 0 | M125: 0 | N125: 0 | O125: 0 | P125: 0 | Q125: 0 | R125: 0 | AC125: 0 | AK125: 0 | AL125: 0 | AM125: 0 | AN125: 0 | AO125: 0 | AP125: 0 | AQ125: 0 | AR125: 0 | AS125: 0 | AT125: 0 | AU125: 0 | AY125: =IF(#REF!="",0, IF(#REF!="-",0,IF(#REF!>100%,1,0))) ->  | BA125: =IF(#REF!="",0, IF(#REF!="-",0,IF(#REF!>100%,1,0))) ->  | BB125: =IF(#REF!="",0, IF(#REF!="-",0,IF(#REF!>100%,1,0))) ->  | BC125: =IF(#REF!="",0, IF(#REF!="-",0,IF(#REF!>100%,1,0))) ->  | BG125: =CONCATENATE(#REF!,#REF!,#REF!) ->  | BI125: 0 | BJ125: FALSE | BK125: 0 | BL125: =IF(#REF!="",0,IF(#REF!=#REF!,1,0)) ->  | BR125: R1EBARTON UNDER NEEDWOOD COTTAGE HOSPITAL | BS125: R1E04 | BT125: BARTON UNDER NEEDWOOD COTTAGE HOSPITAL | BU125: R1E04 | BV125: BARTON UNDER NEEDWOOD COTTAGE HOSPITAL | BW125: R1E | BZ125: The Royal London Hospital | CA125: 9E HDU RLH
C126: 0 | D126: 0 | E126: 0 | H126: 0 | I126: 0 | J126: 0 | K126: 0 | L126: 0 | M126: 0 | N126: 0 | O126: 0 | P126: 0 | Q126: 0 | R126: 0 | AC126: 0 | AK126: 0 | AL126: 0 | AM126: 0 | AN126: 0 | AO126: 0 | AP126: 0 | AQ126: 0 | AR126: 0 | AS126: 0 | AT126: 0 | AU126: 0 | AY126: =IF(#REF!="",0, IF(#REF!="-",0,IF(#REF!>100%,1,0))) ->  | BA126: =IF(#REF!="",0, IF(#REF!="-",0,IF(#REF!>100%,1,0))) ->  | BB126: =IF(#REF!="",0, IF(#REF!="-",0,IF(#REF!>100%,1,0))) ->  | BC126: =IF(#REF!="",0, IF(#REF!="-",0,IF(#REF!>100%,1,0))) ->  | BG126: =CONCATENATE(#REF!,#REF!,#REF!) ->  | BI126: 0 | BJ126: FALSE | BK126: 0 | BL126: =IF(#REF!="",0,IF(#REF!=#REF!,1,0)) ->  | BR126: R1EBRADWELL HOSPITAL | BS126: R1EE5 | BT126: BRADWELL HOSPITAL | BU126: R1EE5 | BV126: BRADWELL HOSPITAL | BW126: R1E | BZ126: The Royal London Hospital | CA126: 9E RLH
C127: 0 | D127: 0 | E127: 0 | H127: 0 | I127: 0 | J127: 0 | K127: 0 | L127: 0 | M127: 0 | N127: 0 | O127: 0 | P127: 0 | Q127: 0 | R127: 0 | AC127: 0 | AK127: 0 | AL127: 0 | AM127: 0 | AN127: 0 | AO127: 0 | AP127: 0 | AQ127: 0 | AR127: 0 | AS127: 0 | AT127: 0 | AU127: 0 | AY127: =IF(#REF!="",0, IF(#REF!="-",0,IF(#REF!>100%,1,0))) ->  | BA127: =IF(#REF!="",0, IF(#REF!="-",0,IF(#REF!>100%,1,0))) ->  | BB127: =IF(#REF!="",0, IF(#REF!="-",0,IF(#REF!>100%,1,0))) ->  | BC127: =IF(#REF!="",0, IF(#REF!="-",0,IF(#REF!>100%,1,0))) ->  | BG127: =CONCATENATE(#REF!,#REF!,#REF!) ->  | BI127: 0 | BJ127: FALSE | BK127: 0 | BL127: =IF(#REF!="",0,IF(#REF!=#REF!,1,0)) ->  | BR127: R1EBUCKNALL HOSPITAL | BS127: R1E74 | BT127: BUCKNALL HOSPITAL | BU127: R1E74 | BV127: BUCKNALL HOSPITAL | BW127: R1E | BZ127: The Royal London Hospital | CA127: 9F RLH
C128: 0 | D128: 0 | E128: 0 | H128: 0 | I128: 0 | J128: 0 | K128: 0 | L128: 0 | M128: 0 | N128: 0 | O128: 0 | P128: 0 | Q128: 0 | R128: 0 | AC128: 0 | AK128: 0 | AL128: 0 | AM128: 0 | AN128: 0 | AO128: 0 | AP128: 0 | AQ128: 0 | AR128: 0 | AS128: 0 | AT128: 0 | AU128: 0 | AY128: =IF(#REF!="",0, IF(#REF!="-",0,IF(#REF!>100%,1,0))) ->  | BA128: =IF(#REF!="",0, IF(#REF!="-",0,IF(#REF!>100%,1,0))) ->  | BB128: =IF(#REF!="",0, IF(#REF!="-",0,IF(#REF!>100%,1,0))) ->  | BC128: =IF(#REF!="",0, IF(#REF!="-",0,IF(#REF!>100%,1,0))) ->  | BG128: =CONCATENATE(#REF!,#REF!,#REF!) ->  | BI128: 0 | BJ128: FALSE | BK128: 0 | BL128: =IF(#REF!="",0,IF(#REF!=#REF!,1,0)) ->  | BR128: R1ECANNOCK CHASE HOSPITAL | BS128: R1E07 | BT128: CANNOCK CHASE HOSPITAL | BU128: R1E07 | BV128: CANNOCK CHASE HOSPITAL | BW128: R1E | BZ128: Whipps Cross University Hospital | CA128: AAU WXH
C129: 0 | D129: 0 | E129: 0 | H129: 0 | I129: 0 | J129: 0 | K129: 0 | L129: 0 | M129: 0 | N129: 0 | O129: 0 | P129: 0 | Q129: 0 | R129: 0 | AC129: 0 | AK129: 0 | AL129: 0 | AM129: 0 | AN129: 0 | AO129: 0 | AP129: 0 | AQ129: 0 | AR129: 0 | AS129: 0 | AT129: 0 | AU129: 0 | AY129: =IF(#REF!="",0, IF(#REF!="-",0,IF(#REF!>100%,1,0))) ->  | BA129: =IF(#REF!="",0, IF(#REF!="-",0,IF(#REF!>100%,1,0))) ->  | BB129: =IF(#REF!="",0, IF(#REF!="-",0,IF(#REF!>100%,1,0))) ->  | BC129: =IF(#REF!="",0, IF(#REF!="-",0,IF(#REF!>100%,1,0))) ->  | BG129: =CONCATENATE(#REF!,#REF!,#REF!) ->  | BI129: 0 | BJ129: FALSE | BK129: 0 | BL129: =IF(#REF!="",0,IF(#REF!=#REF!,1,0)) ->  | BR129: R1ECHEADLE HOSPITAL | BS129: R1EE4 | BT129: CHEADLE HOSPITAL | BU129: R1EE4 | BV129: CHEADLE HOSPITAL | BW129: R1E | BZ129: Whipps Cross University Hospital | CA129: ACACIA
C130: 0 | D130: 0 | E130: 0 | H130: 0 | I130: 0 | J130: 0 | K130: 0 | L130: 0 | M130: 0 | N130: 0 | O130: 0 | P130: 0 | Q130: 0 | R130: 0 | AC130: 0 | AK130: 0 | AL130: 0 | AM130: 0 | AN130: 0 | AO130: 0 | AP130: 0 | AQ130: 0 | AR130: 0 | AS130: 0 | AT130: 0 | AU130: 0 | AY130: =IF(#REF!="",0, IF(#REF!="-",0,IF(#REF!>100%,1,0))) ->  | BA130: =IF(#REF!="",0, IF(#REF!="-",0,IF(#REF!>100%,1,0))) ->  | BB130: =IF(#REF!="",0, IF(#REF!="-",0,IF(#REF!>100%,1,0))) ->  | BC130: =IF(#REF!="",0, IF(#REF!="-",0,IF(#REF!>100%,1,0))) ->  | BG130: =CONCATENATE(#REF!,#REF!,#REF!) ->  | BI130: 0 | BJ130: FALSE | BK130: 0 | BL130: =IF(#REF!="",0,IF(#REF!=#REF!,1,0)) ->  | BR130: R1EDR PARIKH AND PARTNER | BS130: R1E97 | BT130: DR PARIKH AND PARTNER | BU130: R1E97 | BV130: DR PARIKH AND PARTNER | BW130: R1E | BZ130: Whipps Cross University Hospital | CA130: ACORN
C131: 0 | D131: 0 | E131: 0 | H131: 0 | I131: 0 | J131: 0 | K131: 0 | L131: 0 | M131: 0 | N131: 0 | O131: 0 | P131: 0 | Q131: 0 | R131: 0 | AC131: 0 | AK131: 0 | AL131: 0 | AM131: 0 | AN131: 0 | AO131: 0 | AP131: 0 | AQ131: 0 | AR131: 0 | AS131: 0 | AT131: 0 | AU131: 0 | AY131: =IF(#REF!="",0, IF(#REF!="-",0,IF(#REF!>100%,1,0))) ->  | BA131: =IF(#REF!="",0, IF(#REF!="-",0,IF(#REF!>100%,1,0))) ->  | BB131: =IF(#REF!="",0, IF(#REF!="-",0,IF(#REF!>100%,1,0))) ->  | BC131: =IF(#REF!="",0, IF(#REF!="-",0,IF(#REF!>100%,1,0))) ->  | BG131: =CONCATENATE(#REF!,#REF!,#REF!) ->  | BI131: 0 | BJ131: FALSE | BK131: 0 | BL131: =IF(#REF!="",0,IF(#REF!=#REF!,1,0)) ->  | BR131: R1EDRUG LINK | BS131: R1EA2 | BT131: DRUG LINK | BU131: R1EA2 | BV131: DRUG LINK | BW131: R1E | BZ131: Whipps Cross University Hospital | CA131: BIRCH
C132: 0 | D132: 0 | E132: 0 | H132: 0 | I132: 0 | J132: 0 | K132: 0 | L132: 0 | M132: 0 | N132: 0 | O132: 0 | P132: 0 | Q132: 0 | R132: 0 | AC132: 0 | AK132: 0 | AL132: 0 | AM132: 0 | AN132: 0 | AO132: 0 | AP132: 0 | AQ132: 0 | AR132: 0 | AS132: 0 | AT132: 0 | AU132: 0 | AY132: =IF(#REF!="",0, IF(#REF!="-",0,IF(#REF!>100%,1,0))) ->  | BA132: =IF(#REF!="",0, IF(#REF!="-",0,IF(#REF!>100%,1,0))) ->  | BB132: =IF(#REF!="",0, IF(#REF!="-",0,IF(#REF!>100%,1,0))) ->  | BC132: =IF(#REF!="",0, IF(#REF!="-",0,IF(#REF!>100%,1,0))) ->  | BG132: =CONCATENATE(#REF!,#REF!,#REF!) ->  | BI132: 0 | BJ132: FALSE | BK132: 0 | BL132: =IF(#REF!="",0,IF(#REF!=#REF!,1,0)) ->  | BR132: R1EHAYWOOD HOSPITAL | BS132: R1E56 | BT132: HAYWOOD HOSPITAL | BU132: R1E56 | BV132: HAYWOOD HOSPITAL | BW132: R1E | BZ132: Whipps Cross University Hospital | CA132: Bracken
C133: 0 | D133: 0 | E133: 0 | H133: 0 | I133: 0 | J133: 0 | K133: 0 | L133: 0 | M133: 0 | N133: 0 | O133: 0 | P133: 0 | Q133: 0 | R133: 0 | AC133: 0 | AK133: 0 | AL133: 0 | AM133: 0 | AN133: 0 | AO133: 0 | AP133: 0 | AQ133: 0 | AR133: 0 | AS133: 0 | AT133: 0 | AU133: 0 | AY133: =IF(#REF!="",0, IF(#REF!="-",0,IF(#REF!>100%,1,0))) ->  | BA133: =IF(#REF!="",0, IF(#REF!="-",0,IF(#REF!>100%,1,0))) ->  | BB133: =IF(#REF!="",0, IF(#REF!="-",0,IF(#REF!>100%,1,0))) ->  | BC133: =IF(#REF!="",0, IF(#REF!="-",0,IF(#REF!>100%,1,0))) ->  | BG133: =CONCATENATE(#REF!,#REF!,#REF!) ->  | BI133: 0 | BJ133: FALSE | BK133: 0 | BL133: =IF(#REF!="",0,IF(#REF!=#REF!,1,0)) ->  | BR133: R1EHILLTOP / ST MICHAELS | BS133: R1EA4 | BT133: HILLTOP / ST MICHAELS | BU133: R1EA4 | BV133: HILLTOP / ST MICHAELS | BW133: R1E | BZ133: Whipps Cross University Hospital | CA133: CEDAR
C134: 0 | D134: 0 | E134: 0 | H134: 0 | I134: 0 | J134: 0 | K134: 0 | L134: 0 | M134: 0 | N134: 0 | O134: 0 | P134: 0 | Q134: 0 | R134: 0 | AC134: 0 | AK134: 0 | AL134: 0 | AM134: 0 | AN134: 0 | AO134: 0 | AP134: 0 | AQ134: 0 | AR134: 0 | AS134: 0 | AT134: 0 | AU134: 0 | AY134: =IF(#REF!="",0, IF(#REF!="-",0,IF(#REF!>100%,1,0))) ->  | BA134: =IF(#REF!="",0, IF(#REF!="-",0,IF(#REF!>100%,1,0))) ->  | BB134: =IF(#REF!="",0, IF(#REF!="-",0,IF(#REF!>100%,1,0))) ->  | BC134: =IF(#REF!="",0, IF(#REF!="-",0,IF(#REF!>100%,1,0))) ->  | BG134: =CONCATENATE(#REF!,#REF!,#REF!) ->  | BI134: 0 | BJ134: FALSE | BK134: 0 | BL134: =IF(#REF!="",0,IF(#REF!=#REF!,1,0)) ->  | BR134: R1EKEELE UNIVERSITY | BS134: R1ED4 | BT134: KEELE UNIVERSITY | BU134: R1ED4 | BV134: KEELE UNIVERSITY | BW134: R1E | BZ134: Whipps Cross University Hospital | CA134: CHESTNUT
C135: 0 | D135: 0 | E135: 0 | H135: 0 | I135: 0 | J135: 0 | K135: 0 | L135: 0 | M135: 0 | N135: 0 | O135: 0 | P135: 0 | Q135: 0 | R135: 0 | AC135: 0 | AK135: 0 | AL135: 0 | AM135: 0 | AN135: 0 | AO135: 0 | AP135: 0 | AQ135: 0 | AR135: 0 | AS135: 0 | AT135: 0 | AU135: 0 | AY135: =IF(#REF!="",0, IF(#REF!="-",0,IF(#REF!>100%,1,0))) ->  | BA135: =IF(#REF!="",0, IF(#REF!="-",0,IF(#REF!>100%,1,0))) ->  | BB135: =IF(#REF!="",0, IF(#REF!="-",0,IF(#REF!>100%,1,0))) ->  | BC135: =IF(#REF!="",0, IF(#REF!="-",0,IF(#REF!>100%,1,0))) ->  | BG135: =CONCATENATE(#REF!,#REF!,#REF!) ->  | BI135: 0 | BJ135: FALSE | BK135: 0 | BL135: =IF(#REF!="",0,IF(#REF!=#REF!,1,0)) ->  | BR135: R1ELEEK MOORLANDS HOSPITAL | BS135: R1EE3 | BT135: LEEK MOORLANDS HOSPITAL | BU135: R1EE3 | BV135: LEEK MOORLANDS HOSPITAL | BW135: R1E | BZ135: Whipps Cross University Hospital | CA135: CONIFER
C136: 0 | D136: 0 | E136: 0 | H136: 0 | I136: 0 | J136: 0 | K136: 0 | L136: 0 | M136: 0 | N136: 0 | O136: 0 | P136: 0 | Q136: 0 | R136: 0 | AC136: 0 | AK136: 0 | AL136: 0 | AM136: 0 | AN136: 0 | AO136: 0 | AP136: 0 | AQ136: 0 | AR136: 0 | AS136: 0 | AT136: 0 | AU136: 0 | AY136: =IF(#REF!="",0, IF(#REF!="-",0,IF(#REF!>100%,1,0))) ->  | BA136: =IF(#REF!="",0, IF(#REF!="-",0,IF(#REF!>100%,1,0))) ->  | BB136: =IF(#REF!="",0, IF(#REF!="-",0,IF(#REF!>100%,1,0))) ->  | BC136: =IF(#REF!="",0, IF(#REF!="-",0,IF(#REF!>100%,1,0))) ->  | BG136: =CONCATENATE(#REF!,#REF!,#REF!) ->  | BI136: 0 | BJ136: FALSE | BK136: 0 | BL136: =IF(#REF!="",0,IF(#REF!=#REF!,1,0)) ->  | BR136: R1ELONGTON HOSPITAL | BS136: R1E75 | BT136: LONGTON HOSPITAL | BU136: R1E75 | BV136: LONGTON HOSPITAL | BW136: R1E | BZ136: Whipps Cross University Hospital | CA136: CURIE
C137: 0 | D137: 0 | E137: 0 | H137: 0 | I137: 0 | J137: 0 | K137: 0 | L137: 0 | M137: 0 | N137: 0 | O137: 0 | P137: 0 | Q137: 0 | R137: 0 | AC137: 0 | AK137: 0 | AL137: 0 | AM137: 0 | AN137: 0 | AO137: 0 | AP137: 0 | AQ137: 0 | AR137: 0 | AS137: 0 | AT137: 0 | AU137: 0 | AY137: =IF(#REF!="",0, IF(#REF!="-",0,IF(#REF!>100%,1,0))) ->  | BA137: =IF(#REF!="",0, IF(#REF!="-",0,IF(#REF!>100%,1,0))) ->  | BB137: =IF(#REF!="",0, IF(#REF!="-",0,IF(#REF!>100%,1,0))) ->  | BC137: =IF(#REF!="",0, IF(#REF!="-",0,IF(#REF!>100%,1,0))) ->  | BG137: =CONCATENATE(#REF!,#REF!,#REF!) ->  | BI137: 0 | BJ137: FALSE | BK137: 0 | BL137: =IF(#REF!="",0,IF(#REF!=#REF!,1,0)) ->  | BR137: R1EMAIN BUILDING CITY GENERAL HOSPITAL | BS137: R1EH2 | BT137: MAIN BUILDING CITY GENERAL HOSPITAL | BU137: R1EH2 | BV137: MAIN BUILDING CITY GENERAL HOSPITAL | BW137: R1E | BZ137: Whipps Cross University Hospital | CA137: DELIVERY SUITE WXH
C138: 0 | D138: 0 | E138: 0 | H138: 0 | I138: 0 | J138: 0 | K138: 0 | L138: 0 | M138: 0 | N138: 0 | O138: 0 | P138: 0 | Q138: 0 | R138: 0 | AC138: 0 | AK138: 0 | AL138: 0 | AM138: 0 | AN138: 0 | AO138: 0 | AP138: 0 | AQ138: 0 | AR138: 0 | AS138: 0 | AT138: 0 | AU138: 0 | AY138: =IF(#REF!="",0, IF(#REF!="-",0,IF(#REF!>100%,1,0))) ->  | BA138: =IF(#REF!="",0, IF(#REF!="-",0,IF(#REF!>100%,1,0))) ->  | BB138: =IF(#REF!="",0, IF(#REF!="-",0,IF(#REF!>100%,1,0))) ->  | BC138: =IF(#REF!="",0, IF(#REF!="-",0,IF(#REF!>100%,1,0))) ->  | BG138: =CONCATENATE(#REF!,#REF!,#REF!) ->  | BI138: 0 | BJ138: FALSE | BK138: 0 | BL138: =IF(#REF!="",0,IF(#REF!=#REF!,1,0)) ->  | BR138: R1ENORTH STAFFS URGENT CARE | BS138: R1E89 | BT138: NORTH STAFFS URGENT CARE | BU138: R1E89 | BV138: NORTH STAFFS URGENT CARE | BW138: R1E | BZ138: Whipps Cross University Hospital | CA138: ELIZABETH
C139: 0 | D139: 0 | E139: 0 | H139: 0 | I139: 0 | J139: 0 | K139: 0 | L139: 0 | M139: 0 | N139: 0 | O139: 0 | P139: 0 | Q139: 0 | R139: 0 | AC139: 0 | AK139: 0 | AL139: 0 | AM139: 0 | AN139: 0 | AO139: 0 | AP139: 0 | AQ139: 0 | AR139: 0 | AS139: 0 | AT139: 0 | AU139: 0 | AY139: =IF(#REF!="",0, IF(#REF!="-",0,IF(#REF!>100%,1,0))) ->  | BA139: =IF(#REF!="",0, IF(#REF!="-",0,IF(#REF!>100%,1,0))) ->  | BB139: =IF(#REF!="",0, IF(#REF!="-",0,IF(#REF!>100%,1,0))) ->  | BC139: =IF(#REF!="",0, IF(#REF!="-",0,IF(#REF!>100%,1,0))) ->  | BG139: =CONCATENATE(#REF!,#REF!,#REF!) ->  | BI139: 0 | BJ139: FALSE | BK139: 0 | BL139: =IF(#REF!="",0,IF(#REF!=#REF!,1,0)) ->  | BR139: R1EOAKWOOD | BS139: R1EH1 | BT139: OAKWOOD | BU139: R1EH1 | BV139: OAKWOOD | BW139: R1E | BZ139: Whipps Cross University Hospital | CA139: FARADAY
C140: 0 | D140: 0 | E140: 0 | H140: 0 | I140: 0 | J140: 0 | K140: 0 | L140: 0 | M140: 0 | N140: 0 | O140: 0 | P140: 0 | Q140: 0 | R140: 0 | AC140: 0 | AK140: 0 | AL140: 0 | AM140: 0 | AN140: 0 | AO140: 0 | AP140: 0 | AQ140: 0 | AR140: 0 | AS140: 0 | AT140: 0 | AU140: 0 | AY140: =IF(#REF!="",0, IF(#REF!="-",0,IF(#REF!>100%,1,0))) ->  | BA140: =IF(#REF!="",0, IF(#REF!="-",0,IF(#REF!>100%,1,0))) ->  | BB140: =IF(#REF!="",0, IF(#REF!="-",0,IF(#REF!>100%,1,0))) ->  | BC140: =IF(#REF!="",0, IF(#REF!="-",0,IF(#REF!>100%,1,0))) ->  | BG140: =CONCATENATE(#REF!,#REF!,#REF!) ->  | BI140: 0 | BJ140: FALSE | BK140: 0 | BL140: =IF(#REF!="",0,IF(#REF!=#REF!,1,0)) ->  | BR140: R1EREHABILITATION MEDICINE | BS140: R1EL9 | BT140: REHABILITATION MEDICINE | BU140: R1EL9 | BV140: REHABILITATION MEDICINE | BW140: R1E | BZ140: Whipps Cross University Hospital | CA140: Frail Elderly WXH
C141: 0 | D141: 0 | E141: 0 | H141: 0 | I141: 0 | J141: 0 | K141: 0 | L141: 0 | M141: 0 | N141: 0 | O141: 0 | P141: 0 | Q141: 0 | R141: 0 | AC141: 0 | AK141: 0 | AL141: 0 | AM141: 0 | AN141: 0 | AO141: 0 | AP141: 0 | AQ141: 0 | AR141: 0 | AS141: 0 | AT141: 0 | AU141: 0 | AY141: =IF(#REF!="",0, IF(#REF!="-",0,IF(#REF!>100%,1,0))) ->  | BA141: =IF(#REF!="",0, IF(#REF!="-",0,IF(#REF!>100%,1,0))) ->  | BB141: =IF(#REF!="",0, IF(#REF!="-",0,IF(#REF!>100%,1,0))) ->  | BC141: =IF(#REF!="",0, IF(#REF!="-",0,IF(#REF!>100%,1,0))) ->  | BG141: =CONCATENATE(#REF!,#REF!,#REF!) ->  | BI141: 0 | BJ141: FALSE | BK141: 0 | BL141: =IF(#REF!="",0,IF(#REF!=#REF!,1,0)) ->  | BR141: R1ESAMUEL JOHNSON COMMUNITY HOSPITAL | BS141: R1E28 | BT141: SAMUEL JOHNSON COMMUNITY HOSPITAL | BU141: R1E28 | BV141: SAMUEL JOHNSON COMMUNITY HOSPITAL | BW141: R1E | BZ141: Whipps Cross University Hospital | CA141: ICU WXH
C142: 0 | D142: 0 | E142: 0 | H142: 0 | I142: 0 | J142: 0 | K142: 0 | L142: 0 | M142: 0 | N142: 0 | O142: 0 | P142: 0 | Q142: 0 | R142: 0 | AC142: 0 | AK142: 0 | AL142: 0 | AM142: 0 | AN142: 0 | AO142: 0 | AP142: 0 | AQ142: 0 | AR142: 0 | AS142: 0 | AT142: 0 | AU142: 0 | AY142: =IF(#REF!="",0, IF(#REF!="-",0,IF(#REF!>100%,1,0))) ->  | BA142: =IF(#REF!="",0, IF(#REF!="-",0,IF(#REF!>100%,1,0))) ->  | BB142: =IF(#REF!="",0, IF(#REF!="-",0,IF(#REF!>100%,1,0))) ->  | BC142: =IF(#REF!="",0, IF(#REF!="-",0,IF(#REF!>100%,1,0))) ->  | BG142: =CONCATENATE(#REF!,#REF!,#REF!) ->  | BI142: 0 | BJ142: FALSE | BK142: 0 | BL142: =IF(#REF!="",0,IF(#REF!=#REF!,1,0)) ->  | BR142: R1ESIR ROBERT PEEL HOSPITAL | BS142: R1E30 | BT142: SIR ROBERT PEEL HOSPITAL | BU142: R1E30 | BV142: SIR ROBERT PEEL HOSPITAL | BW142: R1E | BZ142: Whipps Cross University Hospital | CA142: MARGARET
C143: 0 | D143: 0 | E143: 0 | H143: 0 | I143: 0 | J143: 0 | K143: 0 | L143: 0 | M143: 0 | N143: 0 | O143: 0 | P143: 0 | Q143: 0 | R143: 0 | AC143: 0 | AK143: 0 | AL143: 0 | AM143: 0 | AN143: 0 | AO143: 0 | AP143: 0 | AQ143: 0 | AR143: 0 | AS143: 0 | AT143: 0 | AU143: 0 | AY143: =IF(#REF!="",0, IF(#REF!="-",0,IF(#REF!>100%,1,0))) ->  | BA143: =IF(#REF!="",0, IF(#REF!="-",0,IF(#REF!>100%,1,0))) ->  | BB143: =IF(#REF!="",0, IF(#REF!="-",0,IF(#REF!>100%,1,0))) ->  | BC143: =IF(#REF!="",0, IF(#REF!="-",0,IF(#REF!>100%,1,0))) ->  | BG143: =CONCATENATE(#REF!,#REF!,#REF!) ->  | BI143: 0 | BJ143: FALSE | BK143: 0 | BL143: =IF(#REF!="",0,IF(#REF!=#REF!,1,0)) ->  | BR143: R1EST MICHAEL'S HOSPITAL | BS143: R1E33 | BT143: ST MICHAEL'S HOSPITAL | BU143: R1E33 | BV143: ST MICHAEL'S HOSPITAL | BW143: R1E | BZ143: Whipps Cross University Hospital | CA143: Mary
C144: 0 | D144: 0 | E144: 0 | H144: 0 | I144: 0 | J144: 0 | K144: 0 | L144: 0 | M144: 0 | N144: 0 | O144: 0 | P144: 0 | Q144: 0 | R144: 0 | AC144: 0 | AK144: 0 | AL144: 0 | AM144: 0 | AN144: 0 | AO144: 0 | AP144: 0 | AQ144: 0 | AR144: 0 | AS144: 0 | AT144: 0 | AU144: 0 | AY144: =IF(#REF!="",0, IF(#REF!="-",0,IF(#REF!>100%,1,0))) ->  | BA144: =IF(#REF!="",0, IF(#REF!="-",0,IF(#REF!>100%,1,0))) ->  | BB144: =IF(#REF!="",0, IF(#REF!="-",0,IF(#REF!>100%,1,0))) ->  | BC144: =IF(#REF!="",0, IF(#REF!="-",0,IF(#REF!>100%,1,0))) ->  | BG144: =CONCATENATE(#REF!,#REF!,#REF!) ->  | BI144: 0 | BJ144: FALSE | BK144: 0 | BL144: =IF(#REF!="",0,IF(#REF!=#REF!,1,0)) ->  | BR144: R1ESTOKE SPEAKS OUT | BS144: R1EC4 | BT144: STOKE SPEAKS OUT | BU144: R1EC4 | BV144: STOKE SPEAKS OUT | BW144: R1E | BZ144: Whipps Cross University Hospital | CA144: MIDWIFERY WXH
C145: 0 | D145: 0 | E145: 0 | H145: 0 | I145: 0 | J145: 0 | K145: 0 | L145: 0 | M145: 0 | N145: 0 | O145: 0 | P145: 0 | Q145: 0 | R145: 0 | AC145: 0 | AK145: 0 | AL145: 0 | AM145: 0 | AN145: 0 | AO145: 0 | AP145: 0 | AQ145: 0 | AR145: 0 | AS145: 0 | AT145: 0 | AU145: 0 | AY145: =IF(#REF!="",0, IF(#REF!="-",0,IF(#REF!>100%,1,0))) ->  | BA145: =IF(#REF!="",0, IF(#REF!="-",0,IF(#REF!>100%,1,0))) ->  | BB145: =IF(#REF!="",0, IF(#REF!="-",0,IF(#REF!>100%,1,0))) ->  | BC145: =IF(#REF!="",0, IF(#REF!="-",0,IF(#REF!>100%,1,0))) ->  | BG145: =CONCATENATE(#REF!,#REF!,#REF!) ->  | BI145: 0 | BJ145: FALSE | BK145: 0 | BL145: =IF(#REF!="",0,IF(#REF!=#REF!,1,0)) ->  | BR145: R1ETHE MEADOWS RETIREMENT HOME | BS145: R1ED5 | BT145: THE MEADOWS RETIREMENT HOME | BU145: R1ED5 | BV145: THE MEADOWS RETIREMENT HOME | BW145: R1E | BZ145: Whipps Cross University Hospital | CA145: MULBERRY
C146: 0 | D146: 0 | E146: 0 | H146: 0 | I146: 0 | J146: 0 | K146: 0 | L146: 0 | M146: 0 | N146: 0 | O146: 0 | P146: 0 | Q146: 0 | R146: 0 | AC146: 0 | AK146: 0 | AL146: 0 | AM146: 0 | AN146: 0 | AO146: 0 | AP146: 0 | AQ146: 0 | AR146: 0 | AS146: 0 | AT146: 0 | AU146: 0 | AY146: =IF(#REF!="",0, IF(#REF!="-",0,IF(#REF!>100%,1,0))) ->  | BA146: =IF(#REF!="",0, IF(#REF!="-",0,IF(#REF!>100%,1,0))) ->  | BB146: =IF(#REF!="",0, IF(#REF!="-",0,IF(#REF!>100%,1,0))) ->  | BC146: =IF(#REF!="",0, IF(#REF!="-",0,IF(#REF!>100%,1,0))) ->  | BG146: =CONCATENATE(#REF!,#REF!,#REF!) ->  | BI146: 0 | BJ146: FALSE | BK146: 0 | BL146: =IF(#REF!="",0,IF(#REF!=#REF!,1,0)) ->  | BR146: R1EUNIVERSITY HOSPITAL OF NORTH STAFFS | BS146: R1E58 | BT146: UNIVERSITY HOSPITAL OF NORTH STAFFS | BU146: R1E58 | BV146: UNIVERSITY HOSPITAL OF NORTH STAFFS | BW146: R1E | BZ146: Whipps Cross University Hospital | CA146: NEONATAL WXH
C147: 0 | D147: 0 | E147: 0 | H147: 0 | I147: 0 | J147: 0 | K147: 0 | L147: 0 | M147: 0 | N147: 0 | O147: 0 | P147: 0 | Q147: 0 | R147: 0 | AC147: 0 | AK147: 0 | AL147: 0 | AM147: 0 | AN147: 0 | AO147: 0 | AP147: 0 | AQ147: 0 | AR147: 0 | AS147: 0 | AT147: 0 | AU147: 0 | AY147: =IF(#REF!="",0, IF(#REF!="-",0,IF(#REF!>100%,1,0))) ->  | BA147: =IF(#REF!="",0, IF(#REF!="-",0,IF(#REF!>100%,1,0))) ->  | BB147: =IF(#REF!="",0, IF(#REF!="-",0,IF(#REF!>100%,1,0))) ->  | BC147: =IF(#REF!="",0, IF(#REF!="-",0,IF(#REF!>100%,1,0))) ->  | BG147: =CONCATENATE(#REF!,#REF!,#REF!) ->  | BI147: 0 | BJ147: FALSE | BK147: 0 | BL147: =IF(#REF!="",0,IF(#REF!=#REF!,1,0)) ->  | BR147: R1EWHITFIELD UNIT | BS147: R1EL4 | BT147: WHITFIELD UNIT | BU147: R1EL4 | BV147: WHITFIELD UNIT | BW147: R1E | BZ147: Whipps Cross University Hospital | CA147: NIGHTINGALE
C148: 0 | D148: 0 | E148: 0 | H148: 0 | I148: 0 | J148: 0 | K148: 0 | L148: 0 | M148: 0 | N148: 0 | O148: 0 | P148: 0 | Q148: 0 | R148: 0 | AC148: 0 | AK148: 0 | AL148: 0 | AM148: 0 | AN148: 0 | AO148: 0 | AP148: 0 | AQ148: 0 | AR148: 0 | AS148: 0 | AT148: 0 | AU148: 0 | AY148: =IF(#REF!="",0, IF(#REF!="-",0,IF(#REF!>100%,1,0))) ->  | BA148: =IF(#REF!="",0, IF(#REF!="-",0,IF(#REF!>100%,1,0))) ->  | BB148: =IF(#REF!="",0, IF(#REF!="-",0,IF(#REF!>100%,1,0))) ->  | BC148: =IF(#REF!="",0, IF(#REF!="-",0,IF(#REF!>100%,1,0))) ->  | BG148: =CONCATENATE(#REF!,#REF!,#REF!) ->  | BI148: 0 | BJ148: FALSE | BK148: 0 | BL148: =IF(#REF!="",0,IF(#REF!=#REF!,1,0)) ->  | BR148: R1FST MARY'S HOSPITAL | BS148: R1F01 | BT148: ST MARY'S HOSPITAL | BU148: R1F01 | BV148: ST MARY'S HOSPITAL | BW148: R1F | BZ148: Whipps Cross University Hospital | CA148: PEACE
C149: 0 | D149: 0 | E149: 0 | H149: 0 | I149: 0 | J149: 0 | K149: 0 | L149: 0 | M149: 0 | N149: 0 | O149: 0 | P149: 0 | Q149: 0 | R149: 0 | AC149: 0 | AK149: 0 | AL149: 0 | AM149: 0 | AN149: 0 | AO149: 0 | AP149: 0 | AQ149: 0 | AR149: 0 | AS149: 0 | AT149: 0 | AU149: 0 | AY149: =IF(#REF!="",0, IF(#REF!="-",0,IF(#REF!>100%,1,0))) ->  | BA149: =IF(#REF!="",0, IF(#REF!="-",0,IF(#REF!>100%,1,0))) ->  | BB149: =IF(#REF!="",0, IF(#REF!="-",0,IF(#REF!>100%,1,0))) ->  | BC149: =IF(#REF!="",0, IF(#REF!="-",0,IF(#REF!>100%,1,0))) ->  | BG149: =CONCATENATE(#REF!,#REF!,#REF!) ->  | BI149: 0 | BJ149: FALSE | BK149: 0 | BL149: =IF(#REF!="",0,IF(#REF!=#REF!,1,0)) ->  | BR149: R1GASHBURTON AND BUCKFASTLEIGH HOSPITAL | BS149: R1G09 | BT149: ASHBURTON AND BUCKFASTLEIGH HOSPITAL | BU149: R1G09 | BV149: ASHBURTON AND BUCKFASTLEIGH HOSPITAL | BW149: R1G | BZ149: Whipps Cross University Hospital | CA149: POPLAR
C150: 0 | D150: 0 | E150: 0 | H150: 0 | I150: 0 | J150: 0 | K150: 0 | L150: 0 | M150: 0 | N150: 0 | O150: 0 | P150: 0 | Q150: 0 | R150: 0 | AC150: 0 | AK150: 0 | AL150: 0 | AM150: 0 | AN150: 0 | AO150: 0 | AP150: 0 | AQ150: 0 | AR150: 0 | AS150: 0 | AT150: 0 | AU150: 0 | AY150: =IF(#REF!="",0, IF(#REF!="-",0,IF(#REF!>100%,1,0))) ->  | BA150: =IF(#REF!="",0, IF(#REF!="-",0,IF(#REF!>100%,1,0))) ->  | BB150: =IF(#REF!="",0, IF(#REF!="-",0,IF(#REF!>100%,1,0))) ->  | BC150: =IF(#REF!="",0, IF(#REF!="-",0,IF(#REF!>100%,1,0))) ->  | BG150: =CONCATENATE(#REF!,#REF!,#REF!) ->  | BI150: 0 | BJ150: FALSE | BK150: 0 | BL150: =IF(#REF!="",0,IF(#REF!=#REF!,1,0)) ->  | BR150: R1GBOVEY TRACEY HOSPITAL | BS150: R1G54 | BT150: BOVEY TRACEY HOSPITAL | BU150: R1G54 | BV150: BOVEY TRACEY HOSPITAL | BW150: R1G | BZ150: Whipps Cross University Hospital | CA150: PRIMROSE
C151: 0 | D151: 0 | E151: 0 | H151: 0 | I151: 0 | J151: 0 | K151: 0 | L151: 0 | M151: 0 | N151: 0 | O151: 0 | P151: 0 | Q151: 0 | R151: 0 | AC151: 0 | AK151: 0 | AL151: 0 | AM151: 0 | AN151: 0 | AO151: 0 | AP151: 0 | AQ151: 0 | AR151: 0 | AS151: 0 | AT151: 0 | AU151: 0 | AY151: =IF(#REF!="",0, IF(#REF!="-",0,IF(#REF!>100%,1,0))) ->  | BA151: =IF(#REF!="",0, IF(#REF!="-",0,IF(#REF!>100%,1,0))) ->  | BB151: =IF(#REF!="",0, IF(#REF!="-",0,IF(#REF!>100%,1,0))) ->  | BC151: =IF(#REF!="",0, IF(#REF!="-",0,IF(#REF!>100%,1,0))) ->  | BG151: =CONCATENATE(#REF!,#REF!,#REF!) ->  | BI151: 0 | BJ151: FALSE | BK151: 0 | BL151: =IF(#REF!="",0,IF(#REF!=#REF!,1,0)) ->  | BR151: =CONCATENATE(LEFT(BS151, 3),BT151) -> R1GBRISEHAM UNIT | BS151: R1G06 | BT151: BRISEHAM UNIT | BU151: R1G06 | BV151: BRISEHAM UNIT | BW151: R1G | BZ151: Whipps Cross University Hospital | CA151: ROWAN
C152: 0 | D152: 0 | E152: 0 | H152: 0 | I152: 0 | J152: 0 | K152: 0 | L152: 0 | M152: 0 | N152: 0 | O152: 0 | P152: 0 | Q152: 0 | R152: 0 | AC152: 0 | AK152: 0 | AL152: 0 | AM152: 0 | AN152: 0 | AO152: 0 | AP152: 0 | AQ152: 0 | AR152: 0 | AS152: 0 | AT152: 0 | AU152: 0 | AY152: =IF(#REF!="",0, IF(#REF!="-",0,IF(#REF!>100%,1,0))) ->  | BA152: =IF(#REF!="",0, IF(#REF!="-",0,IF(#REF!>100%,1,0))) ->  | BB152: =IF(#REF!="",0, IF(#REF!="-",0,IF(#REF!>100%,1,0))) ->  | BC152: =IF(#REF!="",0, IF(#REF!="-",0,IF(#REF!>100%,1,0))) ->  | BG152: =CONCATENATE(#REF!,#REF!,#REF!) ->  | BH152: =IF(BG152="","",(IF(COUNTIF($BG$46:$BG$244,BG152)>1,1,0))=1) ->  | BI152: 0 | BJ152: FALSE | BK152: 0 | BL152: =IF(#REF!="",0,IF(#REF!=#REF!,1,0)) ->  | BR152: R1GBRIXHAM CARERS | BS152: R1G65 | BT152: BRIXHAM CARERS | BU152: R1G65 | BV152: BRIXHAM CARERS | BW152: R1G | BZ152: Whipps Cross University Hospital | CA152: SAGE
C153: 0 | D153: 0 | E153: 0 | H153: 0 | I153: 0 | J153: 0 | K153: 0 | L153: 0 | M153: 0 | N153: 0 | O153: 0 | P153: 0 | Q153: 0 | R153: 0 | AC153: 0 | AK153: 0 | AL153: 0 | AM153: 0 | AN153: 0 | AO153: 0 | AP153: 0 | AQ153: 0 | AR153: 0 | AS153: 0 | AT153: 0 | AU153: 0 | AY153: =IF(#REF!="",0, IF(#REF!="-",0,IF(#REF!>100%,1,0))) ->  | BA153: =IF(#REF!="",0, IF(#REF!="-",0,IF(#REF!>100%,1,0))) ->  | BB153: =IF(#REF!="",0, IF(#REF!="-",0,IF(#REF!>100%,1,0))) ->  | BC153: =IF(#REF!="",0, IF(#REF!="-",0,IF(#REF!>100%,1,0))) ->  | BG153: =CONCATENATE(#REF!,#REF!,#REF!) ->  | BI153: 0 | BJ153: FALSE | BK153: 0 | BL153: =IF(#REF!="",0,IF(#REF!=#REF!,1,0)) ->  | BR153: R1GBRIXHAM HOSPITAL | BS153: R1G02 | BT153: BRIXHAM HOSPITAL | BU153: R1G02 | BV153: BRIXHAM HOSPITAL | BW153: R1G | BZ153: Whipps Cross University Hospital | CA153: SYCAMORE
C154: 0 | D154: 0 | E154: 0 | H154: 0 | I154: 0 | J154: 0 | K154: 0 | L154: 0 | M154: 0 | N154: 0 | O154: 0 | P154: 0 | Q154: 0 | R154: 0 | AC154: 0 | AK154: 0 | AL154: 0 | AM154: 0 | AN154: 0 | AO154: 0 | AP154: 0 | AQ154: 0 | AR154: 0 | AS154: 0 | AT154: 0 | AU154: 0 | AY154: =IF(#REF!="",0, IF(#REF!="-",0,IF(#REF!>100%,1,0))) ->  | BA154: =IF(#REF!="",0, IF(#REF!="-",0,IF(#REF!>100%,1,0))) ->  | BB154: =IF(#REF!="",0, IF(#REF!="-",0,IF(#REF!>100%,1,0))) ->  | BC154: =IF(#REF!="",0, IF(#REF!="-",0,IF(#REF!>100%,1,0))) ->  | BG154: =CONCATENATE(#REF!,#REF!,#REF!) ->  | BI154: 0 | BJ154: FALSE | BK154: 0 | BL154: =IF(#REF!="",0,IF(#REF!=#REF!,1,0)) ->  | BR154: R1GBRIXHAM MIU | BS154: R1G66 | BT154: BRIXHAM MIU | BU154: R1G66 | BV154: BRIXHAM MIU | BW154: R1G | BZ154: Whipps Cross University Hospital | CA154: SYRINGA
C155: 0 | D155: 0 | E155: 0 | H155: 0 | I155: 0 | J155: 0 | K155: 0 | L155: 0 | M155: 0 | N155: 0 | O155: 0 | P155: 0 | Q155: 0 | R155: 0 | AC155: 0 | AK155: 0 | AL155: 0 | AM155: 0 | AN155: 0 | AO155: 0 | AP155: 0 | AQ155: 0 | AR155: 0 | AS155: 0 | AT155: 0 | AU155: 0 | AY155: =IF(#REF!="",0, IF(#REF!="-",0,IF(#REF!>100%,1,0))) ->  | BA155: =IF(#REF!="",0, IF(#REF!="-",0,IF(#REF!>100%,1,0))) ->  | BB155: =IF(#REF!="",0, IF(#REF!="-",0,IF(#REF!>100%,1,0))) ->  | BC155: =IF(#REF!="",0, IF(#REF!="-",0,IF(#REF!>100%,1,0))) ->  | BG155: =CONCATENATE(#REF!,#REF!,#REF!) ->  | BI155: 0 | BJ155: FALSE | BK155: 0 | BL155: =IF(#REF!="",0,IF(#REF!=#REF!,1,0)) ->  | BR155: R1GCHADWELL OPMH | BS155: R1G68 | BT155: CHADWELL OPMH | BU155: R1G68 | BV155: CHADWELL OPMH | BW155: R1G | BZ155: Whipps Cross University Hospital | CA155: VICTORY
C156: 0 | D156: 0 | E156: 0 | H156: 0 | I156: 0 | J156: 0 | K156: 0 | L156: 0 | M156: 0 | N156: 0 | O156: 0 | P156: 0 | Q156: 0 | R156: 0 | AC156: 0 | AK156: 0 | AL156: 0 | AM156: 0 | AN156: 0 | AO156: 0 | AP156: 0 | AQ156: 0 | AR156: 0 | AS156: 0 | AT156: 0 | AU156: 0 | AY156: =IF(#REF!="",0, IF(#REF!="-",0,IF(#REF!>100%,1,0))) ->  | BA156: =IF(#REF!="",0, IF(#REF!="-",0,IF(#REF!>100%,1,0))) ->  | BB156: =IF(#REF!="",0, IF(#REF!="-",0,IF(#REF!>100%,1,0))) ->  | BC156: =IF(#REF!="",0, IF(#REF!="-",0,IF(#REF!>100%,1,0))) ->  | BG156: =CONCATENATE(#REF!,#REF!,#REF!) ->  | BI156: 0 | BJ156: FALSE | BK156: 0 | BL156: =IF(#REF!="",0,IF(#REF!=#REF!,1,0)) ->  | BR156: R1GDARTMOUTH HOSPITAL | BS156: R1G10 | BT156: DARTMOUTH HOSPITAL | BU156: R1G10 | BV156: DARTMOUTH HOSPITAL | BW156: R1G | BZ156: BASILDON UNIVERSITY HOSPITAL | CA156: AMU East
C157: 0 | D157: 0 | E157: 0 | H157: 0 | I157: 0 | J157: 0 | K157: 0 | L157: 0 | M157: 0 | N157: 0 | O157: 0 | P157: 0 | Q157: 0 | R157: 0 | AC157: 0 | AK157: 0 | AL157: 0 | AM157: 0 | AN157: 0 | AO157: 0 | AP157: 0 | AQ157: 0 | AR157: 0 | AS157: 0 | AT157: 0 | AU157: 0 | AY157: =IF(#REF!="",0, IF(#REF!="-",0,IF(#REF!>100%,1,0))) ->  | BA157: =IF(#REF!="",0, IF(#REF!="-",0,IF(#REF!>100%,1,0))) ->  | BB157: =IF(#REF!="",0, IF(#REF!="-",0,IF(#REF!>100%,1,0))) ->  | BC157: =IF(#REF!="",0, IF(#REF!="-",0,IF(#REF!>100%,1,0))) ->  | BG157: =CONCATENATE(#REF!,#REF!,#REF!) ->  | BI157: 0 | BJ157: FALSE | BK157: 0 | BL157: =IF(#REF!="",0,IF(#REF!=#REF!,1,0)) ->  | BR157: R1GDAWLISH HOSPITAL | BS157: R1G11 | BT157: DAWLISH HOSPITAL | BU157: R1G11 | BV157: DAWLISH HOSPITAL | BW157: R1G | BZ157: BASILDON UNIVERSITY HOSPITAL | CA157: AMU west
C158: 0 | D158: 0 | E158: 0 | H158: 0 | I158: 0 | J158: 0 | K158: 0 | L158: 0 | M158: 0 | N158: 0 | O158: 0 | P158: 0 | Q158: 0 | R158: 0 | AC158: 0 | AK158: 0 | AL158: 0 | AM158: 0 | AN158: 0 | AO158: 0 | AP158: 0 | AQ158: 0 | AR158: 0 | AS158: 0 | AT158: 0 | AU158: 0 | AY158: =IF(#REF!="",0, IF(#REF!="-",0,IF(#REF!>100%,1,0))) ->  | BA158: =IF(#REF!="",0, IF(#REF!="-",0,IF(#REF!>100%,1,0))) ->  | BB158: =IF(#REF!="",0, IF(#REF!="-",0,IF(#REF!>100%,1,0))) ->  | BC158: =IF(#REF!="",0, IF(#REF!="-",0,IF(#REF!>100%,1,0))) ->  | BG158: =CONCATENATE(#REF!,#REF!,#REF!) ->  | BI158: 0 | BJ158: FALSE | BK158: 0 | BL158: =IF(#REF!="",0,IF(#REF!=#REF!,1,0)) ->  | BR158: R1GNEWTON ABBOT HOSPITAL | BS158: R1G12 | BT158: NEWTON ABBOT HOSPITAL | BU158: R1G12 | BV158: NEWTON ABBOT HOSPITAL | BW158: R1G | BZ158: BASILDON UNIVERSITY HOSPITAL | CA158: Bulphan
C159: 0 | D159: 0 | E159: 0 | H159: 0 | I159: 0 | J159: 0 | K159: 0 | L159: 0 | M159: 0 | N159: 0 | O159: 0 | P159: 0 | Q159: 0 | R159: 0 | AC159: 0 | AK159: 0 | AL159: 0 | AM159: 0 | AN159: 0 | AO159: 0 | AP159: 0 | AQ159: 0 | AR159: 0 | AS159: 0 | AT159: 0 | AU159: 0 | AY159: =IF(#REF!="",0, IF(#REF!="-",0,IF(#REF!>100%,1,0))) ->  | BA159: =IF(#REF!="",0, IF(#REF!="-",0,IF(#REF!>100%,1,0))) ->  | BB159: =IF(#REF!="",0, IF(#REF!="-",0,IF(#REF!>100%,1,0))) ->  | BC159: =IF(#REF!="",0, IF(#REF!="-",0,IF(#REF!>100%,1,0))) ->  | BG159: =CONCATENATE(#REF!,#REF!,#REF!) ->  | BI159: 0 | BJ159: FALSE | BK159: 0 | BL159: =IF(#REF!="",0,IF(#REF!=#REF!,1,0)) ->  | BR159: R1GNHS CONTINUING CARE RETROSPECTIVE REVIEW | BS159: R1G48 | BT159: NHS CONTINUING CARE RETROSPECTIVE REVIEW | BU159: R1G48 | BV159: NHS CONTINUING CARE RETROSPECTIVE REVIEW | BW159: R1G | BZ159: BASILDON UNIVERSITY HOSPITAL | CA159: Burstead
C160: 0 | D160: 0 | E160: 0 | H160: 0 | I160: 0 | J160: 0 | K160: 0 | L160: 0 | M160: 0 | N160: 0 | O160: 0 | P160: 0 | Q160: 0 | R160: 0 | AC160: 0 | AK160: 0 | AL160: 0 | AM160: 0 | AN160: 0 | AO160: 0 | AP160: 0 | AQ160: 0 | AR160: 0 | AS160: 0 | AT160: 0 | AU160: 0 | AY160: =IF(#REF!="",0, IF(#REF!="-",0,IF(#REF!>100%,1,0))) ->  | BA160: =IF(#REF!="",0, IF(#REF!="-",0,IF(#REF!>100%,1,0))) ->  | BB160: =IF(#REF!="",0, IF(#REF!="-",0,IF(#REF!>100%,1,0))) ->  | BC160: =IF(#REF!="",0, IF(#REF!="-",0,IF(#REF!>100%,1,0))) ->  | BG160: =CONCATENATE(#REF!,#REF!,#REF!) ->  | BI160: 0 | BJ160: FALSE | BK160: 0 | BL160: =IF(#REF!="",0,IF(#REF!=#REF!,1,0)) ->  | BR160: R1GPAIGNTON HOSPITAL | BS160: R1G01 | BT160: PAIGNTON HOSPITAL | BU160: R1G01 | BV160: PAIGNTON HOSPITAL | BW160: R1G | BZ160: BASILDON UNIVERSITY HOSPITAL | CA160: CEDAR
C161: 0 | D161: 0 | E161: 0 | H161: 0 | I161: 0 | J161: 0 | K161: 0 | L161: 0 | M161: 0 | N161: 0 | O161: 0 | P161: 0 | Q161: 0 | R161: 0 | AC161: 0 | AK161: 0 | AL161: 0 | AM161: 0 | AN161: 0 | AO161: 0 | AP161: 0 | AQ161: 0 | AR161: 0 | AS161: 0 | AT161: 0 | AU161: 0 | AY161: =IF(#REF!="",0, IF(#REF!="-",0,IF(#REF!>100%,1,0))) ->  | BA161: =IF(#REF!="",0, IF(#REF!="-",0,IF(#REF!>100%,1,0))) ->  | BB161: =IF(#REF!="",0, IF(#REF!="-",0,IF(#REF!>100%,1,0))) ->  | BC161: =IF(#REF!="",0, IF(#REF!="-",0,IF(#REF!>100%,1,0))) ->  | BG161: =CONCATENATE(#REF!,#REF!,#REF!) ->  | BI161: 0 | BJ161: FALSE | BK161: 0 | BL161: =IF(#REF!="",0,IF(#REF!=#REF!,1,0)) ->  | BR161: R1GSAFER COMMUNITIES TORBAY | BS161: R1G51 | BT161: SAFER COMMUNITIES TORBAY | BU161: R1G51 | BV161: SAFER COMMUNITIES TORBAY | BW161: R1G | BZ161: BASILDON UNIVERSITY HOSPITAL | CA161: Chelmer
C162: 0 | D162: 0 | E162: 0 | H162: 0 | I162: 0 | J162: 0 | K162: 0 | L162: 0 | M162: 0 | N162: 0 | O162: 0 | P162: 0 | Q162: 0 | R162: 0 | AC162: 0 | AK162: 0 | AL162: 0 | AM162: 0 | AN162: 0 | AO162: 0 | AP162: 0 | AQ162: 0 | AR162: 0 | AS162: 0 | AT162: 0 | AU162: 0 | AY162: =IF(#REF!="",0, IF(#REF!="-",0,IF(#REF!>100%,1,0))) ->  | BA162: =IF(#REF!="",0, IF(#REF!="-",0,IF(#REF!>100%,1,0))) ->  | BB162: =IF(#REF!="",0, IF(#REF!="-",0,IF(#REF!>100%,1,0))) ->  | BC162: =IF(#REF!="",0, IF(#REF!="-",0,IF(#REF!>100%,1,0))) ->  | BG162: =CONCATENATE(#REF!,#REF!,#REF!) ->  | BI162: 0 | BJ162: FALSE | BK162: 0 | BL162: =IF(#REF!="",0,IF(#REF!=#REF!,1,0)) ->  | BR162: R1GSOUTH HAMS (KINGSBRIDGE) HOSPITAL | BS162: R1G55 | BT162: SOUTH HAMS (KINGSBRIDGE) HOSPITAL | BU162: R1G55 | BV162: SOUTH HAMS (KINGSBRIDGE) HOSPITAL | BW162: R1G | BZ162: BASILDON UNIVERSITY HOSPITAL | CA162: Colne
C163: 0 | D163: 0 | E163: 0 | H163: 0 | I163: 0 | J163: 0 | K163: 0 | L163: 0 | M163: 0 | N163: 0 | O163: 0 | P163: 0 | Q163: 0 | R163: 0 | AC163: 0 | AK163: 0 | AL163: 0 | AM163: 0 | AN163: 0 | AO163: 0 | AP163: 0 | AQ163: 0 | AR163: 0 | AS163: 0 | AT163: 0 | AU163: 0 | AY163: =IF(#REF!="",0, IF(#REF!="-",0,IF(#REF!>100%,1,0))) ->  | BA163: =IF(#REF!="",0, IF(#REF!="-",0,IF(#REF!>100%,1,0))) ->  | BB163: =IF(#REF!="",0, IF(#REF!="-",0,IF(#REF!>100%,1,0))) ->  | BC163: =IF(#REF!="",0, IF(#REF!="-",0,IF(#REF!>100%,1,0))) ->  | BG163: =CONCATENATE(#REF!,#REF!,#REF!) ->  | BI163: 0 | BJ163: FALSE | BK163: 0 | BL163: =IF(#REF!="",0,IF(#REF!=#REF!,1,0)) ->  | BR163: R1GST EDMUNDS | BS163: R1G08 | BT163: ST EDMUNDS | BU163: R1G08 | BV163: ST EDMUNDS | BW163: R1G | BZ163: BASILDON UNIVERSITY HOSPITAL | CA163: DELIVERY SUITE
C164: 0 | D164: 0 | E164: 0 | H164: 0 | I164: 0 | J164: 0 | K164: 0 | L164: 0 | M164: 0 | N164: 0 | O164: 0 | P164: 0 | Q164: 0 | R164: 0 | AC164: 0 | AK164: 0 | AL164: 0 | AM164: 0 | AN164: 0 | AO164: 0 | AP164: 0 | AQ164: 0 | AR164: 0 | AS164: 0 | AT164: 0 | AU164: 0 | AY164: =IF(#REF!="",0, IF(#REF!="-",0,IF(#REF!>100%,1,0))) ->  | BA164: =IF(#REF!="",0, IF(#REF!="-",0,IF(#REF!>100%,1,0))) ->  | BB164: =IF(#REF!="",0, IF(#REF!="-",0,IF(#REF!>100%,1,0))) ->  | BC164: =IF(#REF!="",0, IF(#REF!="-",0,IF(#REF!>100%,1,0))) ->  | BG164: =CONCATENATE(#REF!,#REF!,#REF!) ->  | BI164: 0 | BJ164: FALSE | BK164: 0 | BL164: =IF(#REF!="",0,IF(#REF!=#REF!,1,0)) ->  | BR164: R1GTAVISTOCK HOSPITAL | BS164: R1G56 | BT164: TAVISTOCK HOSPITAL | BU164: R1G56 | BV164: TAVISTOCK HOSPITAL | BW164: R1G | BZ164: BASILDON UNIVERSITY HOSPITAL | CA164: Edith Cavell
C165: 0 | D165: 0 | E165: 0 | H165: 0 | I165: 0 | J165: 0 | K165: 0 | L165: 0 | M165: 0 | N165: 0 | O165: 0 | P165: 0 | Q165: 0 | R165: 0 | AC165: 0 | AK165: 0 | AL165: 0 | AM165: 0 | AN165: 0 | AO165: 0 | AP165: 0 | AQ165: 0 | AR165: 0 | AS165: 0 | AT165: 0 | AU165: 0 | AY165: =IF(#REF!="",0, IF(#REF!="-",0,IF(#REF!>100%,1,0))) ->  | BA165: =IF(#REF!="",0, IF(#REF!="-",0,IF(#REF!>100%,1,0))) ->  | BB165: =IF(#REF!="",0, IF(#REF!="-",0,IF(#REF!>100%,1,0))) ->  | BC165: =IF(#REF!="",0, IF(#REF!="-",0,IF(#REF!>100%,1,0))) ->  | BG165: =CONCATENATE(#REF!,#REF!,#REF!) ->  | BI165: 0 | BJ165: FALSE | BK165: 0 | BL165: =IF(#REF!="",0,IF(#REF!=#REF!,1,0)) ->  | BR165: R1GTEIGNMOUTH HOSPITAL | BS165: R1G13 | BT165: TEIGNMOUTH HOSPITAL | BU165: R1G13 | BV165: TEIGNMOUTH HOSPITAL | BW165: R1G | BZ165: BASILDON UNIVERSITY HOSPITAL | CA165: Elizabeth Fry
C166: 0 | D166: 0 | E166: 0 | H166: 0 | I166: 0 | J166: 0 | K166: 0 | L166: 0 | M166: 0 | N166: 0 | O166: 0 | P166: 0 | Q166: 0 | R166: 0 | AC166: 0 | AK166: 0 | AL166: 0 | AM166: 0 | AN166: 0 | AO166: 0 | AP166: 0 | AQ166: 0 | AR166: 0 | AS166: 0 | AT166: 0 | AU166: 0 | AY166: =IF(#REF!="",0, IF(#REF!="-",0,IF(#REF!>100%,1,0))) ->  | BA166: =IF(#REF!="",0, IF(#REF!="-",0,IF(#REF!>100%,1,0))) ->  | BB166: =IF(#REF!="",0, IF(#REF!="-",0,IF(#REF!>100%,1,0))) ->  | BC166: =IF(#REF!="",0, IF(#REF!="-",0,IF(#REF!>100%,1,0))) ->  | BG166: =CONCATENATE(#REF!,#REF!,#REF!) ->  | BI166: 0 | BJ166: FALSE | BK166: 0 | BL166: =IF(#REF!="",0,IF(#REF!=#REF!,1,0)) ->  | BR166: R1GTOTNES HOSPITAL | BS166: R1G14 | BT166: TOTNES HOSPITAL | BU166: R1G14 | BV166: TOTNES HOSPITAL | BW166: R1G | BZ166: BASILDON UNIVERSITY HOSPITAL | CA166: Elsdon
C167: 0 | D167: 0 | E167: 0 | H167: 0 | I167: 0 | J167: 0 | K167: 0 | L167: 0 | M167: 0 | N167: 0 | O167: 0 | P167: 0 | Q167: 0 | R167: 0 | AC167: 0 | AK167: 0 | AL167: 0 | AM167: 0 | AN167: 0 | AO167: 0 | AP167: 0 | AQ167: 0 | AR167: 0 | AS167: 0 | AT167: 0 | AU167: 0 | AY167: =IF(#REF!="",0, IF(#REF!="-",0,IF(#REF!>100%,1,0))) ->  | BA167: =IF(#REF!="",0, IF(#REF!="-",0,IF(#REF!>100%,1,0))) ->  | BB167: =IF(#REF!="",0, IF(#REF!="-",0,IF(#REF!>100%,1,0))) ->  | BC167: =IF(#REF!="",0, IF(#REF!="-",0,IF(#REF!>100%,1,0))) ->  | BG167: =CONCATENATE(#REF!,#REF!,#REF!) ->  | BI167: 0 | BJ167: FALSE | BK167: 0 | BL167: =IF(#REF!="",0,IF(#REF!=#REF!,1,0)) ->  | BR167: R1GUNIT 3 | BS167: R1G64 | BT167: UNIT 3 | BU167: R1G64 | BV167: UNIT 3 | BW167: R1G | BZ167: BASILDON UNIVERSITY HOSPITAL | CA167: Florence Nightingale
C168: 0 | D168: 0 | E168: 0 | H168: 0 | I168: 0 | J168: 0 | K168: 0 | L168: 0 | M168: 0 | N168: 0 | O168: 0 | P168: 0 | Q168: 0 | R168: 0 | AC168: 0 | AK168: 0 | AL168: 0 | AM168: 0 | AN168: 0 | AO168: 0 | AP168: 0 | AQ168: 0 | AR168: 0 | AS168: 0 | AT168: 0 | AU168: 0 | AY168: =IF(#REF!="",0, IF(#REF!="-",0,IF(#REF!>100%,1,0))) ->  | BA168: =IF(#REF!="",0, IF(#REF!="-",0,IF(#REF!>100%,1,0))) ->  | BB168: =IF(#REF!="",0, IF(#REF!="-",0,IF(#REF!>100%,1,0))) ->  | BC168: =IF(#REF!="",0, IF(#REF!="-",0,IF(#REF!>100%,1,0))) ->  | BG168: =CONCATENATE(#REF!,#REF!,#REF!) ->  | BI168: 0 | BJ168: FALSE | BK168: 0 | BL168: =IF(#REF!="",0,IF(#REF!=#REF!,1,0)) ->  | BR168: R1HAINSLEY UNIT | BS168: R1H42 | BT168: AINSLEY UNIT | BU168: R1H42 | BV168: AINSLEY UNIT | BW168: R1H | BZ168: BASILDON UNIVERSITY HOSPITAL | CA168: Horndon
C169: 0 | D169: 0 | E169: 0 | H169: 0 | I169: 0 | J169: 0 | K169: 0 | L169: 0 | M169: 0 | N169: 0 | O169: 0 | P169: 0 | Q169: 0 | R169: 0 | AC169: 0 | AK169: 0 | AL169: 0 | AM169: 0 | AN169: 0 | AO169: 0 | AP169: 0 | AQ169: 0 | AR169: 0 | AS169: 0 | AT169: 0 | AU169: 0 | AY169: =IF(#REF!="",0, IF(#REF!="-",0,IF(#REF!>100%,1,0))) ->  | BA169: =IF(#REF!="",0, IF(#REF!="-",0,IF(#REF!>100%,1,0))) ->  | BB169: =IF(#REF!="",0, IF(#REF!="-",0,IF(#REF!>100%,1,0))) ->  | BC169: =IF(#REF!="",0, IF(#REF!="-",0,IF(#REF!>100%,1,0))) ->  | BG169: =CONCATENATE(#REF!,#REF!,#REF!) ->  | BI169: 0 | BJ169: FALSE | BK169: 0 | BL169: =IF(#REF!="",0,IF(#REF!=#REF!,1,0)) ->  | BR169: R1HBLT BIRTH CENTRE | BS169: R1H90 | BT169: BLT BIRTH CENTRE | BU169: R1H90 | BV169: BLT BIRTH CENTRE | BW169: R1H | BZ169: BASILDON UNIVERSITY HOSPITAL | CA169: ITU
C170: 0 | D170: 0 | E170: 0 | H170: 0 | I170: 0 | J170: 0 | K170: 0 | L170: 0 | M170: 0 | N170: 0 | O170: 0 | P170: 0 | Q170: 0 | R170: 0 | AC170: 0 | AK170: 0 | AL170: 0 | AM170: 0 | AN170: 0 | AO170: 0 | AP170: 0 | AQ170: 0 | AR170: 0 | AS170: 0 | AT170: 0 | AU170: 0 | AY170: =IF(#REF!="",0, IF(#REF!="-",0,IF(#REF!>100%,1,0))) ->  | BA170: =IF(#REF!="",0, IF(#REF!="-",0,IF(#REF!>100%,1,0))) ->  | BB170: =IF(#REF!="",0, IF(#REF!="-",0,IF(#REF!>100%,1,0))) ->  | BC170: =IF(#REF!="",0, IF(#REF!="-",0,IF(#REF!>100%,1,0))) ->  | BG170: =CONCATENATE(#REF!,#REF!,#REF!) ->  | BI170: 0 | BJ170: FALSE | BK170: 0 | BL170: =IF(#REF!="",0,IF(#REF!=#REF!,1,0)) ->  | BR170: R1HBLT PRIVATE HOSPITALS | BS170: R1H86 | BT170: BLT PRIVATE HOSPITALS | BU170: R1H86 | BV170: BLT PRIVATE HOSPITALS | BW170: R1H | BZ170: BASILDON UNIVERSITY HOSPITAL | CA170: James McKenzie
C171: 0 | D171: 0 | E171: 0 | H171: 0 | I171: 0 | J171: 0 | K171: 0 | L171: 0 | M171: 0 | N171: 0 | O171: 0 | P171: 0 | Q171: 0 | R171: 0 | AC171: 0 | AK171: 0 | AL171: 0 | AM171: 0 | AN171: 0 | AO171: 0 | AP171: 0 | AQ171: 0 | AR171: 0 | AS171: 0 | AT171: 0 | AU171: 0 | AY171: =IF(#REF!="",0, IF(#REF!="-",0,IF(#REF!>100%,1,0))) ->  | BA171: =IF(#REF!="",0, IF(#REF!="-",0,IF(#REF!>100%,1,0))) ->  | BB171: =IF(#REF!="",0, IF(#REF!="-",0,IF(#REF!>100%,1,0))) ->  | BC171: =IF(#REF!="",0, IF(#REF!="-",0,IF(#REF!>100%,1,0))) ->  | BG171: =CONCATENATE(#REF!,#REF!,#REF!) ->  | BI171: 0 | BJ171: FALSE | BK171: 0 | BL171: =IF(#REF!="",0,IF(#REF!=#REF!,1,0)) ->  | BR171: R1HGATEWAY SURGICAL CENTRE | BS171: R1H11 | BT171: GATEWAY SURGICAL CENTRE | BU171: R1H11 | BV171: GATEWAY SURGICAL CENTRE | BW171: R1H | BZ171: BASILDON UNIVERSITY HOSPITAL | CA171: Kingswood
C172: 0 | D172: 0 | E172: 0 | H172: 0 | I172: 0 | J172: 0 | K172: 0 | L172: 0 | M172: 0 | N172: 0 | O172: 0 | P172: 0 | Q172: 0 | R172: 0 | AC172: 0 | AK172: 0 | AL172: 0 | AM172: 0 | AN172: 0 | AO172: 0 | AP172: 0 | AQ172: 0 | AR172: 0 | AS172: 0 | AT172: 0 | AU172: 0 | AY172: =IF(#REF!="",0, IF(#REF!="-",0,IF(#REF!>100%,1,0))) ->  | BA172: =IF(#REF!="",0, IF(#REF!="-",0,IF(#REF!>100%,1,0))) ->  | BB172: =IF(#REF!="",0, IF(#REF!="-",0,IF(#REF!>100%,1,0))) ->  | BC172: =IF(#REF!="",0, IF(#REF!="-",0,IF(#REF!>100%,1,0))) ->  | BG172: =CONCATENATE(#REF!,#REF!,#REF!) ->  | BI172: 0 | BJ172: FALSE | BK172: 0 | BL172: =IF(#REF!="",0,IF(#REF!=#REF!,1,0)) ->  | BR172: R1HMILE END HOSPITAL | BS172: R1H13 | BT172: MILE END HOSPITAL | BU172: R1H13 | BV172: MILE END HOSPITAL | BW172: R1H | BZ172: BASILDON UNIVERSITY HOSPITAL | CA172: Linford
C173: 0 | D173: 0 | E173: 0 | H173: 0 | I173: 0 | J173: 0 | K173: 0 | L173: 0 | M173: 0 | N173: 0 | O173: 0 | P173: 0 | Q173: 0 | R173: 0 | AC173: 0 | AK173: 0 | AL173: 0 | AM173: 0 | AN173: 0 | AO173: 0 | AP173: 0 | AQ173: 0 | AR173: 0 | AS173: 0 | AT173: 0 | AU173: 0 | AY173: =IF(#REF!="",0, IF(#REF!="-",0,IF(#REF!>100%,1,0))) ->  | BA173: =IF(#REF!="",0, IF(#REF!="-",0,IF(#REF!>100%,1,0))) ->  | BB173: =IF(#REF!="",0, IF(#REF!="-",0,IF(#REF!>100%,1,0))) ->  | BC173: =IF(#REF!="",0, IF(#REF!="-",0,IF(#REF!>100%,1,0))) ->  | BG173: =CONCATENATE(#REF!,#REF!,#REF!) ->  | BI173: 0 | BJ173: FALSE | BK173: 0 | BL173: =IF(#REF!="",0,IF(#REF!=#REF!,1,0)) ->  | BR173: R1HNEWHAM GENERAL HOSPITAL | BS173: R1HNH | BT173: NEWHAM GENERAL HOSPITAL | BU173: R1HNH | BV173: NEWHAM GENERAL HOSPITAL | BW173: R1H | BZ173: BASILDON UNIVERSITY HOSPITAL | CA173: Lionel Cosin
C174: 0 | D174: 0 | E174: 0 | H174: 0 | I174: 0 | J174: 0 | K174: 0 | L174: 0 | M174: 0 | N174: 0 | O174: 0 | P174: 0 | Q174: 0 | R174: 0 | AC174: 0 | AK174: 0 | AL174: 0 | AM174: 0 | AN174: 0 | AO174: 0 | AP174: 0 | AQ174: 0 | AR174: 0 | AS174: 0 | AT174: 0 | AU174: 0 | AY174: =IF(#REF!="",0, IF(#REF!="-",0,IF(#REF!>100%,1,0))) ->  | BA174: =IF(#REF!="",0, IF(#REF!="-",0,IF(#REF!>100%,1,0))) ->  | BB174: =IF(#REF!="",0, IF(#REF!="-",0,IF(#REF!>100%,1,0))) ->  | BC174: =IF(#REF!="",0, IF(#REF!="-",0,IF(#REF!>100%,1,0))) ->  | BG174: =CONCATENATE(#REF!,#REF!,#REF!) ->  | BI174: 0 | BJ174: FALSE | BK174: 0 | BL174: =IF(#REF!="",0,IF(#REF!=#REF!,1,0)) ->  | BR174: R1HST BARTHOLOMEW'S HOSPITAL | BS174: R1HM0 | BT174: ST BARTHOLOMEW'S HOSPITAL | BU174: R1HM0 | BV174: ST BARTHOLOMEW'S HOSPITAL | BW174: R1H | BZ174: BASILDON UNIVERSITY HOSPITAL | CA174: Lister
C175: 0 | D175: 0 | E175: 0 | H175: 0 | I175: 0 | J175: 0 | K175: 0 | L175: 0 | M175: 0 | N175: 0 | O175: 0 | P175: 0 | Q175: 0 | R175: 0 | AC175: 0 | AK175: 0 | AL175: 0 | AM175: 0 | AN175: 0 | AO175: 0 | AP175: 0 | AQ175: 0 | AR175: 0 | AS175: 0 | AT175: 0 | AU175: 0 | AY175: =IF(#REF!="",0, IF(#REF!="-",0,IF(#REF!>100%,1,0))) ->  | BA175: =IF(#REF!="",0, IF(#REF!="-",0,IF(#REF!>100%,1,0))) ->  | BB175: =IF(#REF!="",0, IF(#REF!="-",0,IF(#REF!>100%,1,0))) ->  | BC175: =IF(#REF!="",0, IF(#REF!="-",0,IF(#REF!>100%,1,0))) ->  | BG175: =CONCATENATE(#REF!,#REF!,#REF!) ->  | BI175: 0 | BJ175: FALSE | BK175: 0 | BL175: =IF(#REF!="",0,IF(#REF!=#REF!,1,0)) ->  | BR175: R1HTHE LONDON CHEST HOSPITAL | BS175: R1H83 | BT175: THE LONDON CHEST HOSPITAL | BU175: R1H83 | BV175: THE LONDON CHEST HOSPITAL | BW175: R1H | BZ175: BASILDON UNIVERSITY HOSPITAL | CA175: Marjorie Warren
C176: 0 | D176: 0 | E176: 0 | H176: 0 | I176: 0 | J176: 0 | K176: 0 | L176: 0 | M176: 0 | N176: 0 | O176: 0 | P176: 0 | Q176: 0 | R176: 0 | AC176: 0 | AK176: 0 | AL176: 0 | AM176: 0 | AN176: 0 | AO176: 0 | AP176: 0 | AQ176: 0 | AR176: 0 | AS176: 0 | AT176: 0 | AU176: 0 | AY176: =IF(#REF!="",0, IF(#REF!="-",0,IF(#REF!>100%,1,0))) ->  | BA176: =IF(#REF!="",0, IF(#REF!="-",0,IF(#REF!>100%,1,0))) ->  | BB176: =IF(#REF!="",0, IF(#REF!="-",0,IF(#REF!>100%,1,0))) ->  | BC176: =IF(#REF!="",0, IF(#REF!="-",0,IF(#REF!>100%,1,0))) ->  | BG176: =CONCATENATE(#REF!,#REF!,#REF!) ->  | BI176: 0 | BJ176: FALSE | BK176: 0 | BL176: =IF(#REF!="",0,IF(#REF!=#REF!,1,0)) ->  | BR176: R1HTHE ROYAL LONDON HOSPITAL | BS176: R1H12 | BT176: THE ROYAL LONDON HOSPITAL | BU176: R1H12 | BV176: THE ROYAL LONDON HOSPITAL | BW176: R1H | BZ176: BASILDON UNIVERSITY HOSPITAL | CA176: NICU
C177: 0 | D177: 0 | E177: 0 | H177: 0 | I177: 0 | J177: 0 | K177: 0 | L177: 0 | M177: 0 | N177: 0 | O177: 0 | P177: 0 | Q177: 0 | R177: 0 | AC177: 0 | AK177: 0 | AL177: 0 | AM177: 0 | AN177: 0 | AO177: 0 | AP177: 0 | AQ177: 0 | AR177: 0 | AS177: 0 | AT177: 0 | AU177: 0 | AY177: =IF(#REF!="",0, IF(#REF!="-",0,IF(#REF!>100%,1,0))) ->  | BA177: =IF(#REF!="",0, IF(#REF!="-",0,IF(#REF!>100%,1,0))) ->  | BB177: =IF(#REF!="",0, IF(#REF!="-",0,IF(#REF!>100%,1,0))) ->  | BC177: =IF(#REF!="",0, IF(#REF!="-",0,IF(#REF!>100%,1,0))) ->  | BG177: =CONCATENATE(#REF!,#REF!,#REF!) ->  | BI177: 0 | BJ177: FALSE | BK177: 0 | BL177: =IF(#REF!="",0,IF(#REF!=#REF!,1,0)) ->  | BR177: R1HWHIPPS CROSS AT SILVERTHORN MEDICAL | BS177: R1HMC | BT177: WHIPPS CROSS AT SILVERTHORN MEDICAL | BU177: R1HMC | BV177: WHIPPS CROSS AT SILVERTHORN MEDICAL | BW177: R1H | BZ177: BASILDON UNIVERSITY HOSPITAL | CA177: Orsett
C178: 0 | D178: 0 | E178: 0 | H178: 0 | I178: 0 | J178: 0 | K178: 0 | L178: 0 | M178: 0 | N178: 0 | O178: 0 | P178: 0 | Q178: 0 | R178: 0 | AC178: 0 | AK178: 0 | AL178: 0 | AM178: 0 | AN178: 0 | AO178: 0 | AP178: 0 | AQ178: 0 | AR178: 0 | AS178: 0 | AT178: 0 | AU178: 0 | AY178: =IF(#REF!="",0, IF(#REF!="-",0,IF(#REF!>100%,1,0))) ->  | BA178: =IF(#REF!="",0, IF(#REF!="-",0,IF(#REF!>100%,1,0))) ->  | BB178: =IF(#REF!="",0, IF(#REF!="-",0,IF(#REF!>100%,1,0))) ->  | BC178: =IF(#REF!="",0, IF(#REF!="-",0,IF(#REF!>100%,1,0))) ->  | BG178: =CONCATENATE(#REF!,#REF!,#REF!) ->  | BI178: 0 | BJ178: FALSE | BK178: 0 | BL178: =IF(#REF!="",0,IF(#REF!=#REF!,1,0)) ->  | BR178: R1HWHIPPS CROSS UNIVERSITY HOSPITAL | BS178: R1HKH | BT178: WHIPPS CROSS UNIVERSITY HOSPITAL | BU178: R1HKH | BV178: WHIPPS CROSS UNIVERSITY HOSPITAL | BW178: R1H | BZ178: BASILDON UNIVERSITY HOSPITAL | CA178: Osler
C179: 0 | D179: 0 | E179: 0 | H179: 0 | I179: 0 | J179: 0 | K179: 0 | L179: 0 | M179: 0 | N179: 0 | O179: 0 | P179: 0 | Q179: 0 | R179: 0 | AC179: 0 | AK179: 0 | AL179: 0 | AM179: 0 | AN179: 0 | AO179: 0 | AP179: 0 | AQ179: 0 | AR179: 0 | AS179: 0 | AT179: 0 | AU179: 0 | AY179: =IF(#REF!="",0, IF(#REF!="-",0,IF(#REF!>100%,1,0))) ->  | BA179: =IF(#REF!="",0, IF(#REF!="-",0,IF(#REF!>100%,1,0))) ->  | BB179: =IF(#REF!="",0, IF(#REF!="-",0,IF(#REF!>100%,1,0))) ->  | BC179: =IF(#REF!="",0, IF(#REF!="-",0,IF(#REF!>100%,1,0))) ->  | BG179: =CONCATENATE(#REF!,#REF!,#REF!) ->  | BI179: 0 | BJ179: FALSE | BK179: 0 | BL179: =IF(#REF!="",0,IF(#REF!=#REF!,1,0)) ->  | BR179: R1K EDGWARE COMMUNITY HOSPITAL | BS179: R1K21 | BT179: EDGWARE COMMUNITY HOSPITAL | BU179: R1K21 | BV179: EDGWARE COMMUNITY HOSPITAL | BW179: R1K | BZ179: BASILDON UNIVERSITY HOSPITAL | CA179: Pasteur
C180: 0 | D180: 0 | E180: 0 | H180: 0 | I180: 0 | J180: 0 | K180: 0 | L180: 0 | M180: 0 | N180: 0 | O180: 0 | P180: 0 | Q180: 0 | R180: 0 | AC180: 0 | AK180: 0 | AL180: 0 | AM180: 0 | AN180: 0 | AO180: 0 | AP180: 0 | AQ180: 0 | AR180: 0 | AS180: 0 | AT180: 0 | AU180: 0 | AY180: =IF(#REF!="",0, IF(#REF!="-",0,IF(#REF!>100%,1,0))) ->  | BA180: =IF(#REF!="",0, IF(#REF!="-",0,IF(#REF!>100%,1,0))) ->  | BB180: =IF(#REF!="",0, IF(#REF!="-",0,IF(#REF!>100%,1,0))) ->  | BC180: =IF(#REF!="",0, IF(#REF!="-",0,IF(#REF!>100%,1,0))) ->  | BG180: =CONCATENATE(#REF!,#REF!,#REF!) ->  | BI180: 0 | BJ180: FALSE | BK180: 0 | BL180: =IF(#REF!="",0,IF(#REF!=#REF!,1,0)) ->  | BR180: R1KCENTRAL MIDDLESEX HOSPITAL | BS180: R1K02 | BT180: CENTRAL MIDDLESEX HOSPITAL | BU180: R1K02 | BV180: CENTRAL MIDDLESEX HOSPITAL | BW180: R1K | BZ180: BASILDON UNIVERSITY HOSPITAL | CA180: Puffin/wagtail
C181: 0 | D181: 0 | E181: 0 | H181: 0 | I181: 0 | J181: 0 | K181: 0 | L181: 0 | M181: 0 | N181: 0 | O181: 0 | P181: 0 | Q181: 0 | R181: 0 | AC181: 0 | AK181: 0 | AL181: 0 | AM181: 0 | AN181: 0 | AO181: 0 | AP181: 0 | AQ181: 0 | AR181: 0 | AS181: 0 | AT181: 0 | AU181: 0 | AY181: =IF(#REF!="",0, IF(#REF!="-",0,IF(#REF!>100%,1,0))) ->  | BA181: =IF(#REF!="",0, IF(#REF!="-",0,IF(#REF!>100%,1,0))) ->  | BB181: =IF(#REF!="",0, IF(#REF!="-",0,IF(#REF!>100%,1,0))) ->  | BC181: =IF(#REF!="",0, IF(#REF!="-",0,IF(#REF!>100%,1,0))) ->  | BG181: =CONCATENATE(#REF!,#REF!,#REF!) ->  | BI181: 0 | BJ181: FALSE | BK181: 0 | BL181: =IF(#REF!="",0,IF(#REF!=#REF!,1,0)) ->  | BR181: R1KEALING HOSPITAL | BS181: R1K04 | BT181: EALING HOSPITAL | BU181: R1K04 | BV181: EALING HOSPITAL | BW181: R1K | BZ181: BASILDON UNIVERSITY HOSPITAL | CA181: Roding
C182: 0 | D182: 0 | E182: 0 | H182: 0 | I182: 0 | J182: 0 | K182: 0 | L182: 0 | M182: 0 | N182: 0 | O182: 0 | P182: 0 | Q182: 0 | R182: 0 | AC182: 0 | AK182: 0 | AL182: 0 | AM182: 0 | AN182: 0 | AO182: 0 | AP182: 0 | AQ182: 0 | AR182: 0 | AS182: 0 | AT182: 0 | AU182: 0 | AY182: =IF(#REF!="",0, IF(#REF!="-",0,IF(#REF!>100%,1,0))) ->  | BA182: =IF(#REF!="",0, IF(#REF!="-",0,IF(#REF!>100%,1,0))) ->  | BB182: =IF(#REF!="",0, IF(#REF!="-",0,IF(#REF!>100%,1,0))) ->  | BC182: =IF(#REF!="",0, IF(#REF!="-",0,IF(#REF!>100%,1,0))) ->  | BG182: =CONCATENATE(#REF!,#REF!,#REF!) ->  | BI182: 0 | BJ182: FALSE | BK182: 0 | BL182: =IF(#REF!="",0,IF(#REF!=#REF!,1,0)) ->  | BR182: R1KNORTHWICK PARK HOSPITAL | BS182: R1K01 | BT182: NORTHWICK PARK HOSPITAL | BU182: R1K01 | BV182: NORTHWICK PARK HOSPITAL | BW182: R1K | BZ182: BASILDON UNIVERSITY HOSPITAL | CA182: SRU
C183: 0 | D183: 0 | E183: 0 | H183: 0 | I183: 0 | J183: 0 | K183: 0 | L183: 0 | M183: 0 | N183: 0 | O183: 0 | P183: 0 | Q183: 0 | R183: 0 | AC183: 0 | AK183: 0 | AL183: 0 | AM183: 0 | AN183: 0 | AO183: 0 | AP183: 0 | AQ183: 0 | AR183: 0 | AS183: 0 | AT183: 0 | AU183: 0 | AY183: =IF(#REF!="",0, IF(#REF!="-",0,IF(#REF!>100%,1,0))) ->  | BA183: =IF(#REF!="",0, IF(#REF!="-",0,IF(#REF!>100%,1,0))) ->  | BB183: =IF(#REF!="",0, IF(#REF!="-",0,IF(#REF!>100%,1,0))) ->  | BC183: =IF(#REF!="",0, IF(#REF!="-",0,IF(#REF!>100%,1,0))) ->  | BG183: =CONCATENATE(#REF!,#REF!,#REF!) ->  | BI183: 0 | BJ183: FALSE | BK183: 0 | BL183: =IF(#REF!="",0,IF(#REF!=#REF!,1,0)) ->  | BR183: R1KNORTHWICK PARK HOSPITAL STARRS HARROW | BS183: R1K46 | BT183: NORTHWICK PARK HOSPITAL STARRS HARROW | BU183: R1K46 | BV183: NORTHWICK PARK HOSPITAL STARRS HARROW | BW183: R1K | BZ183: BASILDON UNIVERSITY HOSPITAL | CA183: William Harvey
C184: 0 | D184: 0 | E184: 0 | H184: 0 | I184: 0 | J184: 0 | K184: 0 | L184: 0 | M184: 0 | N184: 0 | O184: 0 | P184: 0 | Q184: 0 | R184: 0 | AC184: 0 | AK184: 0 | AL184: 0 | AM184: 0 | AN184: 0 | AO184: 0 | AP184: 0 | AQ184: 0 | AR184: 0 | AS184: 0 | AT184: 0 | AU184: 0 | AY184: =IF(#REF!="",0, IF(#REF!="-",0,IF(#REF!>100%,1,0))) ->  | BA184: =IF(#REF!="",0, IF(#REF!="-",0,IF(#REF!>100%,1,0))) ->  | BB184: =IF(#REF!="",0, IF(#REF!="-",0,IF(#REF!>100%,1,0))) ->  | BC184: =IF(#REF!="",0, IF(#REF!="-",0,IF(#REF!>100%,1,0))) ->  | BG184: =CONCATENATE(#REF!,#REF!,#REF!) ->  | BH184: =IF(BG184="","",(IF(COUNTIF($BG$46:$BG$244,BG184)>1,1,0))=1) ->  | BI184: 0 | BJ184: FALSE | BK184: 0 | BL184: =IF(#REF!="",0,IF(#REF!=#REF!,1,0)) ->  | BR184: R1KNORTHWICK PARK HOSPITAL ELCO COMMUNITY | BS184: R1K59 | BT184: NORTHWICK PARK HOSPITAL ELCO COMMUNITY | BU184: R1K59 | BV184: NORTHWICK PARK HOSPITAL ELCO COMMUNITY | BW184: R1K | BZ184: BASILDON UNIVERSITY HOSPITAL | CA184: WILLOW
C185: 0 | D185: 0 | E185: 0 | H185: 0 | I185: 0 | J185: 0 | K185: 0 | L185: 0 | M185: 0 | N185: 0 | O185: 0 | P185: 0 | Q185: 0 | R185: 0 | AC185: 0 | AK185: 0 | AL185: 0 | AM185: 0 | AN185: 0 | AO185: 0 | AP185: 0 | AQ185: 0 | AR185: 0 | AS185: 0 | AT185: 0 | AU185: 0 | AY185: =IF(#REF!="",0, IF(#REF!="-",0,IF(#REF!>100%,1,0))) ->  | BA185: =IF(#REF!="",0, IF(#REF!="-",0,IF(#REF!>100%,1,0))) ->  | BB185: =IF(#REF!="",0, IF(#REF!="-",0,IF(#REF!>100%,1,0))) ->  | BC185: =IF(#REF!="",0, IF(#REF!="-",0,IF(#REF!>100%,1,0))) ->  | BG185: =CONCATENATE(#REF!,#REF!,#REF!) ->  | BI185: 0 | BJ185: FALSE | BK185: 0 | BL185: =IF(#REF!="",0,IF(#REF!=#REF!,1,0)) ->  | BR185: R1KST MARKS HOSPITAL | BS185: R1K03 | BT185: ST MARKS HOSPITAL | BU185: R1K03 | BV185: ST MARKS HOSPITAL | BW185: R1K | BZ185: BEDFORD HOSPITAL SOUTH WING | CA185: Arnold Whitchurch
C186: 0 | D186: 0 | E186: 0 | H186: 0 | I186: 0 | J186: 0 | K186: 0 | L186: 0 | M186: 0 | N186: 0 | O186: 0 | P186: 0 | Q186: 0 | R186: 0 | AC186: 0 | AK186: 0 | AL186: 0 | AM186: 0 | AN186: 0 | AO186: 0 | AP186: 0 | AQ186: 0 | AR186: 0 | AS186: 0 | AT186: 0 | AU186: 0 | AY186: =IF(#REF!="",0, IF(#REF!="-",0,IF(#REF!>100%,1,0))) ->  | BA186: =IF(#REF!="",0, IF(#REF!="-",0,IF(#REF!>100%,1,0))) ->  | BB186: =IF(#REF!="",0, IF(#REF!="-",0,IF(#REF!>100%,1,0))) ->  | BC186: =IF(#REF!="",0, IF(#REF!="-",0,IF(#REF!>100%,1,0))) ->  | BG186: =CONCATENATE(#REF!,#REF!,#REF!) ->  | BI186: 0 | BJ186: FALSE | BK186: 0 | BL186: =IF(#REF!="",0,IF(#REF!=#REF!,1,0)) ->  | BR186: R1KURGENT CARE CENTRE CENTAL MIDDLESEX HOSPITAL | BS186: R1K12 | BT186: URGENT CARE CENTRE CENTAL MIDDLESEX HOSPITAL | BU186: R1K12 | BV186: URGENT CARE CENTRE CENTAL MIDDLESEX HOSPITAL | BW186: R1K | BZ186: BEDFORD HOSPITAL SOUTH WING | CA186: Coronary Care Unit
C187: 0 | D187: 0 | E187: 0 | H187: 0 | I187: 0 | J187: 0 | K187: 0 | L187: 0 | M187: 0 | N187: 0 | O187: 0 | P187: 0 | Q187: 0 | R187: 0 | AC187: 0 | AK187: 0 | AL187: 0 | AM187: 0 | AN187: 0 | AO187: 0 | AP187: 0 | AQ187: 0 | AR187: 0 | AS187: 0 | AT187: 0 | AU187: 0 | AY187: =IF(#REF!="",0, IF(#REF!="-",0,IF(#REF!>100%,1,0))) ->  | BA187: =IF(#REF!="",0, IF(#REF!="-",0,IF(#REF!>100%,1,0))) ->  | BB187: =IF(#REF!="",0, IF(#REF!="-",0,IF(#REF!>100%,1,0))) ->  | BC187: =IF(#REF!="",0, IF(#REF!="-",0,IF(#REF!>100%,1,0))) ->  | BG187: =CONCATENATE(#REF!,#REF!,#REF!) ->  | BI187: 0 | BJ187: FALSE | BK187: 0 | BL187: =IF(#REF!="",0,IF(#REF!=#REF!,1,0)) ->  | BR187: R1KURGENT CARE CENTRE EALING HOSPITAL | BS187: R1K14 | BT187: URGENT CARE CENTRE EALING HOSPITAL | BU187: R1K14 | BV187: URGENT CARE CENTRE EALING HOSPITAL | BW187: R1K | BZ187: BEDFORD HOSPITAL SOUTH WING | CA187: Critical Care Complex
C188: 0 | D188: 0 | E188: 0 | H188: 0 | I188: 0 | J188: 0 | K188: 0 | L188: 0 | M188: 0 | N188: 0 | O188: 0 | P188: 0 | Q188: 0 | R188: 0 | AC188: 0 | AK188: 0 | AL188: 0 | AM188: 0 | AN188: 0 | AO188: 0 | AP188: 0 | AQ188: 0 | AR188: 0 | AS188: 0 | AT188: 0 | AU188: 0 | AY188: =IF(#REF!="",0, IF(#REF!="-",0,IF(#REF!>100%,1,0))) ->  | BA188: =IF(#REF!="",0, IF(#REF!="-",0,IF(#REF!>100%,1,0))) ->  | BB188: =IF(#REF!="",0, IF(#REF!="-",0,IF(#REF!>100%,1,0))) ->  | BC188: =IF(#REF!="",0, IF(#REF!="-",0,IF(#REF!>100%,1,0))) ->  | BG188: =CONCATENATE(#REF!,#REF!,#REF!) ->  | BI188: 0 | BJ188: FALSE | BK188: 0 | BL188: =IF(#REF!="",0,IF(#REF!=#REF!,1,0)) ->  | BR188: R1LARCHER UNIT | BS188: R1L92 | BT188: ARCHER UNIT | BU188: R1L92 | BV188: ARCHER UNIT | BW188: R1L | BZ188: BEDFORD HOSPITAL SOUTH WING | CA188: Elizabeth
C189: 0 | D189: 0 | E189: 0 | H189: 0 | I189: 0 | J189: 0 | K189: 0 | L189: 0 | M189: 0 | N189: 0 | O189: 0 | P189: 0 | Q189: 0 | R189: 0 | AC189: 0 | AK189: 0 | AL189: 0 | AM189: 0 | AN189: 0 | AO189: 0 | AP189: 0 | AQ189: 0 | AR189: 0 | AS189: 0 | AT189: 0 | AU189: 0 | AY189: =IF(#REF!="",0, IF(#REF!="-",0,IF(#REF!>100%,1,0))) ->  | BA189: =IF(#REF!="",0, IF(#REF!="-",0,IF(#REF!>100%,1,0))) ->  | BB189: =IF(#REF!="",0, IF(#REF!="-",0,IF(#REF!>100%,1,0))) ->  | BC189: =IF(#REF!="",0, IF(#REF!="-",0,IF(#REF!>100%,1,0))) ->  | BG189: =CONCATENATE(#REF!,#REF!,#REF!) ->  | BI189: 0 | BJ189: FALSE | BK189: 0 | BL189: =IF(#REF!="",0,IF(#REF!=#REF!,1,0)) ->  | BR189: R1LBRAINTREE - THE GABLES | BS189: R1LD1 | BT189: BRAINTREE - THE GABLES | BU189: R1LD1 | BV189: BRAINTREE - THE GABLES | BW189: R1L | BZ189: BEDFORD HOSPITAL SOUTH WING | CA189: Godber
C190: 0 | D190: 0 | E190: 0 | H190: 0 | I190: 0 | J190: 0 | K190: 0 | L190: 0 | M190: 0 | N190: 0 | O190: 0 | P190: 0 | Q190: 0 | R190: 0 | AC190: 0 | AK190: 0 | AL190: 0 | AM190: 0 | AN190: 0 | AO190: 0 | AP190: 0 | AQ190: 0 | AR190: 0 | AS190: 0 | AT190: 0 | AU190: 0 | AY190: =IF(#REF!="",0, IF(#REF!="-",0,IF(#REF!>100%,1,0))) ->  | BA190: =IF(#REF!="",0, IF(#REF!="-",0,IF(#REF!>100%,1,0))) ->  | BB190: =IF(#REF!="",0, IF(#REF!="-",0,IF(#REF!>100%,1,0))) ->  | BC190: =IF(#REF!="",0, IF(#REF!="-",0,IF(#REF!>100%,1,0))) ->  | BG190: =CONCATENATE(#REF!,#REF!,#REF!) ->  | BI190: 0 | BJ190: FALSE | BK190: 0 | BL190: =IF(#REF!="",0,IF(#REF!=#REF!,1,0)) ->  | BR190: R1LBROCKFIELD HOUSE | BS190: R1LK9 | BT190: BROCKFIELD HOUSE | BU190: R1LK9 | BV190: BROCKFIELD HOUSE | BW190: R1L | BZ190: BEDFORD HOSPITAL SOUTH WING | CA190: Harpur
C191: 0 | D191: 0 | E191: 0 | H191: 0 | I191: 0 | J191: 0 | K191: 0 | L191: 0 | M191: 0 | N191: 0 | O191: 0 | P191: 0 | Q191: 0 | R191: 0 | AC191: 0 | AK191: 0 | AL191: 0 | AM191: 0 | AN191: 0 | AO191: 0 | AP191: 0 | AQ191: 0 | AR191: 0 | AS191: 0 | AT191: 0 | AU191: 0 | AY191: =IF(#REF!="",0, IF(#REF!="-",0,IF(#REF!>100%,1,0))) ->  | BA191: =IF(#REF!="",0, IF(#REF!="-",0,IF(#REF!>100%,1,0))) ->  | BB191: =IF(#REF!="",0, IF(#REF!="-",0,IF(#REF!>100%,1,0))) ->  | BC191: =IF(#REF!="",0, IF(#REF!="-",0,IF(#REF!>100%,1,0))) ->  | BG191: =CONCATENATE(#REF!,#REF!,#REF!) ->  | BI191: 0 | BJ191: FALSE | BK191: 0 | BL191: =IF(#REF!="",0,IF(#REF!=#REF!,1,0)) ->  | BR191: R1LCHELMSFORD - THE LINDEN CENTRE | BS191: R1LAH | BT191: CHELMSFORD - THE LINDEN CENTRE | BU191: R1LAH | BV191: CHELMSFORD - THE LINDEN CENTRE | BW191: R1L | BZ191: BEDFORD HOSPITAL SOUTH WING | CA191: Howard Surgical
C192: 0 | D192: 0 | E192: 0 | H192: 0 | I192: 0 | J192: 0 | K192: 0 | L192: 0 | M192: 0 | N192: 0 | O192: 0 | P192: 0 | Q192: 0 | R192: 0 | AC192: 0 | AK192: 0 | AL192: 0 | AM192: 0 | AN192: 0 | AO192: 0 | AP192: 0 | AQ192: 0 | AR192: 0 | AS192: 0 | AT192: 0 | AU192: 0 | AY192: =IF(#REF!="",0, IF(#REF!="-",0,IF(#REF!>100%,1,0))) ->  | BA192: =IF(#REF!="",0, IF(#REF!="-",0,IF(#REF!>100%,1,0))) ->  | BB192: =IF(#REF!="",0, IF(#REF!="-",0,IF(#REF!>100%,1,0))) ->  | BC192: =IF(#REF!="",0, IF(#REF!="-",0,IF(#REF!>100%,1,0))) ->  | BG192: =CONCATENATE(#REF!,#REF!,#REF!) ->  | BI192: 0 | BJ192: FALSE | BK192: 0 | BL192: =IF(#REF!="",0,IF(#REF!=#REF!,1,0)) ->  | BR192: R1LCLACTON - MENTAL HEALTH SERVICES - CLACTON HOSPITAL | BS192: R1LE2 | BT192: CLACTON - MENTAL HEALTH SERVICES - CLACTON HOSPITAL | BU192: R1LE2 | BV192: CLACTON - MENTAL HEALTH SERVICES - CLACTON HOSPITAL | BW192: R1L | BZ192: BEDFORD HOSPITAL SOUTH WING | CA192: Meadow bank
C193: 0 | D193: 0 | E193: 0 | H193: 0 | I193: 0 | J193: 0 | K193: 0 | L193: 0 | M193: 0 | N193: 0 | O193: 0 | P193: 0 | Q193: 0 | R193: 0 | AC193: 0 | AK193: 0 | AL193: 0 | AM193: 0 | AN193: 0 | AO193: 0 | AP193: 0 | AQ193: 0 | AR193: 0 | AS193: 0 | AT193: 0 | AU193: 0 | AY193: =IF(#REF!="",0, IF(#REF!="-",0,IF(#REF!>100%,1,0))) ->  | BA193: =IF(#REF!="",0, IF(#REF!="-",0,IF(#REF!>100%,1,0))) ->  | BB193: =IF(#REF!="",0, IF(#REF!="-",0,IF(#REF!>100%,1,0))) ->  | BC193: =IF(#REF!="",0, IF(#REF!="-",0,IF(#REF!>100%,1,0))) ->  | BG193: =CONCATENATE(#REF!,#REF!,#REF!) ->  | BI193: 0 | BJ193: FALSE | BK193: 0 | BL193: =IF(#REF!="",0,IF(#REF!=#REF!,1,0)) ->  | BR193: R1LCLIFTON LODGE | BS193: R1LJ3 | BT193: CLIFTON LODGE | BU193: R1LJ3 | BV193: CLIFTON LODGE | BW193: R1L | BZ193: BEDFORD HOSPITAL SOUTH WING | CA193: Orchard Gynae
C194: 0 | D194: 0 | E194: 0 | H194: 0 | I194: 0 | J194: 0 | K194: 0 | L194: 0 | M194: 0 | N194: 0 | O194: 0 | P194: 0 | Q194: 0 | R194: 0 | AC194: 0 | AK194: 0 | AL194: 0 | AM194: 0 | AN194: 0 | AO194: 0 | AP194: 0 | AQ194: 0 | AR194: 0 | AS194: 0 | AT194: 0 | AU194: 0 | AY194: =IF(#REF!="",0, IF(#REF!="-",0,IF(#REF!>100%,1,0))) ->  | BA194: =IF(#REF!="",0, IF(#REF!="-",0,IF(#REF!>100%,1,0))) ->  | BB194: =IF(#REF!="",0, IF(#REF!="-",0,IF(#REF!>100%,1,0))) ->  | BC194: =IF(#REF!="",0, IF(#REF!="-",0,IF(#REF!>100%,1,0))) ->  | BG194: =CONCATENATE(#REF!,#REF!,#REF!) ->  | BI194: 0 | BJ194: FALSE | BK194: 0 | BL194: =IF(#REF!="",0,IF(#REF!=#REF!,1,0)) ->  | BR194: R1LCOLCHESTER - KING'S WOOD CENTRE | BS194: R1LD6 | BT194: COLCHESTER - KING'S WOOD CENTRE | BU194: R1LD6 | BV194: COLCHESTER - KING'S WOOD CENTRE | BW194: R1L | BZ194: BEDFORD HOSPITAL SOUTH WING | CA194: Orchard Maternity/Delivery
C195: 0 | D195: 0 | E195: 0 | H195: 0 | I195: 0 | J195: 0 | K195: 0 | L195: 0 | M195: 0 | N195: 0 | O195: 0 | P195: 0 | Q195: 0 | R195: 0 | AC195: 0 | AK195: 0 | AL195: 0 | AM195: 0 | AN195: 0 | AO195: 0 | AP195: 0 | AQ195: 0 | AR195: 0 | AS195: 0 | AT195: 0 | AU195: 0 | AY195: =IF(#REF!="",0, IF(#REF!="-",0,IF(#REF!>100%,1,0))) ->  | BA195: =IF(#REF!="",0, IF(#REF!="-",0,IF(#REF!>100%,1,0))) ->  | BB195: =IF(#REF!="",0, IF(#REF!="-",0,IF(#REF!>100%,1,0))) ->  | BC195: =IF(#REF!="",0, IF(#REF!="-",0,IF(#REF!>100%,1,0))) ->  | BG195: =CONCATENATE(#REF!,#REF!,#REF!) ->  | BI195: 0 | BJ195: FALSE | BK195: 0 | BL195: =IF(#REF!="",0,IF(#REF!=#REF!,1,0)) ->  | BR195: R1LCOLCHESTER - THE BRAMBLES | BS195: R1LAT | BT195: COLCHESTER - THE BRAMBLES | BU195: R1LAT | BV195: COLCHESTER - THE BRAMBLES | BW195: R1L | BZ195: BEDFORD HOSPITAL SOUTH WING | CA195: Pilgrim
C196: 0 | D196: 0 | E196: 0 | H196: 0 | I196: 0 | J196: 0 | K196: 0 | L196: 0 | M196: 0 | N196: 0 | O196: 0 | P196: 0 | Q196: 0 | R196: 0 | AC196: 0 | AK196: 0 | AL196: 0 | AM196: 0 | AN196: 0 | AO196: 0 | AP196: 0 | AQ196: 0 | AR196: 0 | AS196: 0 | AT196: 0 | AU196: 0 | AY196: =IF(#REF!="",0, IF(#REF!="-",0,IF(#REF!>100%,1,0))) ->  | BA196: =IF(#REF!="",0, IF(#REF!="-",0,IF(#REF!>100%,1,0))) ->  | BB196: =IF(#REF!="",0, IF(#REF!="-",0,IF(#REF!>100%,1,0))) ->  | BC196: =IF(#REF!="",0, IF(#REF!="-",0,IF(#REF!>100%,1,0))) ->  | BG196: =CONCATENATE(#REF!,#REF!,#REF!) ->  | BI196: 0 | BJ196: FALSE | BK196: 0 | BL196: =IF(#REF!="",0,IF(#REF!=#REF!,1,0)) ->  | BR196: R1LCOLCHESTER - THE LAKES | BS196: R1LE1 | BT196: COLCHESTER - THE LAKES | BU196: R1LE1 | BV196: COLCHESTER - THE LAKES | BW196: R1L | BZ196: BEDFORD HOSPITAL SOUTH WING | CA196: Reginald Hart
C197: 0 | D197: 0 | E197: 0 | H197: 0 | I197: 0 | J197: 0 | K197: 0 | L197: 0 | M197: 0 | N197: 0 | O197: 0 | P197: 0 | Q197: 0 | R197: 0 | AC197: 0 | AK197: 0 | AL197: 0 | AM197: 0 | AN197: 0 | AO197: 0 | AP197: 0 | AQ197: 0 | AR197: 0 | AS197: 0 | AT197: 0 | AU197: 0 | AY197: =IF(#REF!="",0, IF(#REF!="-",0,IF(#REF!>100%,1,0))) ->  | BA197: =IF(#REF!="",0, IF(#REF!="-",0,IF(#REF!>100%,1,0))) ->  | BB197: =IF(#REF!="",0, IF(#REF!="-",0,IF(#REF!>100%,1,0))) ->  | BC197: =IF(#REF!="",0, IF(#REF!="-",0,IF(#REF!>100%,1,0))) ->  | BG197: =CONCATENATE(#REF!,#REF!,#REF!) ->  | BI197: 0 | BJ197: FALSE | BK197: 0 | BL197: =IF(#REF!="",0,IF(#REF!=#REF!,1,0)) ->  | BR197: R1LCUMBERLEDGE CENTRE | BS197: R1L90 | BT197: CUMBERLEDGE CENTRE | BU197: R1L90 | BV197: CUMBERLEDGE CENTRE | BW197: R1L | BZ197: BEDFORD HOSPITAL SOUTH WING | CA197: Richard Wells
C198: 0 | D198: 0 | E198: 0 | H198: 0 | I198: 0 | J198: 0 | K198: 0 | L198: 0 | M198: 0 | N198: 0 | O198: 0 | P198: 0 | Q198: 0 | R198: 0 | AC198: 0 | AK198: 0 | AL198: 0 | AM198: 0 | AN198: 0 | AO198: 0 | AP198: 0 | AQ198: 0 | AR198: 0 | AS198: 0 | AT198: 0 | AU198: 0 | AY198: =IF(#REF!="",0, IF(#REF!="-",0,IF(#REF!>100%,1,0))) ->  | BA198: =IF(#REF!="",0, IF(#REF!="-",0,IF(#REF!>100%,1,0))) ->  | BB198: =IF(#REF!="",0, IF(#REF!="-",0,IF(#REF!>100%,1,0))) ->  | BC198: =IF(#REF!="",0, IF(#REF!="-",0,IF(#REF!>100%,1,0))) ->  | BG198: =CONCATENATE(#REF!,#REF!,#REF!) ->  | BI198: 0 | BJ198: FALSE | BK198: 0 | BL198: =IF(#REF!="",0,IF(#REF!=#REF!,1,0)) ->  | BR198: R1LHARLOW - DERWENT CENTRE | BS198: R1LPA | BT198: HARLOW - DERWENT CENTRE | BU198: R1LPA | BV198: HARLOW - DERWENT CENTRE | BW198: R1L | BZ198: BEDFORD HOSPITAL SOUTH WING | CA198: Riverbank
C199: 0 | D199: 0 | E199: 0 | H199: 0 | I199: 0 | J199: 0 | K199: 0 | L199: 0 | M199: 0 | N199: 0 | O199: 0 | P199: 0 | Q199: 0 | R199: 0 | AC199: 0 | AK199: 0 | AL199: 0 | AM199: 0 | AN199: 0 | AO199: 0 | AP199: 0 | AQ199: 0 | AR199: 0 | AS199: 0 | AT199: 0 | AU199: 0 | AY199: =IF(#REF!="",0, IF(#REF!="-",0,IF(#REF!>100%,1,0))) ->  | BA199: =IF(#REF!="",0, IF(#REF!="-",0,IF(#REF!>100%,1,0))) ->  | BB199: =IF(#REF!="",0, IF(#REF!="-",0,IF(#REF!>100%,1,0))) ->  | BC199: =IF(#REF!="",0, IF(#REF!="-",0,IF(#REF!>100%,1,0))) ->  | BG199: =CONCATENATE(#REF!,#REF!,#REF!) ->  | BI199: 0 | BJ199: FALSE | BK199: 0 | BL199: =IF(#REF!="",0,IF(#REF!=#REF!,1,0)) ->  | BR199: R1LHARLOW - SYDENHAM HOUSE | BS199: R1LHF | BT199: HARLOW - SYDENHAM HOUSE | BU199: R1LHF | BV199: HARLOW - SYDENHAM HOUSE | BW199: R1L | BZ199: BEDFORD HOSPITAL SOUTH WING | CA199: Russell
C200: 0 | D200: 0 | E200: 0 | H200: 0 | I200: 0 | J200: 0 | K200: 0 | L200: 0 | M200: 0 | N200: 0 | O200: 0 | P200: 0 | Q200: 0 | R200: 0 | AC200: 0 | AK200: 0 | AL200: 0 | AM200: 0 | AN200: 0 | AO200: 0 | AP200: 0 | AQ200: 0 | AR200: 0 | AS200: 0 | AT200: 0 | AU200: 0 | AY200: =IF(#REF!="",0, IF(#REF!="-",0,IF(#REF!>100%,1,0))) ->  | BA200: =IF(#REF!="",0, IF(#REF!="-",0,IF(#REF!>100%,1,0))) ->  | BB200: =IF(#REF!="",0, IF(#REF!="-",0,IF(#REF!>100%,1,0))) ->  | BC200: =IF(#REF!="",0, IF(#REF!="-",0,IF(#REF!>100%,1,0))) ->  | BG200: =CONCATENATE(#REF!,#REF!,#REF!) ->  | BI200: 0 | BJ200: FALSE | BK200: 0 | BL200: =IF(#REF!="",0,IF(#REF!=#REF!,1,0)) ->  | BR200: R1LHEATH CLOSE | BS200: R1LA9 | BT200: HEATH CLOSE | BU200: R1LA9 | BV200: HEATH CLOSE | BW200: R1L | BZ200: BEDFORD HOSPITAL SOUTH WING | CA200: Shand
C201: 0 | D201: 0 | E201: 0 | H201: 0 | I201: 0 | J201: 0 | K201: 0 | L201: 0 | M201: 0 | N201: 0 | O201: 0 | P201: 0 | Q201: 0 | R201: 0 | AC201: 0 | AK201: 0 | AL201: 0 | AM201: 0 | AN201: 0 | AO201: 0 | AP201: 0 | AQ201: 0 | AR201: 0 | AS201: 0 | AT201: 0 | AU201: 0 | AY201: =IF(#REF!="",0, IF(#REF!="-",0,IF(#REF!>100%,1,0))) ->  | BA201: =IF(#REF!="",0, IF(#REF!="-",0,IF(#REF!>100%,1,0))) ->  | BB201: =IF(#REF!="",0, IF(#REF!="-",0,IF(#REF!>100%,1,0))) ->  | BC201: =IF(#REF!="",0, IF(#REF!="-",0,IF(#REF!>100%,1,0))) ->  | BG201: =CONCATENATE(#REF!,#REF!,#REF!) ->  | BI201: 0 | BJ201: FALSE | BK201: 0 | BL201: =IF(#REF!="",0,IF(#REF!=#REF!,1,0)) ->  | BR201: R1LMENTAL HEALTH UNIT (BASILDON) | BS201: R1L40 | BT201: MENTAL HEALTH UNIT (BASILDON) | BU201: R1L40 | BV201: MENTAL HEALTH UNIT (BASILDON) | BW201: R1L | BZ201: BEDFORD HOSPITAL SOUTH WING | CA201: Shuttleworth Medical
C202: 0 | D202: 0 | E202: 0 | H202: 0 | I202: 0 | J202: 0 | K202: 0 | L202: 0 | M202: 0 | N202: 0 | O202: 0 | P202: 0 | Q202: 0 | R202: 0 | AC202: 0 | AK202: 0 | AL202: 0 | AM202: 0 | AN202: 0 | AO202: 0 | AP202: 0 | AQ202: 0 | AR202: 0 | AS202: 0 | AT202: 0 | AU202: 0 | AY202: =IF(#REF!="",0, IF(#REF!="-",0,IF(#REF!>100%,1,0))) ->  | BA202: =IF(#REF!="",0, IF(#REF!="-",0,IF(#REF!>100%,1,0))) ->  | BB202: =IF(#REF!="",0, IF(#REF!="-",0,IF(#REF!>100%,1,0))) ->  | BC202: =IF(#REF!="",0, IF(#REF!="-",0,IF(#REF!>100%,1,0))) ->  | BG202: =CONCATENATE(#REF!,#REF!,#REF!) ->  | BI202: 0 | BJ202: FALSE | BK202: 0 | BL202: =IF(#REF!="",0,IF(#REF!=#REF!,1,0)) ->  | BR202: R1LMOUNTNESSING COURT | BS202: R1L65 | BT202: MOUNTNESSING COURT | BU202: R1L65 | BV202: MOUNTNESSING COURT | BW202: R1L | BZ202: BEDFORD HOSPITAL SOUTH WING | CA202: Whitbread Medical
C203: 0 | D203: 0 | E203: 0 | H203: 0 | I203: 0 | J203: 0 | K203: 0 | L203: 0 | M203: 0 | N203: 0 | O203: 0 | P203: 0 | Q203: 0 | R203: 0 | AC203: 0 | AK203: 0 | AL203: 0 | AM203: 0 | AN203: 0 | AO203: 0 | AP203: 0 | AQ203: 0 | AR203: 0 | AS203: 0 | AT203: 0 | AU203: 0 | AY203: =IF(#REF!="",0, IF(#REF!="-",0,IF(#REF!>100%,1,0))) ->  | BA203: =IF(#REF!="",0, IF(#REF!="-",0,IF(#REF!>100%,1,0))) ->  | BB203: =IF(#REF!="",0, IF(#REF!="-",0,IF(#REF!>100%,1,0))) ->  | BC203: =IF(#REF!="",0, IF(#REF!="-",0,IF(#REF!>100%,1,0))) ->  | BG203: =CONCATENATE(#REF!,#REF!,#REF!) ->  | BI203: 0 | BJ203: FALSE | BK203: 0 | BL203: =IF(#REF!="",0,IF(#REF!=#REF!,1,0)) ->  | BR203: R1LNEW ST AUBYN CENTRE | BS203: R1L22 | BT203: NEW ST AUBYN CENTRE | BU203: R1LL | BV203: NEW ST AUBYN CENTRE | BW203: R1L | BZ203: PROSPECT PARK HOSPITAL | CA203: Bluebell Ward
C204: 0 | D204: 0 | E204: 0 | H204: 0 | I204: 0 | J204: 0 | K204: 0 | L204: 0 | M204: 0 | N204: 0 | O204: 0 | P204: 0 | Q204: 0 | R204: 0 | AC204: 0 | AK204: 0 | AL204: 0 | AM204: 0 | AN204: 0 | AO204: 0 | AP204: 0 | AQ204: 0 | AR204: 0 | AS204: 0 | AT204: 0 | AU204: 0 | AY204: =IF(#REF!="",0, IF(#REF!="-",0,IF(#REF!>100%,1,0))) ->  | BA204: =IF(#REF!="",0, IF(#REF!="-",0,IF(#REF!>100%,1,0))) ->  | BB204: =IF(#REF!="",0, IF(#REF!="-",0,IF(#REF!>100%,1,0))) ->  | BC204: =IF(#REF!="",0, IF(#REF!="-",0,IF(#REF!>100%,1,0))) ->  | BG204: =CONCATENATE(#REF!,#REF!,#REF!) ->  | BI204: 0 | BJ204: FALSE | BK204: 0 | BL204: =IF(#REF!="",0,IF(#REF!=#REF!,1,0)) ->  | BR204: R1LROBIN PINTO UNIT | BS204: R1L31 | BT204: ROBIN PINTO UNIT | BU204: R1L31 | BV204: ROBIN PINTO UNIT | BW204: R1L | BZ204: PROSPECT PARK HOSPITAL | CA204: Campion Unit
C205: 0 | D205: 0 | E205: 0 | H205: 0 | I205: 0 | J205: 0 | K205: 0 | L205: 0 | M205: 0 | N205: 0 | O205: 0 | P205: 0 | Q205: 0 | R205: 0 | AC205: 0 | AK205: 0 | AL205: 0 | AM205: 0 | AN205: 0 | AO205: 0 | AP205: 0 | AQ205: 0 | AR205: 0 | AS205: 0 | AT205: 0 | AU205: 0 | AY205: =IF(#REF!="",0, IF(#REF!="-",0,IF(#REF!>100%,1,0))) ->  | BA205: =IF(#REF!="",0, IF(#REF!="-",0,IF(#REF!>100%,1,0))) ->  | BB205: =IF(#REF!="",0, IF(#REF!="-",0,IF(#REF!>100%,1,0))) ->  | BC205: =IF(#REF!="",0, IF(#REF!="-",0,IF(#REF!>100%,1,0))) ->  | BG205: =CONCATENATE(#REF!,#REF!,#REF!) ->  | BI205: 0 | BJ205: FALSE | BK205: 0 | BL205: =IF(#REF!="",0,IF(#REF!=#REF!,1,0)) ->  | BR205: R1LROCHFORD COMMUNITY HOSPITAL | BS205: R1L10 | BT205: ROCHFORD COMMUNITY HOSPITAL | BU205: R1L10 | BV205: ROCHFORD COMMUNITY HOSPITAL | BW205: R1L | BZ205: PROSPECT PARK HOSPITAL | CA205: Daisy Ward
C206: 0 | D206: 0 | E206: 0 | H206: 0 | I206: 0 | J206: 0 | K206: 0 | L206: 0 | M206: 0 | N206: 0 | O206: 0 | P206: 0 | Q206: 0 | R206: 0 | AC206: 0 | AK206: 0 | AL206: 0 | AM206: 0 | AN206: 0 | AO206: 0 | AP206: 0 | AQ206: 0 | AR206: 0 | AS206: 0 | AT206: 0 | AU206: 0 | AY206: =IF(#REF!="",0, IF(#REF!="-",0,IF(#REF!>100%,1,0))) ->  | BA206: =IF(#REF!="",0, IF(#REF!="-",0,IF(#REF!>100%,1,0))) ->  | BB206: =IF(#REF!="",0, IF(#REF!="-",0,IF(#REF!>100%,1,0))) ->  | BC206: =IF(#REF!="",0, IF(#REF!="-",0,IF(#REF!>100%,1,0))) ->  | BG206: =CONCATENATE(#REF!,#REF!,#REF!) ->  | BI206: 0 | BJ206: FALSE | BK206: 0 | BL206: =IF(#REF!="",0,IF(#REF!=#REF!,1,0)) ->  | BR206: R1LSAFFRON WALDEN COMMUNITY HOSPITAL | BS206: R1LTH | BT206: SAFFRON WALDEN COMMUNITY HOSPITAL | BU206: R1LTH | BV206: SAFFRON WALDEN COMMUNITY HOSPITAL | BW206: R1L | BZ206: PROSPECT PARK HOSPITAL | CA206: Oakwood Ward
C207: 0 | D207: 0 | E207: 0 | H207: 0 | I207: 0 | J207: 0 | K207: 0 | L207: 0 | M207: 0 | N207: 0 | O207: 0 | P207: 0 | Q207: 0 | R207: 0 | AC207: 0 | AK207: 0 | AL207: 0 | AM207: 0 | AN207: 0 | AO207: 0 | AP207: 0 | AQ207: 0 | AR207: 0 | AS207: 0 | AT207: 0 | AU207: 0 | AY207: =IF(#REF!="",0, IF(#REF!="-",0,IF(#REF!>100%,1,0))) ->  | BA207: =IF(#REF!="",0, IF(#REF!="-",0,IF(#REF!>100%,1,0))) ->  | BB207: =IF(#REF!="",0, IF(#REF!="-",0,IF(#REF!>100%,1,0))) ->  | BC207: =IF(#REF!="",0, IF(#REF!="-",0,IF(#REF!>100%,1,0))) ->  | BG207: =CONCATENATE(#REF!,#REF!,#REF!) ->  | BI207: 0 | BJ207: FALSE | BK207: 0 | BL207: =IF(#REF!="",0,IF(#REF!=#REF!,1,0)) ->  | BR207: R1LST MARGARET'S HOSPITAL | BS207: R1LT1 | BT207: ST MARGARET'S HOSPITAL | BU207: R1LT1 | BV207: ST MARGARET'S HOSPITAL | BW207: R1L | BZ207: PROSPECT PARK HOSPITAL | CA207: Orchid Ward
C208: 0 | D208: 0 | E208: 0 | H208: 0 | I208: 0 | J208: 0 | K208: 0 | L208: 0 | M208: 0 | N208: 0 | O208: 0 | P208: 0 | Q208: 0 | R208: 0 | AC208: 0 | AK208: 0 | AL208: 0 | AM208: 0 | AN208: 0 | AO208: 0 | AP208: 0 | AQ208: 0 | AR208: 0 | AS208: 0 | AT208: 0 | AU208: 0 | AY208: =IF(#REF!="",0, IF(#REF!="-",0,IF(#REF!>100%,1,0))) ->  | BA208: =IF(#REF!="",0, IF(#REF!="-",0,IF(#REF!>100%,1,0))) ->  | BB208: =IF(#REF!="",0, IF(#REF!="-",0,IF(#REF!>100%,1,0))) ->  | BC208: =IF(#REF!="",0, IF(#REF!="-",0,IF(#REF!>100%,1,0))) ->  | BG208: =CONCATENATE(#REF!,#REF!,#REF!) ->  | BI208: 0 | BJ208: FALSE | BK208: 0 | BL208: =IF(#REF!="",0,IF(#REF!=#REF!,1,0)) ->  | BR208: R1LTHE CRYSTAL CENTRE | BS208: R1L14 | BT208: THE CRYSTAL CENTRE | BU208: R1L14 | BV208: THE CRYSTAL CENTRE | BW208: R1L | BZ208: PROSPECT PARK HOSPITAL | CA208: Rose Ward
C209: 0 | D209: 0 | E209: 0 | H209: 0 | I209: 0 | J209: 0 | K209: 0 | L209: 0 | M209: 0 | N209: 0 | O209: 0 | P209: 0 | Q209: 0 | R209: 0 | AC209: 0 | AK209: 0 | AL209: 0 | AM209: 0 | AN209: 0 | AO209: 0 | AP209: 0 | AQ209: 0 | AR209: 0 | AS209: 0 | AT209: 0 | AU209: 0 | AY209: =IF(#REF!="",0, IF(#REF!="-",0,IF(#REF!>100%,1,0))) ->  | BA209: =IF(#REF!="",0, IF(#REF!="-",0,IF(#REF!>100%,1,0))) ->  | BB209: =IF(#REF!="",0, IF(#REF!="-",0,IF(#REF!>100%,1,0))) ->  | BC209: =IF(#REF!="",0, IF(#REF!="-",0,IF(#REF!>100%,1,0))) ->  | BG209: =CONCATENATE(#REF!,#REF!,#REF!) ->  | BI209: 0 | BJ209: FALSE | BK209: 0 | BL209: =IF(#REF!="",0,IF(#REF!=#REF!,1,0)) ->  | BR209: R1LTHURROCK COMMUNITY HOSPITAL | BS209: R1L50 | BT209: THURROCK COMMUNITY HOSPITAL | BU209: R1L50 | BV209: THURROCK COMMUNITY HOSPITAL | BW209: R1L | BZ209: PROSPECT PARK HOSPITAL | CA209: Rowan Ward
C210: 0 | D210: 0 | E210: 0 | H210: 0 | I210: 0 | J210: 0 | K210: 0 | L210: 0 | M210: 0 | N210: 0 | O210: 0 | P210: 0 | Q210: 0 | R210: 0 | AC210: 0 | AK210: 0 | AL210: 0 | AM210: 0 | AN210: 0 | AO210: 0 | AP210: 0 | AQ210: 0 | AR210: 0 | AS210: 0 | AT210: 0 | AU210: 0 | AY210: =IF(#REF!="",0, IF(#REF!="-",0,IF(#REF!>100%,1,0))) ->  | BA210: =IF(#REF!="",0, IF(#REF!="-",0,IF(#REF!>100%,1,0))) ->  | BB210: =IF(#REF!="",0, IF(#REF!="-",0,IF(#REF!>100%,1,0))) ->  | BC210: =IF(#REF!="",0, IF(#REF!="-",0,IF(#REF!>100%,1,0))) ->  | BG210: =CONCATENATE(#REF!,#REF!,#REF!) ->  | BI210: 0 | BJ210: FALSE | BK210: 0 | BL210: =IF(#REF!="",0,IF(#REF!=#REF!,1,0)) ->  | BR210: R1LWOODLEA CLINIC (LEARNING DISABILITY SERVICE) | BS210: R1LL8 | BT210: WOODLEA CLINIC (LEARNING DISABILITY SERVICE) | BU210: R1LL8 | BV210: WOODLEA CLINIC (LEARNING DISABILITY SERVICE) | BW210: R1L | BZ210: PROSPECT PARK HOSPITAL | CA210: Snowdrop Ward
C211: 0 | D211: 0 | E211: 0 | H211: 0 | I211: 0 | J211: 0 | K211: 0 | L211: 0 | M211: 0 | N211: 0 | O211: 0 | P211: 0 | Q211: 0 | R211: 0 | AC211: 0 | AK211: 0 | AL211: 0 | AM211: 0 | AN211: 0 | AO211: 0 | AP211: 0 | AQ211: 0 | AR211: 0 | AS211: 0 | AT211: 0 | AU211: 0 | AY211: =IF(#REF!="",0, IF(#REF!="-",0,IF(#REF!>100%,1,0))) ->  | BA211: =IF(#REF!="",0, IF(#REF!="-",0,IF(#REF!>100%,1,0))) ->  | BB211: =IF(#REF!="",0, IF(#REF!="-",0,IF(#REF!>100%,1,0))) ->  | BC211: =IF(#REF!="",0, IF(#REF!="-",0,IF(#REF!>100%,1,0))) ->  | BG211: =CONCATENATE(#REF!,#REF!,#REF!) ->  | BI211: 0 | BJ211: FALSE | BK211: 0 | BL211: =IF(#REF!="",0,IF(#REF!=#REF!,1,0)) ->  | BR211: RA2FARNHAM HOSPITAL | BS211: RA215 | BT211: FARNHAM HOSPITAL | BU211: RA215 | BV211: FARNHAM HOSPITAL | BW211: RA2 | BZ211: PROSPECT PARK HOSPITAL | CA211: Sorrel Ward
C212: 0 | D212: 0 | E212: 0 | H212: 0 | I212: 0 | J212: 0 | K212: 0 | L212: 0 | M212: 0 | N212: 0 | O212: 0 | P212: 0 | Q212: 0 | R212: 0 | AC212: 0 | AK212: 0 | AL212: 0 | AM212: 0 | AN212: 0 | AO212: 0 | AP212: 0 | AQ212: 0 | AR212: 0 | AS212: 0 | AT212: 0 | AU212: 0 | AY212: =IF(#REF!="",0, IF(#REF!="-",0,IF(#REF!>100%,1,0))) ->  | BA212: =IF(#REF!="",0, IF(#REF!="-",0,IF(#REF!>100%,1,0))) ->  | BB212: =IF(#REF!="",0, IF(#REF!="-",0,IF(#REF!>100%,1,0))) ->  | BC212: =IF(#REF!="",0, IF(#REF!="-",0,IF(#REF!>100%,1,0))) ->  | BG212: =CONCATENATE(#REF!,#REF!,#REF!) ->  | BI212: 0 | BJ212: FALSE | BK212: 0 | BL212: =IF(#REF!="",0,IF(#REF!=#REF!,1,0)) ->  | BR212: RA2FRIMLEY PARK HOSPITAL | BS212: RA245 | BT212: FRIMLEY PARK HOSPITAL | BU212: RA245 | BV212: FRIMLEY PARK HOSPITAL | BW212: RA2 | BZ212: ST MARKS HOSPITAL | CA212: Henry Tudor
C213: 0 | D213: 0 | E213: 0 | H213: 0 | I213: 0 | J213: 0 | K213: 0 | L213: 0 | M213: 0 | N213: 0 | O213: 0 | P213: 0 | Q213: 0 | R213: 0 | AC213: 0 | AK213: 0 | AL213: 0 | AM213: 0 | AN213: 0 | AO213: 0 | AP213: 0 | AQ213: 0 | AR213: 0 | AS213: 0 | AT213: 0 | AU213: 0 | AY213: =IF(#REF!="",0, IF(#REF!="-",0,IF(#REF!>100%,1,0))) ->  | BA213: =IF(#REF!="",0, IF(#REF!="-",0,IF(#REF!>100%,1,0))) ->  | BB213: =IF(#REF!="",0, IF(#REF!="-",0,IF(#REF!>100%,1,0))) ->  | BC213: =IF(#REF!="",0, IF(#REF!="-",0,IF(#REF!>100%,1,0))) ->  | BG213: =CONCATENATE(#REF!,#REF!,#REF!) ->  | BI213: 0 | BJ213: FALSE | BK213: 0 | BL213: =IF(#REF!="",0,IF(#REF!=#REF!,1,0)) ->  | BR213: RA2HASLEMERE HOSPITAL | BS213: RA219 | BT213: HASLEMERE HOSPITAL | BU213: RA219 | BV213: HASLEMERE HOSPITAL | BW213: RA2 | BZ213: UPTON HOSPITAL | CA213: Jubilee Ward
C214: 0 | D214: 0 | E214: 0 | H214: 0 | I214: 0 | J214: 0 | K214: 0 | L214: 0 | M214: 0 | N214: 0 | O214: 0 | P214: 0 | Q214: 0 | R214: 0 | AC214: 0 | AK214: 0 | AL214: 0 | AM214: 0 | AN214: 0 | AO214: 0 | AP214: 0 | AQ214: 0 | AR214: 0 | AS214: 0 | AT214: 0 | AU214: 0 | AY214: =IF(#REF!="",0, IF(#REF!="-",0,IF(#REF!>100%,1,0))) ->  | BA214: =IF(#REF!="",0, IF(#REF!="-",0,IF(#REF!>100%,1,0))) ->  | BB214: =IF(#REF!="",0, IF(#REF!="-",0,IF(#REF!>100%,1,0))) ->  | BC214: =IF(#REF!="",0, IF(#REF!="-",0,IF(#REF!>100%,1,0))) ->  | BG214: =CONCATENATE(#REF!,#REF!,#REF!) ->  | BI214: 0 | BJ214: FALSE | BK214: 0 | BL214: =IF(#REF!="",0,IF(#REF!=#REF!,1,0)) ->  | BR214: RA2ROYAL SURREY COUNTY HOSPITAL | BS214: RA201 | BT214: ROYAL SURREY COUNTY HOSPITAL | BU214: RA201 | BV214: ROYAL SURREY COUNTY HOSPITAL | BW214: RA2 | BZ214: WEST BERKSHIRE COMMUNITY HOSPITAL | CA214: WBCH Donnington Ward
C215: 0 | D215: 0 | E215: 0 | H215: 0 | I215: 0 | J215: 0 | K215: 0 | L215: 0 | M215: 0 | N215: 0 | O215: 0 | P215: 0 | Q215: 0 | R215: 0 | AC215: 0 | AK215: 0 | AL215: 0 | AM215: 0 | AN215: 0 | AO215: 0 | AP215: 0 | AQ215: 0 | AR215: 0 | AS215: 0 | AT215: 0 | AU215: 0 | AY215: =IF(#REF!="",0, IF(#REF!="-",0,IF(#REF!>100%,1,0))) ->  | BA215: =IF(#REF!="",0, IF(#REF!="-",0,IF(#REF!>100%,1,0))) ->  | BB215: =IF(#REF!="",0, IF(#REF!="-",0,IF(#REF!>100%,1,0))) ->  | BC215: =IF(#REF!="",0, IF(#REF!="-",0,IF(#REF!>100%,1,0))) ->  | BG215: =CONCATENATE(#REF!,#REF!,#REF!) ->  | BI215: 0 | BJ215: FALSE | BK215: 0 | BL215: =IF(#REF!="",0,IF(#REF!=#REF!,1,0)) ->  | BR215: =CONCATENATE(LEFT(BS215, 3),BT215) -> RA3CHILDREN'S SERVICES SOUTH | BS215: RA305 | BT215: CHILDREN'S SERVICES SOUTH | BU215: RA305 | BV215: CHILDREN'S SERVICES SOUTH | BW215: RA3 | BZ215: WEST BERKSHIRE COMMUNITY HOSPITAL | CA215: WBCH Highclere Ward
C216: 0 | D216: 0 | E216: 0 | H216: 0 | I216: 0 | J216: 0 | K216: 0 | L216: 0 | M216: 0 | N216: 0 | O216: 0 | P216: 0 | Q216: 0 | R216: 0 | AC216: 0 | AK216: 0 | AL216: 0 | AM216: 0 | AN216: 0 | AO216: 0 | AP216: 0 | AQ216: 0 | AR216: 0 | AS216: 0 | AT216: 0 | AU216: 0 | AY216: =IF(#REF!="",0, IF(#REF!="-",0,IF(#REF!>100%,1,0))) ->  | BA216: =IF(#REF!="",0, IF(#REF!="-",0,IF(#REF!>100%,1,0))) ->  | BB216: =IF(#REF!="",0, IF(#REF!="-",0,IF(#REF!>100%,1,0))) ->  | BC216: =IF(#REF!="",0, IF(#REF!="-",0,IF(#REF!>100%,1,0))) ->  | BG216: =CONCATENATE(#REF!,#REF!,#REF!) ->  | BH216: =IF(BG216="","",(IF(COUNTIF($BG$46:$BG$244,BG216)>1,1,0))=1) ->  | BI216: 0 | BJ216: FALSE | BK216: 0 | BL216: =IF(#REF!="",0,IF(#REF!=#REF!,1,0)) ->  | BR216: RA3WESTON GENERAL HOSPITAL | BS216: RA301 | BT216: WESTON GENERAL HOSPITAL | BU216: RA301 | BV216: WESTON GENERAL HOSPITAL | BW216: RA3 | BZ216: WOKINGHAM COMMUNITY HOSPITAL | CA216: Willow House
C217: 0 | D217: 0 | E217: 0 | H217: 0 | I217: 0 | J217: 0 | K217: 0 | L217: 0 | M217: 0 | N217: 0 | O217: 0 | P217: 0 | Q217: 0 | R217: 0 | AC217: 0 | AK217: 0 | AL217: 0 | AM217: 0 | AN217: 0 | AO217: 0 | AP217: 0 | AQ217: 0 | AR217: 0 | AS217: 0 | AT217: 0 | AU217: 0 | AY217: =IF(#REF!="",0, IF(#REF!="-",0,IF(#REF!>100%,1,0))) ->  | BA217: =IF(#REF!="",0, IF(#REF!="-",0,IF(#REF!>100%,1,0))) ->  | BB217: =IF(#REF!="",0, IF(#REF!="-",0,IF(#REF!>100%,1,0))) ->  | BC217: =IF(#REF!="",0, IF(#REF!="-",0,IF(#REF!>100%,1,0))) ->  | BG217: =CONCATENATE(#REF!,#REF!,#REF!) ->  | BI217: 0 | BJ217: FALSE | BK217: 0 | BL217: =IF(#REF!="",0,IF(#REF!=#REF!,1,0)) ->  | BR217: RA4YEOVIL DISTRICT HOSPITAL | BS217: RA430 | BT217: YEOVIL DISTRICT HOSPITAL | BU217: RA430 | BV217: YEOVIL DISTRICT HOSPITAL | BW217: RA4 | BZ217: WOKINGHAM COMMUNITY HOSPITAL | CA217: Windsor Ward Days
C218: 0 | D218: 0 | E218: 0 | H218: 0 | I218: 0 | J218: 0 | K218: 0 | L218: 0 | M218: 0 | N218: 0 | O218: 0 | P218: 0 | Q218: 0 | R218: 0 | AC218: 0 | AK218: 0 | AL218: 0 | AM218: 0 | AN218: 0 | AO218: 0 | AP218: 0 | AQ218: 0 | AR218: 0 | AS218: 0 | AT218: 0 | AU218: 0 | AY218: =IF(#REF!="",0, IF(#REF!="-",0,IF(#REF!>100%,1,0))) ->  | BA218: =IF(#REF!="",0, IF(#REF!="-",0,IF(#REF!>100%,1,0))) ->  | BB218: =IF(#REF!="",0, IF(#REF!="-",0,IF(#REF!>100%,1,0))) ->  | BC218: =IF(#REF!="",0, IF(#REF!="-",0,IF(#REF!>100%,1,0))) ->  | BG218: =CONCATENATE(#REF!,#REF!,#REF!) ->  | BI218: 0 | BJ218: FALSE | BK218: 0 | BL218: =IF(#REF!="",0,IF(#REF!=#REF!,1,0)) ->  | BR218: RA7BRISTOL EYE HOSPITAL | BS218: RA708 | BT218: BRISTOL EYE HOSPITAL | BU218: RA708 | BV218: BRISTOL EYE HOSPITAL | BW218: RA7 | BZ218: ARDENLEIGH | CA218: Citrine
C219: 0 | D219: 0 | E219: 0 | H219: 0 | I219: 0 | J219: 0 | K219: 0 | L219: 0 | M219: 0 | N219: 0 | O219: 0 | P219: 0 | Q219: 0 | R219: 0 | AC219: 0 | AK219: 0 | AL219: 0 | AM219: 0 | AN219: 0 | AO219: 0 | AP219: 0 | AQ219: 0 | AR219: 0 | AS219: 0 | AT219: 0 | AU219: 0 | AY219: =IF(#REF!="",0, IF(#REF!="-",0,IF(#REF!>100%,1,0))) ->  | BA219: =IF(#REF!="",0, IF(#REF!="-",0,IF(#REF!>100%,1,0))) ->  | BB219: =IF(#REF!="",0, IF(#REF!="-",0,IF(#REF!>100%,1,0))) ->  | BC219: =IF(#REF!="",0, IF(#REF!="-",0,IF(#REF!>100%,1,0))) ->  | BG219: =CONCATENATE(#REF!,#REF!,#REF!) ->  | BI219: 0 | BJ219: FALSE | BK219: 0 | BL219: =IF(#REF!="",0,IF(#REF!=#REF!,1,0)) ->  | BR219: RA7BRISTOL GENERAL HOSPITAL | BS219: RA702 | BT219: BRISTOL GENERAL HOSPITAL | BU219: RA702 | BV219: BRISTOL GENERAL HOSPITAL | BW219: RA7 | BZ219: ARDENLEIGH | CA219: Coral
C220: 0 | D220: 0 | E220: 0 | H220: 0 | I220: 0 | J220: 0 | K220: 0 | L220: 0 | M220: 0 | N220: 0 | O220: 0 | P220: 0 | Q220: 0 | R220: 0 | AC220: 0 | AK220: 0 | AL220: 0 | AM220: 0 | AN220: 0 | AO220: 0 | AP220: 0 | AQ220: 0 | AR220: 0 | AS220: 0 | AT220: 0 | AU220: 0 | AY220: =IF(#REF!="",0, IF(#REF!="-",0,IF(#REF!>100%,1,0))) ->  | BA220: =IF(#REF!="",0, IF(#REF!="-",0,IF(#REF!>100%,1,0))) ->  | BB220: =IF(#REF!="",0, IF(#REF!="-",0,IF(#REF!>100%,1,0))) ->  | BC220: =IF(#REF!="",0, IF(#REF!="-",0,IF(#REF!>100%,1,0))) ->  | BG220: =CONCATENATE(#REF!,#REF!,#REF!) ->  | BI220: 0 | BJ220: FALSE | BK220: 0 | BL220: =IF(#REF!="",0,IF(#REF!=#REF!,1,0)) ->  | BR220: RA7BRISTOL HAEMATOLOGY AND ONCOLOGY CENTRE | BS220: RA710 | BT220: BRISTOL HAEMATOLOGY AND ONCOLOGY CENTRE | BU220: RA710 | BV220: BRISTOL HAEMATOLOGY AND ONCOLOGY CENTRE | BW220: RA7 | BZ220: ARDENLEIGH | CA220: Larimar
C221: 0 | D221: 0 | E221: 0 | H221: 0 | I221: 0 | J221: 0 | K221: 0 | L221: 0 | M221: 0 | N221: 0 | O221: 0 | P221: 0 | Q221: 0 | R221: 0 | AC221: 0 | AK221: 0 | AL221: 0 | AM221: 0 | AN221: 0 | AO221: 0 | AP221: 0 | AQ221: 0 | AR221: 0 | AS221: 0 | AT221: 0 | AU221: 0 | AY221: =IF(#REF!="",0, IF(#REF!="-",0,IF(#REF!>100%,1,0))) ->  | BA221: =IF(#REF!="",0, IF(#REF!="-",0,IF(#REF!>100%,1,0))) ->  | BB221: =IF(#REF!="",0, IF(#REF!="-",0,IF(#REF!>100%,1,0))) ->  | BC221: =IF(#REF!="",0, IF(#REF!="-",0,IF(#REF!>100%,1,0))) ->  | BG221: =CONCATENATE(#REF!,#REF!,#REF!) ->  | BI221: 0 | BJ221: FALSE | BK221: 0 | BL221: =IF(#REF!="",0,IF(#REF!=#REF!,1,0)) ->  | BR221: RA7BRISTOL HOMEOPATHIC HOSPITAL | BS221: RA703 | BT221: BRISTOL HOMEOPATHIC HOSPITAL | BU221: RA703 | BV221: BRISTOL HOMEOPATHIC HOSPITAL | BW221: RA7 | BZ221: ARDENLEIGH | CA221: Pacific
C222: 0 | D222: 0 | E222: 0 | H222: 0 | I222: 0 | J222: 0 | K222: 0 | L222: 0 | M222: 0 | N222: 0 | O222: 0 | P222: 0 | Q222: 0 | R222: 0 | AC222: 0 | AK222: 0 | AL222: 0 | AM222: 0 | AN222: 0 | AO222: 0 | AP222: 0 | AQ222: 0 | AR222: 0 | AS222: 0 | AT222: 0 | AU222: 0 | AY222: =IF(#REF!="",0, IF(#REF!="-",0,IF(#REF!>100%,1,0))) ->  | BA222: =IF(#REF!="",0, IF(#REF!="-",0,IF(#REF!>100%,1,0))) ->  | BB222: =IF(#REF!="",0, IF(#REF!="-",0,IF(#REF!>100%,1,0))) ->  | BC222: =IF(#REF!="",0, IF(#REF!="-",0,IF(#REF!>100%,1,0))) ->  | BG222: =CONCATENATE(#REF!,#REF!,#REF!) ->  | BI222: 0 | BJ222: FALSE | BK222: 0 | BL222: =IF(#REF!="",0,IF(#REF!=#REF!,1,0)) ->  | BR222: RA7BRISTOL ROYAL HOSPITAL FOR CHILDREN | BS222: RA723 | BT222: BRISTOL ROYAL HOSPITAL FOR CHILDREN | BU222: RA723 | BV222: BRISTOL ROYAL HOSPITAL FOR CHILDREN | BW222: RA7 | BZ222: ARDENLEIGH | CA222: Tourmaline
C223: 0 | D223: 0 | E223: 0 | H223: 0 | I223: 0 | J223: 0 | K223: 0 | L223: 0 | M223: 0 | N223: 0 | O223: 0 | P223: 0 | Q223: 0 | R223: 0 | AC223: 0 | AK223: 0 | AL223: 0 | AM223: 0 | AN223: 0 | AO223: 0 | AP223: 0 | AQ223: 0 | AR223: 0 | AS223: 0 | AT223: 0 | AU223: 0 | AY223: =IF(#REF!="",0, IF(#REF!="-",0,IF(#REF!>100%,1,0))) ->  | BA223: =IF(#REF!="",0, IF(#REF!="-",0,IF(#REF!>100%,1,0))) ->  | BB223: =IF(#REF!="",0, IF(#REF!="-",0,IF(#REF!>100%,1,0))) ->  | BC223: =IF(#REF!="",0, IF(#REF!="-",0,IF(#REF!>100%,1,0))) ->  | BG223: =CONCATENATE(#REF!,#REF!,#REF!) ->  | BI223: 0 | BJ223: FALSE | BK223: 0 | BL223: =IF(#REF!="",0,IF(#REF!=#REF!,1,0)) ->  | BR223: RA7BRISTOL ROYAL INFIRMARY | BS223: RA701 | BT223: BRISTOL ROYAL INFIRMARY | BU223: RA701 | BV223: BRISTOL ROYAL INFIRMARY | BW223: RA7 | BZ223: ASHCROFT | CA223: Ashcroft
C224: 0 | D224: 0 | E224: 0 | H224: 0 | I224: 0 | J224: 0 | K224: 0 | L224: 0 | M224: 0 | N224: 0 | O224: 0 | P224: 0 | Q224: 0 | R224: 0 | AC224: 0 | AK224: 0 | AL224: 0 | AM224: 0 | AN224: 0 | AO224: 0 | AP224: 0 | AQ224: 0 | AR224: 0 | AS224: 0 | AT224: 0 | AU224: 0 | AY224: =IF(#REF!="",0, IF(#REF!="-",0,IF(#REF!>100%,1,0))) ->  | BA224: =IF(#REF!="",0, IF(#REF!="-",0,IF(#REF!>100%,1,0))) ->  | BB224: =IF(#REF!="",0, IF(#REF!="-",0,IF(#REF!>100%,1,0))) ->  | BC224: =IF(#REF!="",0, IF(#REF!="-",0,IF(#REF!>100%,1,0))) ->  | BG224: =CONCATENATE(#REF!,#REF!,#REF!) ->  | BI224: 0 | BJ224: FALSE | BK224: 0 | BL224: =IF(#REF!="",0,IF(#REF!=#REF!,1,0)) ->  | BR224: RA7KEYNSHAM HOSPITAL | BS224: RA705 | BT224: KEYNSHAM HOSPITAL | BU224: RA705 | BV224: KEYNSHAM HOSPITAL | BW224: RA7 | BZ224: DAN MOONEY HOUSE | CA224: Dan Mooney
C225: 0 | D225: 0 | E225: 0 | H225: 0 | I225: 0 | J225: 0 | K225: 0 | L225: 0 | M225: 0 | N225: 0 | O225: 0 | P225: 0 | Q225: 0 | R225: 0 | AC225: 0 | AK225: 0 | AL225: 0 | AM225: 0 | AN225: 0 | AO225: 0 | AP225: 0 | AQ225: 0 | AR225: 0 | AS225: 0 | AT225: 0 | AU225: 0 | AY225: =IF(#REF!="",0, IF(#REF!="-",0,IF(#REF!>100%,1,0))) ->  | BA225: =IF(#REF!="",0, IF(#REF!="-",0,IF(#REF!>100%,1,0))) ->  | BB225: =IF(#REF!="",0, IF(#REF!="-",0,IF(#REF!>100%,1,0))) ->  | BC225: =IF(#REF!="",0, IF(#REF!="-",0,IF(#REF!>100%,1,0))) ->  | BG225: =CONCATENATE(#REF!,#REF!,#REF!) ->  | BI225: 0 | BJ225: FALSE | BK225: 0 | BL225: =IF(#REF!="",0,IF(#REF!=#REF!,1,0)) ->  | BR225: RA7SOUTH BRISTOL COMMUNITY HOSPITAL | BS225: RA773 | BT225: SOUTH BRISTOL COMMUNITY HOSPITAL | BU225: RA773 | BV225: SOUTH BRISTOL COMMUNITY HOSPITAL | BW225: RA7 | BZ225: DAVID BROMLEY | CA225: David Bromley
C226: 0 | D226: 0 | E226: 0 | H226: 0 | I226: 0 | J226: 0 | K226: 0 | L226: 0 | M226: 0 | N226: 0 | O226: 0 | P226: 0 | Q226: 0 | R226: 0 | AC226: 0 | AK226: 0 | AL226: 0 | AM226: 0 | AN226: 0 | AO226: 0 | AP226: 0 | AQ226: 0 | AR226: 0 | AS226: 0 | AT226: 0 | AU226: 0 | AY226: =IF(#REF!="",0, IF(#REF!="-",0,IF(#REF!>100%,1,0))) ->  | BA226: =IF(#REF!="",0, IF(#REF!="-",0,IF(#REF!>100%,1,0))) ->  | BB226: =IF(#REF!="",0, IF(#REF!="-",0,IF(#REF!>100%,1,0))) ->  | BC226: =IF(#REF!="",0, IF(#REF!="-",0,IF(#REF!>100%,1,0))) ->  | BG226: =CONCATENATE(#REF!,#REF!,#REF!) ->  | BI226: 0 | BJ226: FALSE | BK226: 0 | BL226: =IF(#REF!="",0,IF(#REF!=#REF!,1,0)) ->  | BR226: RA7ST MICHAEL'S HOSPITAL | BS226: RA707 | BT226: ST MICHAEL'S HOSPITAL | BU226: RA707 | BV226: ST MICHAEL'S HOSPITAL | BW226: RA7 | BZ226: EATING DISORDERS, THE BARBERRY | CA226: Cilantro
C227: 0 | D227: 0 | E227: 0 | H227: 0 | I227: 0 | J227: 0 | K227: 0 | L227: 0 | M227: 0 | N227: 0 | O227: 0 | P227: 0 | Q227: 0 | R227: 0 | AC227: 0 | AK227: 0 | AL227: 0 | AM227: 0 | AN227: 0 | AO227: 0 | AP227: 0 | AQ227: 0 | AR227: 0 | AS227: 0 | AT227: 0 | AU227: 0 | AY227: =IF(#REF!="",0, IF(#REF!="-",0,IF(#REF!>100%,1,0))) ->  | BA227: =IF(#REF!="",0, IF(#REF!="-",0,IF(#REF!>100%,1,0))) ->  | BB227: =IF(#REF!="",0, IF(#REF!="-",0,IF(#REF!>100%,1,0))) ->  | BC227: =IF(#REF!="",0, IF(#REF!="-",0,IF(#REF!>100%,1,0))) ->  | BG227: =CONCATENATE(#REF!,#REF!,#REF!) ->  | BI227: 0 | BJ227: FALSE | BK227: 0 | BL227: =IF(#REF!="",0,IF(#REF!=#REF!,1,0)) ->  | BR227: RA7UNIVERSITY OF BRISTOL DENTAL HOSPITAL | BS227: RA709 | BT227: UNIVERSITY OF BRISTOL DENTAL HOSPITAL | BU227: RA709 | BV227: UNIVERSITY OF BRISTOL DENTAL HOSPITAL | BW227: RA7 | BZ227: EDEN UNIT | CA227: Eden Acute
C228: 0 | D228: 0 | E228: 0 | H228: 0 | I228: 0 | J228: 0 | K228: 0 | L228: 0 | M228: 0 | N228: 0 | O228: 0 | P228: 0 | Q228: 0 | R228: 0 | AC228: 0 | AK228: 0 | AL228: 0 | AM228: 0 | AN228: 0 | AO228: 0 | AP228: 0 | AQ228: 0 | AR228: 0 | AS228: 0 | AT228: 0 | AU228: 0 | AY228: =IF(#REF!="",0, IF(#REF!="-",0,IF(#REF!>100%,1,0))) ->  | BA228: =IF(#REF!="",0, IF(#REF!="-",0,IF(#REF!>100%,1,0))) ->  | BB228: =IF(#REF!="",0, IF(#REF!="-",0,IF(#REF!>100%,1,0))) ->  | BC228: =IF(#REF!="",0, IF(#REF!="-",0,IF(#REF!>100%,1,0))) ->  | BG228: =CONCATENATE(#REF!,#REF!,#REF!) ->  | BI228: 0 | BJ228: FALSE | BK228: 0 | BL228: =IF(#REF!="",0,IF(#REF!=#REF!,1,0)) ->  | BR228: RA9ASHBURTON AND BUCKFASTLEIGH HOSPITAL | BS228: RA952 | BT228: ASHBURTON AND BUCKFASTLEIGH HOSPITAL | BU228: RA952 | BV228: ASHBURTON AND BUCKFASTLEIGH HOSPITAL | BW228: RA9 | BZ228: EDEN UNIT | CA228: Eden PICU
C229: 0 | D229: 0 | E229: 0 | H229: 0 | I229: 0 | J229: 0 | K229: 0 | L229: 0 | M229: 0 | N229: 0 | O229: 0 | P229: 0 | Q229: 0 | R229: 0 | AC229: 0 | AK229: 0 | AL229: 0 | AM229: 0 | AN229: 0 | AO229: 0 | AP229: 0 | AQ229: 0 | AR229: 0 | AS229: 0 | AT229: 0 | AU229: 0 | AY229: =IF(#REF!="",0, IF(#REF!="-",0,IF(#REF!>100%,1,0))) ->  | BA229: =IF(#REF!="",0, IF(#REF!="-",0,IF(#REF!>100%,1,0))) ->  | BB229: =IF(#REF!="",0, IF(#REF!="-",0,IF(#REF!>100%,1,0))) ->  | BC229: =IF(#REF!="",0, IF(#REF!="-",0,IF(#REF!>100%,1,0))) ->  | BG229: =CONCATENATE(#REF!,#REF!,#REF!) ->  | BI229: 0 | BJ229: FALSE | BK229: 0 | BL229: =IF(#REF!="",0,IF(#REF!=#REF!,1,0)) ->  | BR229: RA9BOVEY TRACEY HOSPITAL | BS229: RA953 | BT229: BOVEY TRACEY HOSPITAL | BU229: RA953 | BV229: BOVEY TRACEY HOSPITAL | BW229: RA9 | BZ229: ENDEAVOUR COURT | CA229: Endeavour Court
C230: 0 | D230: 0 | E230: 0 | H230: 0 | I230: 0 | J230: 0 | K230: 0 | L230: 0 | M230: 0 | N230: 0 | O230: 0 | P230: 0 | Q230: 0 | R230: 0 | AC230: 0 | AK230: 0 | AL230: 0 | AM230: 0 | AN230: 0 | AO230: 0 | AP230: 0 | AQ230: 0 | AR230: 0 | AS230: 0 | AT230: 0 | AU230: 0 | AY230: =IF(#REF!="",0, IF(#REF!="-",0,IF(#REF!>100%,1,0))) ->  | BA230: =IF(#REF!="",0, IF(#REF!="-",0,IF(#REF!>100%,1,0))) ->  | BB230: =IF(#REF!="",0, IF(#REF!="-",0,IF(#REF!>100%,1,0))) ->  | BC230: =IF(#REF!="",0, IF(#REF!="-",0,IF(#REF!>100%,1,0))) ->  | BG230: =CONCATENATE(#REF!,#REF!,#REF!) ->  | BI230: 0 | BJ230: FALSE | BK230: 0 | BL230: =IF(#REF!="",0,IF(#REF!=#REF!,1,0)) ->  | BR230: RA9BRIXHAM HOSPITAL | BS230: RA954 | BT230: BRIXHAM HOSPITAL | BU230: RA954 | BV230: BRIXHAM HOSPITAL | BW230: RA9 | BZ230: ENDEAVOUR HOUSE | CA230: Endeavour House
C231: 0 | D231: 0 | E231: 0 | H231: 0 | I231: 0 | J231: 0 | K231: 0 | L231: 0 | M231: 0 | N231: 0 | O231: 0 | P231: 0 | Q231: 0 | R231: 0 | AC231: 0 | AK231: 0 | AL231: 0 | AM231: 0 | AN231: 0 | AO231: 0 | AP231: 0 | AQ231: 0 | AR231: 0 | AS231: 0 | AT231: 0 | AU231: 0 | AY231: =IF(#REF!="",0, IF(#REF!="-",0,IF(#REF!>100%,1,0))) ->  | BA231: =IF(#REF!="",0, IF(#REF!="-",0,IF(#REF!>100%,1,0))) ->  | BB231: =IF(#REF!="",0, IF(#REF!="-",0,IF(#REF!>100%,1,0))) ->  | BC231: =IF(#REF!="",0, IF(#REF!="-",0,IF(#REF!>100%,1,0))) ->  | BG231: =CONCATENATE(#REF!,#REF!,#REF!) ->  | BI231: 0 | BJ231: FALSE | BK231: 0 | BL231: =IF(#REF!="",0,IF(#REF!=#REF!,1,0)) ->  | BR231: RA9DARTMOUTH HOSPITAL | BS231: RA955 | BT231: DARTMOUTH HOSPITAL | BU231: RA955 | BV231: DARTMOUTH HOSPITAL | BW231: RA9 | BZ231: FORWARD HOUSE | CA231: Forward House
C232: 0 | D232: 0 | E232: 0 | H232: 0 | I232: 0 | J232: 0 | K232: 0 | L232: 0 | M232: 0 | N232: 0 | O232: 0 | P232: 0 | Q232: 0 | R232: 0 | AC232: 0 | AK232: 0 | AL232: 0 | AM232: 0 | AN232: 0 | AO232: 0 | AP232: 0 | AQ232: 0 | AR232: 0 | AS232: 0 | AT232: 0 | AU232: 0 | AY232: =IF(#REF!="",0, IF(#REF!="-",0,IF(#REF!>100%,1,0))) ->  | BA232: =IF(#REF!="",0, IF(#REF!="-",0,IF(#REF!>100%,1,0))) ->  | BB232: =IF(#REF!="",0, IF(#REF!="-",0,IF(#REF!>100%,1,0))) ->  | BC232: =IF(#REF!="",0, IF(#REF!="-",0,IF(#REF!>100%,1,0))) ->  | BG232: =CONCATENATE(#REF!,#REF!,#REF!) ->  | BI232: 0 | BJ232: FALSE | BK232: 0 | BL232: =IF(#REF!="",0,IF(#REF!=#REF!,1,0)) ->  | BR232: RA9DAWLISH HOSPITAL | BS232: RA956 | BT232: DAWLISH HOSPITAL | BU232: RA956 | BV232: DAWLISH HOSPITAL | BW232: RA9 | BZ232: GROVE AVENUE | CA232: Grove Avenue
C233: 0 | D233: 0 | E233: 0 | H233: 0 | I233: 0 | J233: 0 | K233: 0 | L233: 0 | M233: 0 | N233: 0 | O233: 0 | P233: 0 | Q233: 0 | R233: 0 | AC233: 0 | AK233: 0 | AL233: 0 | AM233: 0 | AN233: 0 | AO233: 0 | AP233: 0 | AQ233: 0 | AR233: 0 | AS233: 0 | AT233: 0 | AU233: 0 | AY233: =IF(#REF!="",0, IF(#REF!="-",0,IF(#REF!>100%,1,0))) ->  | BA233: =IF(#REF!="",0, IF(#REF!="-",0,IF(#REF!>100%,1,0))) ->  | BB233: =IF(#REF!="",0, IF(#REF!="-",0,IF(#REF!>100%,1,0))) ->  | BC233: =IF(#REF!="",0, IF(#REF!="-",0,IF(#REF!>100%,1,0))) ->  | BG233: =CONCATENATE(#REF!,#REF!,#REF!) ->  | BI233: 0 | BJ233: FALSE | BK233: 0 | BL233: =IF(#REF!="",0,IF(#REF!=#REF!,1,0)) ->  | BR233: RA9NEWTON ABBOT HOSPITAL | BS233: RA957 | BT233: NEWTON ABBOT HOSPITAL | BU233: RA957 | BV233: NEWTON ABBOT HOSPITAL | BW233: RA9 | BZ233: HERTFORD HOUSE | CA233: Hertford House
C234: 0 | D234: 0 | E234: 0 | H234: 0 | I234: 0 | J234: 0 | K234: 0 | L234: 0 | M234: 0 | N234: 0 | O234: 0 | P234: 0 | Q234: 0 | R234: 0 | AC234: 0 | AK234: 0 | AL234: 0 | AM234: 0 | AN234: 0 | AO234: 0 | AP234: 0 | AQ234: 0 | AR234: 0 | AS234: 0 | AT234: 0 | AU234: 0 | AY234: =IF(#REF!="",0, IF(#REF!="-",0,IF(#REF!>100%,1,0))) ->  | BA234: =IF(#REF!="",0, IF(#REF!="-",0,IF(#REF!>100%,1,0))) ->  | BB234: =IF(#REF!="",0, IF(#REF!="-",0,IF(#REF!>100%,1,0))) ->  | BC234: =IF(#REF!="",0, IF(#REF!="-",0,IF(#REF!>100%,1,0))) ->  | BG234: =CONCATENATE(#REF!,#REF!,#REF!) ->  | BI234: 0 | BJ234: FALSE | BK234: 0 | BL234: =IF(#REF!="",0,IF(#REF!=#REF!,1,0)) ->  | BR234: RA9PAIGNTON HOSPITAL | BS234: RA958 | BT234: PAIGNTON HOSPITAL | BU234: RA958 | BV234: PAIGNTON HOSPITAL | BW234: RA9 | BZ234: HILLIS LODGE | CA234: Hillis
C235: 0 | D235: 0 | E235: 0 | H235: 0 | I235: 0 | J235: 0 | K235: 0 | L235: 0 | M235: 0 | N235: 0 | O235: 0 | P235: 0 | Q235: 0 | R235: 0 | AC235: 0 | AK235: 0 | AL235: 0 | AM235: 0 | AN235: 0 | AO235: 0 | AP235: 0 | AQ235: 0 | AR235: 0 | AS235: 0 | AT235: 0 | AU235: 0 | AY235: =IF(#REF!="",0, IF(#REF!="-",0,IF(#REF!>100%,1,0))) ->  | BA235: =IF(#REF!="",0, IF(#REF!="-",0,IF(#REF!>100%,1,0))) ->  | BB235: =IF(#REF!="",0, IF(#REF!="-",0,IF(#REF!>100%,1,0))) ->  | BC235: =IF(#REF!="",0, IF(#REF!="-",0,IF(#REF!>100%,1,0))) ->  | BG235: =CONCATENATE(#REF!,#REF!,#REF!) ->  | BI235: 0 | BJ235: FALSE | BK235: 0 | BL235: =IF(#REF!="",0,IF(#REF!=#REF!,1,0)) ->  | BR235: RA9TEIGNMOUTH HOSPITAL | BS235: RA959 | BT235: TEIGNMOUTH HOSPITAL | BU235: RA959 | BV235: TEIGNMOUTH HOSPITAL | BW235: RA9 | BZ235: JUNIPER CENTRE | CA235: Bergamot
C236: 0 | D236: 0 | E236: 0 | H236: 0 | I236: 0 | J236: 0 | K236: 0 | L236: 0 | M236: 0 | N236: 0 | O236: 0 | P236: 0 | Q236: 0 | R236: 0 | AC236: 0 | AK236: 0 | AL236: 0 | AM236: 0 | AN236: 0 | AO236: 0 | AP236: 0 | AQ236: 0 | AR236: 0 | AS236: 0 | AT236: 0 | AU236: 0 | AY236: =IF(#REF!="",0, IF(#REF!="-",0,IF(#REF!>100%,1,0))) ->  | BA236: =IF(#REF!="",0, IF(#REF!="-",0,IF(#REF!>100%,1,0))) ->  | BB236: =IF(#REF!="",0, IF(#REF!="-",0,IF(#REF!>100%,1,0))) ->  | BC236: =IF(#REF!="",0, IF(#REF!="-",0,IF(#REF!>100%,1,0))) ->  | BG236: =CONCATENATE(#REF!,#REF!,#REF!) ->  | BI236: 0 | BJ236: FALSE | BK236: 0 | BL236: =IF(#REF!="",0,IF(#REF!=#REF!,1,0)) ->  | BR236: RA9TORBAY HOSPITAL | BS236: RA901 | BT236: TORBAY HOSPITAL | BU236: RA901 | BV236: TORBAY HOSPITAL | BW236: RA9 | BZ236: JUNIPER CENTRE | CA236: Rosemary
C237: 0 | D237: 0 | E237: 0 | H237: 0 | I237: 0 | J237: 0 | K237: 0 | L237: 0 | M237: 0 | N237: 0 | O237: 0 | P237: 0 | Q237: 0 | R237: 0 | AC237: 0 | AK237: 0 | AL237: 0 | AM237: 0 | AN237: 0 | AO237: 0 | AP237: 0 | AQ237: 0 | AR237: 0 | AS237: 0 | AT237: 0 | AU237: 0 | AY237: =IF(#REF!="",0, IF(#REF!="-",0,IF(#REF!>100%,1,0))) ->  | BA237: =IF(#REF!="",0, IF(#REF!="-",0,IF(#REF!>100%,1,0))) ->  | BB237: =IF(#REF!="",0, IF(#REF!="-",0,IF(#REF!>100%,1,0))) ->  | BC237: =IF(#REF!="",0, IF(#REF!="-",0,IF(#REF!>100%,1,0))) ->  | BG237: =CONCATENATE(#REF!,#REF!,#REF!) ->  | BI237: 0 | BJ237: FALSE | BK237: 0 | BL237: =IF(#REF!="",0,IF(#REF!=#REF!,1,0)) ->  | BR237: RA9TOTNES HOSPITAL | BS237: RA979 | BT237: TOTNES HOSPITAL | BU237: RA979 | BV237: TOTNES HOSPITAL | BW237: RA9 | BZ237: JUNIPER CENTRE | CA237: Sage
C238: 0 | D238: 0 | E238: 0 | H238: 0 | I238: 0 | J238: 0 | K238: 0 | L238: 0 | M238: 0 | N238: 0 | O238: 0 | P238: 0 | Q238: 0 | R238: 0 | AC238: 0 | AK238: 0 | AL238: 0 | AM238: 0 | AN238: 0 | AO238: 0 | AP238: 0 | AQ238: 0 | AR238: 0 | AS238: 0 | AT238: 0 | AU238: 0 | AY238: =IF(#REF!="",0, IF(#REF!="-",0,IF(#REF!>100%,1,0))) ->  | BA238: =IF(#REF!="",0, IF(#REF!="-",0,IF(#REF!>100%,1,0))) ->  | BB238: =IF(#REF!="",0, IF(#REF!="-",0,IF(#REF!>100%,1,0))) ->  | BC238: =IF(#REF!="",0, IF(#REF!="-",0,IF(#REF!>100%,1,0))) ->  | BG238: =CONCATENATE(#REF!,#REF!,#REF!) ->  | BI238: 0 | BJ238: FALSE | BK238: 0 | BL238: =IF(#REF!="",0,IF(#REF!=#REF!,1,0)) ->  | BR238: RAEBRADFORD ROYAL INFIRMARY | BS238: RAE01 | BT238: BRADFORD ROYAL INFIRMARY | BU238: RAE01 | BV238: BRADFORD ROYAL INFIRMARY | BW238: RAE | BZ238: MARY SEACOLE HOUSE | CA238: Mary Seacole 1
C239: 0 | D239: 0 | E239: 0 | H239: 0 | I239: 0 | J239: 0 | K239: 0 | L239: 0 | M239: 0 | N239: 0 | O239: 0 | P239: 0 | Q239: 0 | R239: 0 | AC239: 0 | AK239: 0 | AL239: 0 | AM239: 0 | AN239: 0 | AO239: 0 | AP239: 0 | AQ239: 0 | AR239: 0 | AS239: 0 | AT239: 0 | AU239: 0 | AY239: =IF(#REF!="",0, IF(#REF!="-",0,IF(#REF!>100%,1,0))) ->  | BA239: =IF(#REF!="",0, IF(#REF!="-",0,IF(#REF!>100%,1,0))) ->  | BB239: =IF(#REF!="",0, IF(#REF!="-",0,IF(#REF!>100%,1,0))) ->  | BC239: =IF(#REF!="",0, IF(#REF!="-",0,IF(#REF!>100%,1,0))) ->  | BG239: =CONCATENATE(#REF!,#REF!,#REF!) ->  | BI239: 0 | BJ239: FALSE | BK239: 0 | BL239: =IF(#REF!="",0,IF(#REF!=#REF!,1,0)) ->  | BR239: RAEST LUKES HOSPITAL | BS239: RAE05 | BT239: ST LUKES HOSPITAL | BU239: RAE05 | BV239: ST LUKES HOSPITAL | BW239: RAE | BZ239: MARY SEACOLE HOUSE | CA239: Mary Seacole 2
C240: 0 | D240: 0 | E240: 0 | H240: 0 | I240: 0 | J240: 0 | K240: 0 | L240: 0 | M240: 0 | N240: 0 | O240: 0 | P240: 0 | Q240: 0 | R240: 0 | AC240: 0 | AK240: 0 | AL240: 0 | AM240: 0 | AN240: 0 | AO240: 0 | AP240: 0 | AQ240: 0 | AR240: 0 | AS240: 0 | AT240: 0 | AU240: 0 | AY240: =IF(#REF!="",0, IF(#REF!="-",0,IF(#REF!>100%,1,0))) ->  | BA240: =IF(#REF!="",0, IF(#REF!="-",0,IF(#REF!>100%,1,0))) ->  | BB240: =IF(#REF!="",0, IF(#REF!="-",0,IF(#REF!>100%,1,0))) ->  | BC240: =IF(#REF!="",0, IF(#REF!="-",0,IF(#REF!>100%,1,0))) ->  | BG240: =CONCATENATE(#REF!,#REF!,#REF!) ->  | BI240: 0 | BJ240: FALSE | BK240: 0 | BL240: =IF(#REF!="",0,IF(#REF!=#REF!,1,0)) ->  | BR240: RAJBASILDON HOSPITAL | BS240: RAJ12 | BT240: BASILDON HOSPITAL | BU240: RAJ12 | BV240: BASILDON HOSPITAL | BW240: RAJ | BZ240: MARY SEACOLE HOUSE | CA240: Meadowcroft
C241: 0 | D241: 0 | E241: 0 | H241: 0 | I241: 0 | J241: 0 | K241: 0 | L241: 0 | M241: 0 | N241: 0 | O241: 0 | P241: 0 | Q241: 0 | R241: 0 | AC241: 0 | AK241: 0 | AL241: 0 | AM241: 0 | AN241: 0 | AO241: 0 | AP241: 0 | AQ241: 0 | AR241: 0 | AS241: 0 | AT241: 0 | AU241: 0 | AY241: =IF(#REF!="",0, IF(#REF!="-",0,IF(#REF!>100%,1,0))) ->  | BA241: =IF(#REF!="",0, IF(#REF!="-",0,IF(#REF!>100%,1,0))) ->  | BB241: =IF(#REF!="",0, IF(#REF!="-",0,IF(#REF!>100%,1,0))) ->  | BC241: =IF(#REF!="",0, IF(#REF!="-",0,IF(#REF!>100%,1,0))) ->  | BG241: =CONCATENATE(#REF!,#REF!,#REF!) ->  | BI241: 0 | BJ241: FALSE | BK241: 0 | BL241: =IF(#REF!="",0,IF(#REF!=#REF!,1,0)) ->  | BR241: RAJBRENTWOOD COMMUNITY HOSPITAL | BS241: RAJ25 | BT241: BRENTWOOD COMMUNITY HOSPITAL | BU241: RAJ25 | BV241: BRENTWOOD COMMUNITY HOSPITAL | BW241: RAJ | BZ241: MOTHER AND BABY UNIT | CA241: Chamomile
C242: 0 | D242: 0 | E242: 0 | H242: 0 | I242: 0 | J242: 0 | K242: 0 | L242: 0 | M242: 0 | N242: 0 | O242: 0 | P242: 0 | Q242: 0 | R242: 0 | AC242: 0 | AK242: 0 | AL242: 0 | AM242: 0 | AN242: 0 | AO242: 0 | AP242: 0 | AQ242: 0 | AR242: 0 | AS242: 0 | AT242: 0 | AU242: 0 | AY242: =IF(#REF!="",0, IF(#REF!="-",0,IF(#REF!>100%,1,0))) ->  | BA242: =IF(#REF!="",0, IF(#REF!="-",0,IF(#REF!>100%,1,0))) ->  | BB242: =IF(#REF!="",0, IF(#REF!="-",0,IF(#REF!>100%,1,0))) ->  | BC242: =IF(#REF!="",0, IF(#REF!="-",0,IF(#REF!>100%,1,0))) ->  | BG242: =CONCATENATE(#REF!,#REF!,#REF!) ->  | BI242: 0 | BJ242: FALSE | BK242: 0 | BL242: =IF(#REF!="",0,IF(#REF!=#REF!,1,0)) ->  | BR242: RAJSOUTHEND HOSPITAL | BS242: RAJ01 | BT242: SOUTHEND HOSPITAL | BU242: RAJ01 | BV242: SOUTHEND HOSPITAL | BW242: RAJ | BZ242: NEWBRIDGE HOUSE | CA242: Newbridge
C243: 0 | D243: 0 | E243: 0 | H243: 0 | I243: 0 | J243: 0 | K243: 0 | L243: 0 | M243: 0 | N243: 0 | O243: 0 | P243: 0 | Q243: 0 | R243: 0 | AC243: 0 | AK243: 0 | AL243: 0 | AM243: 0 | AN243: 0 | AO243: 0 | AP243: 0 | AQ243: 0 | AR243: 0 | AS243: 0 | AT243: 0 | AU243: 0 | AY243: =IF(#REF!="",0, IF(#REF!="-",0,IF(#REF!>100%,1,0))) ->  | BA243: =IF(#REF!="",0, IF(#REF!="-",0,IF(#REF!>100%,1,0))) ->  | BB243: =IF(#REF!="",0, IF(#REF!="-",0,IF(#REF!>100%,1,0))) ->  | BC243: =IF(#REF!="",0, IF(#REF!="-",0,IF(#REF!>100%,1,0))) ->  | BG243: =CONCATENATE(#REF!,#REF!,#REF!) ->  | BI243: 0 | BJ243: FALSE | BK243: 0 | BL243: =IF(#REF!="",0,IF(#REF!=#REF!,1,0)) ->  | BR243: RALBARNET HOSPITAL | BS243: RAL26 | BT243: BARNET HOSPITAL | BU243: RAL26 | BV243: BARNET HOSPITAL | BW243: RAL | BZ243: NORTHCROFT HOSPITAL | CA243: George
... 882 more rows

Sheet Sheet2

Sheet Sheet3
